Workbook

Sheet Design Data
U2: October 2022
A3: Kentucky Transportation Cabinet, Department of Highways, Division of Materials | U3: Ver 11.3
A4: Asphalt Mixtures Testing Section
A5: 1227 Wilkinson Boulevard, Frankfort, KY 40601-1226
E7: Asphalt-Mixture-Design Results | O7: =IF('Chart Data'!W14="Bid Item Not In Drop-Down List",CONCATENATE('Chart Data'!W19," ",'Chart Data'!W20," ",'Chart Data'!W21," ",'Chart Data'!W22,'Chart Data'!W23," ",'Chart Data'!W24),"") -> 
A8: CONTRACT ID: | F8: LETTING DATE: | I8: CONTACT PHONE: | N8: TYPE OF MIX: | O8: ='Chart Data'!W14 -> 
A10: SM ID NUM.: | F10: MIX ID NUM.: | I10: COUNTY: | O10: SUBMITTAL TYPE: | R10: ='Chart Data'!J7 -> 
A12: FED/STATE #: | F12: LAB UNIT: | I12: TEST METHOD: | K12: AASHTO M323 & R35 | O12: TOTAL TONS: | T12: GRADATION:
O13: (must equal sum on Project Items tab)
A14: PROJ. (ITEM): | C14: =IF('Project Items'!A6="","Enter Project(s) & Line Item(s)",IF('Project Items'!A8="",CONCATENATE('Project Items'!A6," (",'Project Items'!B6,")"),"Multiple Projects Selected")) -> Enter Project(s) & Line Item(s) | F14: DATE REC.: | I14: CNTR. & LOC.: | O14: CNTR. PROD. #: | Q14: =IF('Chart Data'!AO2="","",'Chart Data'!AO2) ->  | S14: Sieve | T14: JMF | U14: "WeighUp"
C15: =IF('Project Items'!A6="","On 'Project Items' Tab.",IF('Project Items'!A7="","",IF('Project Items'!A8="",CONCATENATE('Project Items'!A7," (",'Project Items'!B7,")"),"See 'Project Items' Tab."))) -> On 'Project Items' Tab. | I15: =IF(ISERROR(VLOOKUP(Q14,'Chart Data'!AM1:AN136,2,FALSE)),"",VLOOKUP(Q14,'Chart Data'!AM1:AN136,2,FALSE)) ->  | S15: 2 " | T15: 100 | U15: 100
A16: BINDER SOURCE & LOC. | F16: DATE REL.: | I16: SUBMITTED BY: | O16: MIX MAT. CODE: | Q16: ='Chart Data'!H48 ->  | S16: 1 1/2 "
A17: =IF(ISERROR(VLOOKUP(H18,'Chart Data'!AH1:AI35,2,FALSE)),"",VLOOKUP(H18,'Chart Data'!AH1:AI35,2,FALSE)) ->  | S17: 1 "
A18: BINDER GRADE: | C18: ='Chart Data'!W15 ->  | F18: BIND. PROD. #: | H18: =IF('Chart Data'!AJ2="","",'Chart Data'!AJ2) ->  | I18: MIX/COMP TEMP: | K18: =IF('Chart Data'!H48="","",IF('Chart Data'!H48=20025,"240 (deg. F)",IF('Chart Data'!K38=TRUE,VLOOKUP('Chart Data'!F48,'Chart Data'!J39:K40,2,FALSE),(IF(ISERROR(VLOOKUP('Chart Data'!F48,'Chart Data'!J28:K31,2,FALSE)),"See Applicable Spec.",VLOOKUP('Chart Data'!F48,'Chart Data'!J28:K31,2,FALSE)))))) ->  | S18: 3/4 "
A19: =IF(AND('Chart Data'!W55>0,'Chart Data'!BK9="NO"),'Chart Data'!T42,IF('Chart Data'!W55>0,"Recycle selected: Use " & 'Chart Data'!BK10 & " virgin binder.","(as specified in Bid Item)")) -> (as specified in Bid Item) | F19: Corr. Factor: | I19: Serial Number: | S19: 1/2 "
A20: BINDER CODE: | C20: =IF(ISERROR('Chart Data'!Y2),"",'Chart Data'!Y2) ->  | F20: ESAL CLASS: | H20: =IF(ISERROR('Chart Data'!W16),"",'Chart Data'!W16) ->  | I20: DEPTH (mm): | S20: 3/8 "
A21: =IF('Chart Data'!L47="","",IF(OR('Chart Data'!L47="A",'Chart Data'!L47="B"),"Please Indicate Polish-Resistant Source(s) by Checkboxes ↓","")) ->  | I21: =IF(AND(F21="",K20=""),"(Enter depth from surface (mm))","") -> (Enter depth from surface (mm)) | S21: 1/4 " | T21: N / A | U21: N / A
A22: AGG. PROD. NO. | C22: PRODUCER NAME | H22: MAT. CODE | J22: AGG. TYPE | L22: Gsb | M22: % | N22: Gravity Info. | Q22: Max. Specific | S22: #4
H23: =IF(J23="","",VALUE(VLOOKUP(J23,'Chart Data'!$AR$1:$AS$137,2,FALSE))) ->  | N23: Gsb = | O23: =IF(I95="","",(1/I95*100)) ->  | Q23: Gravity Info. | S23: #8
H24: =IF(J24="","",VALUE(VLOOKUP(J24,'Chart Data'!$AR$1:$AS$137,2,FALSE))) ->  | N24: Gse = | O24: =IF(Q25="","",(100-Q25)/((100/R28)-(Q25/O25))) ->  | Q24: %AC | R24: MSG's | S24: #16
H25: =IF(J25="","",VALUE(VLOOKUP(J25,'Chart Data'!$AR$1:$AS$137,2,FALSE))) ->  | N25: Gb = | O25: 1.03 | S25: #30
H26: =IF(J26="","",VALUE(VLOOKUP(J26,'Chart Data'!$AR$1:$AS$137,2,FALSE))) ->  | N26: =IF('Chart Data'!S55="Recycle","Recycle MSG","") ->  | S26: #50
H27: =IF(J27="","",VALUE(VLOOKUP(J27,'Chart Data'!$AR$1:$AS$137,2,FALSE))) ->  | N27: ='Chart Data'!R105 ->  | S27: #100
H28: =IF(J28="","",VALUE(VLOOKUP(J28,'Chart Data'!$AR$1:$AS$137,2,FALSE))) ->  | N28: =IF('Chart Data'!S55="Recycle","Rap Gsb =","") ->  | O28: ='Chart Data'!R111 ->  | P28: =IF(AND(N27="",O27=""),"",AVERAGE(N27:O27)) ->  | Q28: Average: | R28: =IF(Q25="","",AVERAGE(R25:R27)) ->  | S28: #200
I29: =IF('Chart Data'!S55="Recycle","Fill in Recycle Info. on 'Recycle Data' sheet and the Backcalculated Gsb will be automatically utilized for the Agg. Gravity for Recycle.","") -> 
A30: Sample # | B30: % AC | D30: Weight (g) | F30: Bulk Vol. | G30: BSG | H30: Unit Wt. @ | I30: Max Spec | J30: % Voids | K30: % Abs. AC | L30: % Eff. AC | M30: % VMA | N30: % VFA | O30: Film Th. | P30: %Gmm | Q30: D/A | R30: Height | T30: Height
B31: (Mix) | C31: (Air) | D31: (Water) | E31: (SSD) | F31: (g) | G31: @ Ndes | H31: Ndes (pcf) | I31: Gravity | J31: @ Ndes | K31: (Mix) | M31: @ Ndes | N31: @ Ndes | O31: (µm) | P31: @ Nini | Q31: Ratio | R31: @ Nini (mm) | T31: @ Ndes (mm)
A32: 1 | F32: =IF(E32="","",E32-D32) ->  | G32: =IF(ISERROR(C32/F32),"",(C32/F32)) ->  | H32: =IF(ISERROR(G32*62.4),"",(G32*62.4)) ->  | P32: =IF(OR(R32="",T32=""),"",((C32/F32)*(T32/R32))*100/I34) -> 
A33: 2 | F33: =IF(E33="","",E33-D33) ->  | H33: =IF(ISERROR(G33*62.4),"",(G33*62.4)) ->  | P33: =IF(R33="","",((C33/F33)*(T33/R33))*100/I34) -> 
A34: Average | G34: =IF(G32="","",AVERAGE(G32:G33)) ->  | H34: =IF(H32="","",AVERAGE(H32:H33)) ->  | I34: =IF(B34="","",100/((B34/1.03)+((100-B34)/$O$24))) ->  | J34: =IF(I34="","",((I34-G34)/I34)*100) ->  | K34: =IF(B34="","",($O$24-$O$23)/($O$24*$O$23)*$O$25*(100-B34)) ->  | L34: =IF(B34="","",(B34-K34)) ->  | M34: =IF(B34="","",100-(G34*(100-B34)/$O$23)) ->  | N34: =IF(M34="","",(100*(M34-J34)/M34)) ->  | O34: =IF(L34="","",(10*((L34/100)/($H$98*(1-L34/100))/0.00003937)+0.5)/10) ->  | P34: =IF(P32="","",AVERAGE(P32:P33)) ->  | Q34: =IF($L$34="","",($T$28/L34)) -> 
A35: 3 | B35: % AC | F35: =IF(E35="","",E35-D35) ->  | H35: =IF(ISERROR(G35*62.4),"",(G35*62.4)) ->  | P35: =IF(R35="","",((C35/F35)*(T35/R35))*100/I37) -> 
A36: 4 | F36: =IF(E36="","",E36-D36) ->  | H36: =IF(ISERROR(G36*62.4),"",(G36*62.4)) ->  | P36: =IF(R36="","",((C36/F36)*(T36/R36))*100/I37) -> 
A37: Average | G37: =IF(G35="","",AVERAGE(G35:G36)) ->  | H37: =IF(H35="","",AVERAGE(H35:H36)) ->  | I37: =IF(B37="","",100/((B37/1.03)+((100-B37)/$O$24))) ->  | J37: =IF(I37="","",((I37-G37)/I37)*100) ->  | K37: =IF(B37="","",($O$24-$O$23)/($O$24*$O$23)*$O$25*(100-B37)) ->  | L37: =IF(B37="","",(B37-K37)) ->  | M37: =IF(B37="","",100-(G37*(100-B37)/$O$23)) ->  | N37: =IF(M37="","",(100*(M37-J37)/M37)) ->  | O37: =IF(L37="","",(10*((L37/100)/($H$98*(1-L37/100))/0.00003937)+0.5)/10) ->  | P37: =IF(P35="","",AVERAGE(P35:P36)) ->  | Q37: =IF($L$37="","",($T$28/L37)) -> 
A38: 5 | B38: % AC | F38: =IF(E38="","",E38-D38) ->  | H38: =IF(ISERROR(G38*62.4),"",(G38*62.4)) ->  | P38: =IF(R38="","",((C38/F38)*(T38/R38))*100/I40) -> 
A39: 6 | F39: =IF(E39="","",E39-D39) ->  | H39: =IF(ISERROR(G39*62.4),"",(G39*62.4)) ->  | P39: =IF(R39="","",((C39/F39)*(T39/R39))*100/I40) -> 
A40: Average | G40: =IF(G38="","",AVERAGE(G38:G39)) ->  | H40: =IF(H38="","",AVERAGE(H38:H39)) ->  | I40: =IF(B40="","",100/((B40/1.03)+((100-B40)/$O$24))) ->  | J40: =IF(I40="","",((I40-G40)/I40)*100) ->  | K40: =IF(B40="","",($O$24-$O$23)/($O$24*$O$23)*$O$25*(100-B40)) ->  | L40: =IF(B40="","",(B40-K40)) ->  | M40: =IF(B40="","",100-(G40*(100-B40)/$O$23)) ->  | N40: =IF(M40="","",(100*(M40-J40)/M40)) ->  | O40: =IF(L40="","",(10*((L40/100)/($H$98*(1-L40/100))/0.00003937)+0.5)/10) ->  | P40: =IF(P38="","",AVERAGE(P38:P39)) ->  | Q40: =IF($L$40="","",($T$28/L40)) -> 
A41: 7 | B41: % AC | F41: =IF(E41="","",E41-D41) ->  | H41: =IF(ISERROR(G41*62.4),"",(G41*62.4)) ->  | P41: =IF(R41="","",((C41/F41)*(T41/R41))*100/I43) -> 
A42: 8 | F42: =IF(E42="","",E42-D42) ->  | H42: =IF(ISERROR(G42*62.4),"",(G42*62.4)) ->  | P42: =IF(R42="","",((C42/F42)*(T42/R42))*100/I43) -> 
A43: Average | G43: =IF(G41="","",AVERAGE(G41:G42)) ->  | H43: =IF(H41="","",AVERAGE(H41:H42)) ->  | I43: =IF(B43="","",100/((B43/1.03)+((100-B43)/$O$24))) ->  | J43: =IF(I43="","",((I43-G43)/I43)*100) ->  | K43: =IF(B43="","",($O$24-$O$23)/($O$24*$O$23)*$O$25*(100-B43)) ->  | L43: =IF(B43="","",(B43-K43)) ->  | M43: =IF(B43="","",100-(G43*(100-B43)/$O$23)) ->  | N43: =IF(M43="","",(100*(M43-J43)/M43)) ->  | O43: =IF(L43="","",(10*((L43/100)/($H$98*(1-L43/100))/0.00003937)+0.5)/10) ->  | P43: =IF(P41="","",AVERAGE(P41:P42)) ->  | Q43: =IF($L$43="","",($T$28/L43)) -> 
A44: Specimens at optimum AC:
A45: Sample # | B45: % AC | D45: Weight (g) | F45: Bulk Vol. | G45: BSG | H45: Unit Wt. @ | I45: Max Spec | J45: % Voids | K45: % Abs. AC | L45: % Eff. AC | M45: % VMA | N45: % VFA | O45: Film Th. | P45: %Gmm | Q45: D/A | R45: Height | S45: Height | T45: Height | U45: %Gmm
B46: (Mix) | C46: (Air) | D46: (Water) | E46: (SSD) | F46: (g) | G46: @ Ndes | H46: Ndes (pcf) | I46: Gravity | J46: @ Ndes | K46: (Mix) | M46: @ Ndes | N46: @ Ndes | O46: (µm) | P46: @ Nini | Q46: Ratio | R46: @ Nini (mm) | S46: @ Ndes (mm) | T46: @ Nmax(mm) | U46: @ Nmax
A47: A | B47: % AC | F47: =IF(E47="","",E47-D47) ->  | G47: =IF(ISERROR(C47/F47),"",((C47/F47)*(T47/S47))) ->  | H47: =IF(ISERROR(G47*62.4),"",(G47*62.4)) ->  | P47: =IF(T47="","",((C47/F47)*(T47/R47))*100/I49) ->  | U47: =IF(T47="","",((C47/F47)*(T47/T47))*100/I49) ->  | W47: =(C47+C48)/2 -> 0 | X47: =IF(W47=0,"",(115/W48)) -> 
A48: B | F48: =IF(E48="","",E48-D48) ->  | G48: =IF(ISERROR(C48/F48),"",((C48/F48)*(T48/S48))) ->  | H48: =IF(ISERROR(G48*62.4),"",(G48*62.4)) ->  | P48: =IF(T48="","",((C48/F48)*(T48/R48))*100/I49) ->  | U48: =IF(T48="","",((C48/F48)*(T48/T48))*100/I49) ->  | W48: =(S47+S48)/2 -> 0 | X48: =IF(W47=0,"",+X47*W47) -> 
A49: Average | G49: =IF(G47="","",AVERAGE(G47:G48)) ->  | H49: =IF(H47="","",AVERAGE(H47:H48)) ->  | I49: =IF(B49="","",100/((B49/1.03)+((100-B49)/$O$24))) ->  | J49: =IF(I49="","",((I49-G49)/I49)*100) ->  | K49: =IF(B49="","",($O$24-$O$23)/($O$24*$O$23)*$O$25*(100-B49)) ->  | L49: =IF(B49="","",(B49-K49)) ->  | M49: =IF(B49="","",100-(G49*(100-B49)/$O$23)) ->  | N49: =IF(M49="","",(100*(M49-J49)/M49)) ->  | O49: =IF(L49="","",(10*((L49/100)/($H$98*(1-L49/100))/0.00003937)+0.5)/10) ->  | P49: =IF(P47="","",AVERAGE(P47:P48)) ->  | Q49: =IF($L$49="","",($T$28/L49)) ->  | U49: =IF(U47="","",AVERAGE(U47:U48)) -> 
A51: RANDOM NUMBER GENERATOR | L51: Design Property | O51: Design Value | P51: Criteria | S51: Reference Information
A52: PLEASE NOTE: Random numbers can only be generated one time. Make | L52: Coarse Aggregate Angularity (%) | P52: =IF(ISTEXT(H20),"",IF(K20="","ENTER",IF(OR(H20<>"",K20<>""),IF(H20<=3,'Chart Data'!BO9,'Chart Data'!BP9),""))) ->  | S52: County: | T52: =IF($N$80="","","N/A") -> 
A53: sure the correct tonnage appears below. If so, press GENERATE. | L53: Fine Aggregate Angularity (%) | P53: =IF(ISTEXT(H20),"",IF(K20="","DEPTH",IF(OR(H20<>"",K20<>""),'Chart Data'!BP17))) ->  | S53: Mix ID #:
D54: =IF('Chart Data'!K48="M","Metric Tons =","English Tons =") -> English Tons = | L54: Flat & Elongated Particles (%) | P54: =IF('Chart Data'!J48="NO. 4","N/A",IF(ISTEXT(H20),"",IF(K20="","FROM","10 (maximum)"))) ->  | S54: Binder:
A55: Sublot | B55: Rand. # | C55: Sublot | D55: Rand. # | E55: Sublot | F55: Rand. # | G55: Sublot | H55: Rand. # | I55: Sublot | J55: Rand. # | L55: Clay Content (SE) (%) | P55: =IF(ISTEXT(H20),"",IF(K20="","SURFACE",IF(H20=2,"40 (minimum)",IF(H20=3,"45 (minimum)","50 (minimum)")))) ->  | S55: Date Released: | U55: =IF($N$80="","","N/A") -> 
L56: % VFA | O56: =IF(AND(Graphs!K77="",N34=""),"",IF(AND(Graphs!K77="",N34<>0),N34,Graphs!K77)) ->  | P56: =IF(AND(H20=2,'Chart Data'!J48="NO. 4"),"67 - 77",IF(AND(H20>2,'Chart Data'!J48="NO. 4"),"66 - 77",IF(H20="N/A","",IF(AND(H20=1,'Chart Data'!J48=1.5),"64 - 80",IF(AND(H20=2,'Chart Data'!J48=1.5),"64 - 78",IF(AND(H20=3,'Chart Data'!J48=1.5),"64 - 75",IF(AND(H20=4,'Chart Data'!J48=1.5),"64 - 75",V56))))))) ->  | S56: Design AC %: | U56: =IF($N$80="","","N/A") ->  | V56: =IF(AND(H20=1,'Chart Data'!J48=1),"67 - 80",IF(H20=1,"70 - 80",IF(H20=2,"65 - 78",IF(AND(H20=3,'Chart Data'!J48=0.38),"73 - 76",IF(H20=3,"65 - 75",IF('Chart Data'!J48=0.38,"73 - 76",IF(AND('Chart Data'!J48>0.38,'Chart Data'!J48<=1.5),"65 - 75",""))))))) -> 
L57: % VMA | O57: =IF(AND(Graphs!K26="",M34=""),"",IF(AND(Graphs!K26="",M34<>0),M34,Graphs!K26)) ->  | P57: =IF(ISTEXT(H20),"",IF('Chart Data'!W14="Bid Item Not In Drop-Down List",CONCATENATE('Chart Data'!X17 & " (minimum)"),IF('Chart Data'!BS9="","",CONCATENATE('Chart Data'!BS9 & ".0 (minimum)")))) ->  | S57: Job Complete? | U57: =IF($N$80="","","N/A") -> 
L58: D/A Ratio | O58: =IF(AND(Graphs!K140="",Q34=""),"",IF(AND(Graphs!K140="",Q34<>0),Q34,Graphs!K140)) ->  | P58: =IF('Chart Data'!BP13="","",IF('Chart Data'!BP13="NO. 4", "1.0 - 2.0",IF(OR('Chart Data'!BP13=0.38,'Chart Data'!BP13=0.5),"0.6 - 1.4","0.6 - 1.6"))) ->  | S58: =IF($N$80="","","(Other information)") ->  | T58: =IF($N$80="","","(Other information)") ->  | U58: =IF($N$80="","","(Other information)") -> 
L59: % Gmm @ Ninitial | O59: =IF(AND(Graphs!K20="",P34=""),"",IF(AND(Graphs!K20="",P34<>0),P34,Graphs!K20)) ->  | P59: =IF(ISTEXT(H20),"",IF(K20="","",IF(H20=1,"91.5 (maximum)",IF(H20=2,"90.5 (maximum)","89.0 (maximum)")))) -> 
L60: % Gmm @ Nmax | O60: =U49 ->  | P60: =IF(ISTEXT(H20),"",IF(K20="","","98.5 (maximum)")) ->  | S60: Sieve | T60: JMF | U60: Revised
L61: % Air Voids | O61: =IF(AND(Graphs!K23="",J34=""),"",IF(AND(Graphs!K23="",J34<>0),J34,Graphs!K23)) ->  | P61: =IF(ISNUMBER(H20),3.5,"") ->  | S61: =S15 -> 2 " | T61: =IF(T15="","",T15) -> 100 | U61: 100
L62: Unit Weight (lb/ft3) | O62: =IF(AND(Graphs!K80="",H34=""),"",IF(AND(Graphs!K80="",H34<>0),H34,Graphs!K80)) ->  | S62: 1 1/2 "
L63: % AC | O63: =IF(AND(Graphs!K17="",B34=""),"",IF(AND(Graphs!K17="",B34<>0),B34,Graphs!K17)) ->  | P63: =IF(AND(ISNUMBER(H20),'Chart Data'!J48=0.5,O63<5.3,'Chart Data'!H48<>20550),"AC% OUT OF SPEC.",IF(AND(ISNUMBER(H20),'Chart Data'!J48=0.38,O63<5.6),"AC% OUT OF SPEC.","")) ->  | S63: 1 "
L64: % Effective AC | O64: =Graphs!K134 ->  | P64: =IF('Chart Data'!BK9="NO","See Recycle Data Tab","") ->  | S64: 3/4 "
L65: Maximum Specific Gravity | O65: =IF(AND(Graphs!K83="",I34=""),"",IF(AND(Graphs!K83="",I34<>0),I34,Graphs!K83)) ->  | S65: 1/2 "
L66: % Absorbed AC (Mix) | O66: =IF(AND(K49="",K34=""),"",IF(K49="",K34,K49)) ->  | S66: 3/8 "
L67: Gsb | O67: =O23 ->  | S67: 1/4 " | T67: N / A | U67: =T67 -> N / A
L68: Gse | O68: =O24 ->  | S68: #4
L69: Film Thickness (µm) | O69: =IF(AND(Graphs!K137="",O34=""),"",IF(AND(Graphs!K137="",O34<>0),O34,Graphs!K137)) ->  | S69: #8
L70: Specimen Weight (g) | O70: =IF(X48="","",X48) ->  | S70: #16
L71: TSR Weight (g) | S71: #30
L72: % TSR without additive | O72: =TSR!G57 ->  | P72: =IF(ISNUMBER(H20),"80 (minimum)","") ->  | S72: #50
L73: % TSR with additive | O73: =TSR!N57 ->  | P73: =IF(ISNUMBER(H20),"80 (minimum)","") ->  | S73: #100
L74: % Additive | O74: =IF(TSR!G18="","",IF(TSR!H18="","N/A",TSR!H18)) ->  | S74: #200
L75: Type of Additive | O75: =IF(TSR!G18="","",IF(TSR!G20="","None Required",TSR!G20)) -> 
L76: NOTES: | S76: =IF(I29="","","Recycle Information") -> 
S77: =IF(I29="","","%AC in Recycle:") ->  | U77: =IF(I29="","",'Chart Data'!Q115) -> 
L78: =IF(Q80="","","(Enter Reference Info. Above)") ->  | S78: =IF(I29="","","%Virgin AC in mix:") ->  | U78: =IF(I29="","",'Chart Data'!Q116) -> 
L79: =IF(OR(H20=1,H20=2),"","Complete SGC Des.") -> Complete SGC Des. | O79: =IF(OR(H20=1,H20=2),"","1-Pt. SGC Des.") -> 1-Pt. SGC Des. | S79: =IF(I29="","","%Recycle AC in mix:") ->  | U79: =IF(I29="","",'Chart Data'!Q117) -> 
L80: App.-New Design | O80: App.-Ref. Mix | S80: =IF(I29="","","Total %AC in mix:") ->  | U80: =IF(I29="","",'Chart Data'!Q118) -> 
L81: MCL Design | O81: Contr. Design | S81: APPROVED BY:
L82: Revised Asphalt Content (+ or - 0.3 %):
C84: GRAPH DATA
A85: AC | B85: Gmmini | C85: AC | D85: AV | E85: AC | F85: VMA | H85: MCL Mix Date
A86: =IF($B$34="","",$B$34) ->  | B86: =P34 ->  | C86: =IF($B$34="","",$B$34) ->  | D86: =J34 ->  | E86: =IF($B$34="","",$B$34) ->  | F86: =M34 ->  | P86: Gyration Data
A87: =IF($B$37="","",$B$37) ->  | B87: =P37 ->  | C87: =IF($B$37="","",$B$37) ->  | D87: =J37 ->  | E87: =IF($B$37="","",$B$37) ->  | F87: =M37 ->  | P87: Nini | Q87: =IF(H20=2,7,IF(H20=3,7,IF(H20=4,7,""))) -> 
A88: =IF($B$40="","",$B$40) ->  | B88: =P40 ->  | C88: =IF($B$40="","",$B$40) ->  | D88: =J40 ->  | E88: =IF($B$40="","",$B$40) ->  | F88: =M40 ->  | G88: AGGREGATE | P88: Ndes | Q88: =IF(H20=2,65,IF(H20=3,65,IF(H20=4,65,""))) -> 
A89: =IF($B$43="","",$B$43) ->  | B89: =P43 ->  | C89: =IF($B$43="","",$B$43) ->  | D89: =J43 ->  | E89: =IF($B$43="","",$B$43) ->  | F89: =M43 ->  | G89: =IF(L23="","",L23) ->  | H89: =IF(M23="","",M23) ->  | I89: =IF(ISERROR(H89/G89),"",H89/G89) ->  | P89: Nmax | Q89: =IF(H20=2,105,IF(H20=3,105,IF(H20=4,105,""))) -> 
A90: AC | B90: VFA | C90: AC | D90: UW | E90: AC | F90: MSG | G90: =IF(L24="","",L24) ->  | H90: =IF(M24="","",M24) -> 
A91: =IF($B$34="","",$B$34) ->  | B91: =N34 ->  | C91: =IF($B$34="","",$B$34) ->  | D91: =H34 ->  | E91: =IF($B$34="","",$B$34) ->  | F91: =I34 ->  | G91: =IF(L25="","",L25) -> 
A92: =IF($B$37="","",$B$37) ->  | B92: =N37 ->  | C92: =IF($B$37="","",$B$37) ->  | D92: =H37 ->  | E92: =IF($B$37="","",$B$37) ->  | F92: =I37 -> 
A93: =IF($B$40="","",$B$40) ->  | B93: =N40 ->  | C93: =IF($B$40="","",$B$40) ->  | D93: =H40 ->  | E93: =IF($B$40="","",$B$40) ->  | F93: =I40 ->  | L93: Warm Mix Asphalt Data
A94: =IF($B$43="","",$B$43) ->  | B94: =N43 ->  | C94: =IF($B$43="","",$B$43) ->  | D94: =H43 ->  | E94: =IF($B$43="","",$B$43) ->  | F94: =I43 ->  | L94: Planned Production Temp (oF)
A95: AC | B95: Eff. AC | C95: AC | D95: Film Th | E95: AC | F95: D/A | H95: SUM= | I95: =IF(I89="","",SUM(I89:I94)) ->  | L95: WMA Process/Product
A96: =IF($B$34="","",$B$34) ->  | B96: =IF(L34="","",L34) ->  | C96: =IF($B$34="","",$B$34) ->  | D96: =IF(O34="","",O34) ->  | E96: =IF($B$34="","",$B$34) ->  | F96: =IF(Q34="","",Q34) ->  | L96: Additive (% of Total Binder)
A97: =IF($B$37="","",$B$37) ->  | B97: =IF(L37="","",L37) ->  | C97: =IF($B$37="","",$B$37) ->  | D97: =IF(O37="","",O37) ->  | E97: =IF($B$37="","",$B$37) ->  | F97: =IF(Q37="","",Q37) ->  | G97: SA = | H97: =IF(T74="","",(2+(2*T68+4*T69+8*T70+14*T71+30*T72+60*I98+160*T74)/100)*O23/2.65) ->  | J97: =IF(T74="","",(2+(2*T68+4*T69+8*T70+14*T71+30*(T72+1)+60*(I98+1)+160*(T74+1.5))/100)*O23/2.65) -> 
A98: =IF($B$40="","",$B$40) ->  | B98: =IF(L40="","",L40) ->  | C98: =IF($B$40="","",$B$40) ->  | D98: =IF(O40="","",O40) ->  | E98: =IF($B$40="","",$B$40) ->  | F98: =IF(Q40="","",Q40) ->  | G98: ALPHA = | H98: =IF(H97="","",(1.96*O25*O23*H97)) ->  | I98: =IF($T$74="","",($T$72-((0.3-0.15)/(0.3-0.075))*($T$72-$T$74))) ->  | J98: =IF(J97="","",(1.96*O25*O23*J97)) ->  | L98: Hot Mix Asphalt with Additive Data
A99: =IF($B$43="","",$B$43) ->  | B99: =IF(L43="","",L43) ->  | C99: =IF($B$43="","",$B$43) ->  | D99: =IF(O43="","",O43) ->  | E99: =IF($B$43="","",$B$43) ->  | F99: =IF(Q43="","",Q43) ->  | L99: Planned Production Temp (oF)
L100: Product
C101: Graph Limits | L101: Additive (% of Total Binder)
A102: Gmmini Limits | C102: AV Limits | E102: VMA Limits
A103: =A86 ->  | B103: =IF(A103="","",IF(H20=1,91.5,IF(H20=2,90.5,89))) ->  | C103: =C86 ->  | D103: =IF(C103="","",3.5) ->  | E103: =E86 ->  | F103: =IF(E103="","",IF(ISNUMBER(H20),'Chart Data'!BS9,"")) -> 
A104: =A89 ->  | B104: =IF(A104="","",IF(H20=1,91.5,IF(H20=2,90.5,89))) ->  | C104: =C89 ->  | D104: =IF(C104="","",3.5) ->  | E104: =E89 ->  | F104: =IF(E104="","",IF(ISNUMBER(H20),'Chart Data'!BS9,"")) -> 
A105: VFA Limits | C105: D/A Limits
A106: =A91 ->  | B106: =IF(P56="","",VALUE(LEFT(P56,2))) ->  | C106: =E96 ->  | D106: =IF(C106="","",0.6) -> 
A107: =A94 ->  | B107: =B106 ->  | C107: =E99 ->  | D107: =IF(C107="","",0.6) -> 
A108: =A91 ->  | B108: =IF(P56="","",VALUE(RIGHT(P56,2))) ->  | C108: =E96 ->  | D108: =IF(P58="","",VALUE(RIGHT(P58,3))) -> 
A109: =A94 ->  | B109: =B108 ->  | C109: =E99 ->  | D109: =IF(P58="","",VALUE(RIGHT(P58,3))) -> 
A111: MCL Aggregate Verification Information
A112: AGG. PROD. NO. | C112: PRODUCER NAME | H112: MAT. CODE | J112: AGG. TYPE | L112: Con. Gsb | M112: S/C | N112: SiteManager Agg. ID #
A113: =IF(A23="","",A23) ->  | C113: =IF(C23="","",C23) ->  | H113: =IF(H23="","",H23) ->  | J113: =IF(J23="","",J23) ->  | L113: =IF(L23="","",L23) -> 
A120: NOTES: | J120: MCL Concensus (& additional) Verification Information
J121: TEST TYPE | M121: S/C | N121: SiteManager ID #
Q127: <======= | R127: Binder

Sheet Rand. #'s (cont.) (hidden)
A2: RANDOM NUMBER GENERATOR (CONTINUED) | L2: PROJECT INFORMATION
A3: PLEASE NOTE: Random numbers can only be generated one time. Make | L3: Mix ID #: | N3: =IF('Design Data'!H10="","",'Design Data'!H10) ->  | P3: County: | Q3: =IF('Design Data'!K10="","",'Design Data'!K10) -> 
A4: sure the correct tonnage appears below. | L4: Mix Type: | N4: =IF(N5="","",'Chart Data'!W14) -> 
D5: TONNAGE = | L5: Contract ID: | N5: =IF('Design Data'!C8="","",'Design Data'!C8) ->  | Q5: Binder Type: | S5: =IF(N5="","",'Design Data'!C18) -> 
A6: Sublot | B6: Rand. # | C6: Sublot | D6: Rand. # | E6: Sublot | F6: Rand. # | G6: Sublot | H6: Rand. # | I6: Sublot | J6: Rand. # | L6: Project #: | N6: Enter Project(s) & Line Item(s) On 'Project Items' Tab.
AA7: Coarse Aggregate Angularity Criteria | AC7: Fine Aggregate Angularity Criteria
AA8: <=100mm | AB8: >100 mm | AC8: <=100mm | AD8: >100 mm
AA9: 75/- (minimum) | AB9: 75/- | AC9: - | AD9: -
AA10: 75/- (minimum) | AB10: 75/- (minimum) | AC10: 40 (minimum) | AD10: 40 (minimum)
AA11: 95/90 (minimum) | AB11: 80/75 (minimum) | AC11: 45 (minimum) | AD11: 40 (minimum)
AA12: 100/100 (minimum) | AB12: 100/100 (minimum) | AC12: 45 (minimum) | AD12: 45 (minimum)
A37: RANDOM NUMBER GENERATOR (CONTINUED) | L37: RANDOM NUMBER GENERATOR (CONTINUED)
A38: PLEASE NOTE: Random numbers can only be generated one time. Make | L38: PLEASE NOTE: Random numbers can only be generated one time. Make
A39: sure the correct tonnage appears below. | L39: sure the correct tonnage appears below.
D40: TONNAGE = | O40: TONNAGE =
A41: Sublot | B41: Rand. # | C41: Sublot | D41: Rand. # | E41: Sublot | F41: Rand. # | G41: Sublot | H41: Rand. # | I41: Sublot | J41: Rand. # | L41: Sublot | M41: Rand. # | N41: Sublot | O41: Rand. # | P41: Sublot | Q41: Rand. # | R41: Sublot | S41: Rand. # | T41: Sublot | U41: Rand. #
A72: RANDOM NUMBER GENERATOR (CONTINUED) | L72: RANDOM NUMBER GENERATOR (CONTINUED)
A73: PLEASE NOTE: Random numbers can only be generated one time. Make | L73: PLEASE NOTE: Random numbers can only be generated one time. Make
A74: sure the correct tonnage appears below. | L74: sure the correct tonnage appears below.
D75: TONNAGE = | O75: TONNAGE =
A76: Sublot | B76: Rand. # | C76: Sublot | D76: Rand. # | E76: Sublot | F76: Rand. # | G76: Sublot | H76: Rand. # | I76: Sublot | J76: Rand. # | L76: Sublot | M76: Rand. # | N76: Sublot | O76: Rand. # | P76: Sublot | Q76: Rand. # | R76: Sublot | S76: Rand. # | T76: Sublot | U76: Rand. #
A127: muley

Sheet Polish-Resistant Data (hidden)
G1: ='Design Data'!U2 -> October 2022
A2: Kentucky Transportation Cabinet, Department of Highways, Division of Materials
A3: Asphalt Mixtures Testing Section
A4: 1227 Wilkinson Boulevard, Frankfort, KY 40601-1226
A7: Mix ID #: | B7: =IF('Design Data'!$H$10="","",'Design Data'!H10) ->  | C7: County: | D7: =IF('Design Data'!$K$10="","",'Design Data'!$K$10) ->  | E7: Type of Mix: | F7: =IF('Chart Data'!$W$14="","",'Chart Data'!$W$14) -> 
A8: Project Number: | B8: ='Design Data'!$C$14 -> Enter Project(s) & Line Item(s)
B9: ='Design Data'!$C$15 -> On 'Project Items' Tab.
A10: Contractor & Loc.: | B10: ='Design Data'!$I$15 ->  | E10: Type of Mixture to be Placed:
A12: Polish Resistant Aggregate Calculator
A14: Component | B14: =IF('Design Data'!J23="","",'Design Data'!J23) ->  | C14: =IF('Design Data'!J24="","",'Design Data'!J24) ->  | D14: =IF('Design Data'!J25="","",'Design Data'!J25) ->  | E14: =IF('Design Data'!J26="","",'Design Data'!J26) ->  | F14: =IF('Design Data'!J27="","",'Design Data'!J27) ->  | G14: =IF('Design Data'!J28="","",'Design Data'!J28) -> 
A15: Producer # | B15: =IF('Design Data'!A23="","",'Design Data'!A23) ->  | C15: =IF('Design Data'!A24="","",'Design Data'!A24) ->  | D15: =IF('Design Data'!A25="","",'Design Data'!A25) ->  | E15: =IF('Design Data'!A26="","",'Design Data'!A26) ->  | F15: =IF('Design Data'!A27="","",'Design Data'!A27) ->  | G15: =IF('Design Data'!A28="","",'Design Data'!A28) -> 
A16: Cold Feed % | B16: =IF('Design Data'!M23="","",'Design Data'!M23) ->  | C16: =IF('Design Data'!M24="","",'Design Data'!M24) ->  | D16: =IF('Design Data'!M25="","",'Design Data'!M25) ->  | E16: =IF('Design Data'!M26="","",'Design Data'!M26) ->  | F16: =IF('Design Data'!M27="","",'Design Data'!M27) ->  | G16: =IF('Design Data'!M28="","",'Design Data'!M28) -> 
A17: Polish-Res. (?)
A18: % Polish-Res. Credit in RAP
A20: Sieve | B20: JMF | C20: JMF | D20: JMF | E20: JMF | F20: JMF | G20: JMF
A21: 2 "
A22: 1 1/2 "
A23: 1 "
A24: 3/4 "
A25: 1/2 "
A26: 3/8 "
A27: #4
A28: #8
A29: #16
A30: #30
A31: #50
A32: #100
A33: #200
A35: % Passing #4 | B35: =IF(B27="","",B27) -> 
A36: % Retained #4 | B36: =IF(B35="","",(100-B35)) -> 
A37: Comp. % Retained #4 | B37: =IF(B16="","",(B16*B36/100)) -> 
A39: Polish-Res. Agg. % | B39: =IF(AND(B17="YES",B18=""),B37,IF(B17="YES",B37*B18/100,"")) -> 
A40: Non-Polish-Res. Agg. % | B40: =IF(AND(B17="YES",B18<>""),B37*(100-B18)/100,IF(B17="NO",B37,"")) -> 
D42: Total +4 Retained Polish Resistant Aggregate % | E42: =IF(SUM(B39:G39)=0,"",SUM(B39:G39)) -> 
D43: Total +4 Retained Non-Polish Resistant Aggregate % | E43: =IF(AND(SUM(B40:G40)=0,ISNUMBER(E42)),0,IF(SUM(B40:G40)=0,"",SUM(B40:G40))) -> 
D45: =IF('Chart Data'!L47="A","For the 'A' Mixture Selected the '+4' requirement is","For the 'B' Mixture Selected the Polish Resistant") -> For the 'B' Mixture Selected the Polish Resistant | E45: =IF(E43="","",IF(AND(ROUND(E43,0)<=5,'Chart Data'!L47="A"),"Within Specification Limits",IF(AND(ROUND(E43,0)>5,'Chart Data'!L47="A"),"Out of Specification",IF(AND(E42>=E43,'Chart Data'!L47="B"),"Within Specification Limits",IF(AND(E42<E43,'Chart Data'!L47="B"),"Out of Specification",""))))) -> 

Sheet Recycle Data (hidden)
P1: ='Design Data'!U2 -> October 2022
A2: Kentucky Transportation Cabinet, Department of Highways, Division of Materials
A3: Asphalt Mixtures Testing Section
A4: 1227 Wilkinson Boulevard, Frankfort, KY 40601-1226
A7: RECYCLE Calculator
A9: Fill in Recycle MSG's and AC % on this sheet and use Backcalculated Gsb as Agg. Gravity for Recycle Component on Design Data sheet.
A11: RECYCLE PROD. NO. | C11: RECYCLE PRODUCER NAME | G11: MAT. CODE | I11: RECYCLE TYPE | K11: % | L11: RAP AC% | M11: MSG #1 | N11: MSG #2 | O11: AVG MSG | P11: Gsb
G12: 24030 | I12: Intermediate RAP | O12: =IF(L12="","",IF(OR(M12="",N12=""),"",AVERAGE(M12:N12))) ->  | P12: =IF(O12="","",((((100*((100-L12)/((100/(O12)-(L12/1.03))))*1.03)/(0.5*((100-L12)/((100/(O12)-(L12/1.03))))+(100*1.03)))))) -> 
O13: =IF(L13="","",IF(OR(M13="",N13=""),"",AVERAGE(M13:N13))) ->  | P13: =IF(O13="","",((((100*((100-L13)/((100/(O13)-(L13/1.03))))*1.03)/(0.5*((100-L13)/((100/(O13)-(L13/1.03))))+(100*1.03)))))) -> 
O14: =IF(L14="","",IF(OR(M14="",N14=""),"",AVERAGE(M14:N14))) ->  | P14: =IF(O14="","",((((100*((100-L14)/((100/(O14)-(L14/1.03))))*1.03)/(0.5*((100-L14)/((100/(O14)-(L14/1.03))))+(100*1.03)))))) -> 
O15: =IF(L15="","",IF(OR(M15="",N15=""),"",AVERAGE(M15:N15))) ->  | P15: =IF(O15="","",((((100*((100-L15)/((100/(O15)-(L15/1.03))))*1.03)/(0.5*((100-L15)/((100/(O15)-(L15/1.03))))+(100*1.03)))))) -> 
G17: Target Eff. AC% in Mix
G19: =IF(I12="","",I12) -> Intermediate RAP | J19: =IF(L12="","",IF(G19="Shingles",ROUND(0.75*L12*K12/100,1),ROUND(L12*K12/100,1))) -> 
G20: =IF(I13="","",I13) ->  | J20: =IF(L13="","",IF(G20="Shingles",ROUND(0.75*L13*K13/100,1),ROUND(L13*K13/100,1))) -> 
G21: =IF(I14="","",I14) ->  | J21: =IF(L14="","",IF(G21="Shingles",ROUND(0.75*L14*K14/100,1),ROUND(L14*K14/100,1))) -> 
G22: =IF(I15="","",I15) ->  | J22: =IF(L15="","",IF(G22="Shingles",ROUND(0.75*L15*K15/100,1),ROUND(L15*K15/100,1))) -> 
G23: TOTAL AC from Recycle | J23: =IF(J19="","",SUM(J19:J22)) -> 
G24: Virgin Binder in Mix | J24: =IF('Design Data'!O63="","",'Design Data'!O63-(SUM(J19:J22))) -> 
G25: % Eff. Replacement | J25: =IF('Chart Data'!BK6="","",'Chart Data'!BK6) -> 
C27: =IF('Chart Data'!BK9="NO","The contribution of Asphalt Binder from the reclaimed materials has exceeded the maximum.",'Design Data'!A19) -> (as specified in Bid Item)
C29: =IF(AND('Recycle Data'!J17<>Graphs!K134,'Chart Data'!J7="New Mix Design"),"Target Eff. AC% in Mix does not match Calculated Eff. AC%","") -> 

Sheet Project Items
A1: t_cont_smpl | B1: t_cont_smpl | C1: t_cont_smpl | D1: N/A
A2: Project | B2: Line Item | C2: Represented | D2: Item
B3: Number | C3: Quantity | D3: Code | G3: Contractor Entries
C4: (in item code unit) | D4: Unit | G4: (Add as many rows as required)
A5: prj_nbr | B5: ln_itm_nbr | C5: repr_qty | D5: Not Stored on the SM database

Sheet 1-Pt. Check
H1: ='Design Data'!U2 -> October 2022
A2: Kentucky Transportation Cabinet, Department of Highways, Division of Materials
A3: Asphalt Mixtures Testing Section
A4: 1227 Wilkinson Boulevard, Frankfort, KY 40601-1226
A6: One-Point Gyratory Specimen Properties Evaluation
A7: Mix ID # & County: | C7: =IF('Design Data'!K10="","",(CONCATENATE("# ",'Design Data'!H10,", ",'Design Data'!K10," County"))) ->  | F7: Mix Type: | G7: ='Chart Data'!W14 -> 
A8: Tested By:
A9: Date Received: | F9: Date Comp.:
A10: Test Methods Used: | C10: AASHTO T166 & T209 | F10: Lab:
A11: Specimens:
A12: Gyratory Specimen Weights
B13: % AC | C13: Spec. No. | D13: Wt. in Air | E13: Wt. in H20 | F13: SSD Wt. | G13: BSG | J13: Bulk Vol. | K13: B.S.G. | L13: Unit Wt.
D14: (g) | E14: (g) | F14: (g)
C15: 1 | G15: =IF(D15="","",(D15/(F15-E15))) ->  | J15: =IF(F15="","",(F15-E15)) ->  | K15: =IF(D15="","",(D15/J15)) ->  | L15: =IF(K15="","",(K15*62.4)) -> 
C16: 2 | G16: =IF(D16="","",(D16/(F16-E16))) ->  | J16: =IF(F16="","",(F16-E16)) ->  | K16: =IF(D16="","",(D16/J16)) ->  | L16: =IF(K16="","",(K16*62.4)) -> 
A17: Maximum Specific Gravity (Gmm) Determination | J17: =IF(J15="","",(SUM(J15:J16)/2)) ->  | K17: =IF(K15="","",AVERAGE(K15:K16)) ->  | L17: =IF(L15="","",AVERAGE(L15:L16)) -> 
A18: 1. Wt. of Pycnometer + Mix (g)
A19: 2. Wt. of Pycnometer (g)
A20: 3. Wt. of Mix (g) [1-2] | E20: =IF(E18="","",E18-E19) ->  | F20: =IF(F18="","",F18-F19) ->  | G20: =IF(G18="","",G18-G19) -> 
A21: 4. Calibration Wt. (g) | J21: B.S.G.A. | K21: =IF(C33="","",C33) -> 
A22: 5. Calibration Wt. + Wt. of Mix (g) [3+4] | E22: =IF(E18="","",E20+E21) ->  | F22: =IF(F18="","",F20+F21) ->  | G22: =IF(G18="","",G20+G21) ->  | H22: Average | J22: S.G.AC | K22: 1.03
A23: 6. Final Wt. (g) [Test Complete]
A24: 7. Volume of Mix (cm3) [5-6] | E24: =IF(E18="","",E22-E23) ->  | F24: =IF(F18="","",F22-F23) ->  | G24: =IF(G18="","",G22-G23) ->  | J24: E.S.G.A. | K24: =IF(H25="","",IF(H28="",(100-B15)/((100/H25)-(B15/K22)),(100-B15)/((100/H28)-(B15/K22)))) -> 
A25: 8. Gmm Without Dry-back (3/7) | E25: =IF(E18="","",E20/E24) ->  | F25: =IF(F18="","",F20/F24) ->  | G25: =IF(G18="","",G20/G24) ->  | H25: =IF(E25="","",AVERAGE(E25:G25)) -> 
A26: 9. Volume of Absorbed Water (cm3)
A27: 10. Adjusted Volume of Mix (cm3) [7+9] | E27: =IF(E26="","",E24+E26) ->  | F27: =IF(F26="","",F24+F26) ->  | G27: =IF(G26="","",G24+G26) -> 
A28: 11. Gmm With Dry-back (3/10) | E28: =IF(E27="","",E20/E27) ->  | F28: =IF(F27="","",F20/F27) ->  | G28: =IF(G27="","",G20/G27) ->  | H28: =IF(E28="","",AVERAGE(E28:G28)) -> 
A29: Gyratory Specimen Properties
A30: Unit Wt. (lb/ft3) = | C30: =IF(L17="","",L17) ->  | D30: D/A Ratio = | E30: =IF($C$33="","",('Design Data'!$T$28/E32)) ->  | F30: AC (%) = | H30: =IF(B15="","",B15) -> 
A31: % Air Voids = | C31: =IF(E31="","",((+E31-K17)/E31)*100) ->  | D31: Gmm = | E31: =IF(H28="",H25,H28) ->  | F31: % VMA = | H31: =IF(C33="","",(100-(K17*(100-B15)/C33))) -> 
A32: % VFA = | C32: =IF(C31="","",(H31-C31)/H31*100) ->  | D32: % Eff. AC = | E32: =IF(B15="","",(B15-H32)) ->  | F32: % Abs. AC (Mix) = | H32: =IF(E33="","",(K24-K21)/(K24*K21)*K22*(100-E33)) -> 
A33: Gsb = | D33: Gse = | E33: =K24 ->  | F33: ESAL Class | H33: =IF('Design Data'!H20="","",'Design Data'!H20) -> 
A35: Deviations from Test Method:

Sheet Graphs
F1: KENTUCKY DEPARTMENT OF HIGHWAYS | K1: ='Design Data'!U2 -> October 2022
F2: DIVISION OF MATERIALS
F3: Laboratory Mix Design
A5: Mix ID #: | B5: ='Design Data'!$H$10 -> 0 | C5: County: | D5: ='Design Data'!$K$10 -> 0 | F5: Type Mix: | G5: ='Chart Data'!$W$14 -> 
A6: Project Number: | C6: ='Design Data'!$C$14 -> Enter Project(s) & Line Item(s) | H6: Ndes Gyrations: | J6: ='Design Data'!$Q$88 -> 
C7: ='Design Data'!$C$15 -> On 'Project Items' Tab. | H7: Lab : | J7: ='Design Data'!$H$12 -> 0
A8: Contractor & Loc.: | C8: ='Design Data'!$I$15 ->  | H8: Date Completed: | J8: =IF('Design Data'!$H$86="",'Design Data'!$H$16,'Design Data'!$H$86) -> 00:00:00
H9: Date Released: | J9: ='Design Data'!$H$16 -> 00:00:00
I14: RESULTS:
I17: % AC:
I20: % Gmm @ Nini:
I23: % Air Voids:
I26: % VMA:
I29: =IF(AND(ISNUMBER('Design Data'!H20),'Chart Data'!J48=0.5,'Design Data'!O63<5,'Chart Data'!H48<>20550),"WARNING: Cannot choose AC%",IF(AND(ISNUMBER('Design Data'!H20),'Chart Data'!J48=0.38,'Design Data'!O63<5.3),"WARNING: Cannot choose AC%","")) -> 
I30: =IF(AND(ISNUMBER('Design Data'!H20),'Chart Data'!J48=0.5,'Design Data'!O63<5,'Chart Data'!H48<>20550),"below 5.0% according to",IF(AND(ISNUMBER('Design Data'!H20),'Chart Data'!J48=0.38,'Design Data'!O63<5.3),"below 5.3% according to","")) -> 
I31: =IF(AND(ISNUMBER('Design Data'!H20),'Chart Data'!J48=0.5,'Design Data'!O63<5,'Chart Data'!H48<>20550),"current specification.",IF(AND(ISNUMBER('Design Data'!H20),'Chart Data'!J48=0.38,'Design Data'!O63<5.3),"current specification.","")) -> 
I37: REMARKS:
I54: Technical Responsibility:
F58: =F1 -> KENTUCKY DEPARTMENT OF HIGHWAYS | K58: =K1 -> October 2022
F59: =F2 -> DIVISION OF MATERIALS
F60: =F3 -> Laboratory Mix Design
A62: Mix ID #: | B62: =B5 -> 0 | C62: County: | D62: =D5 -> 0 | F62: Type Mix: | G62: =G5 -> 
A63: Project Number: | C63: =C6 -> Enter Project(s) & Line Item(s) | H63: Ndes Gyrations: | J63: =J6 -> 
C64: =C7 -> On 'Project Items' Tab. | H64: Lab: | J64: =J7 -> 0
A65: Contractor & Loc.: | C65: =C8 ->  | H65: Date Completed: | J65: =J8 -> 00:00:00
H66: Date Released: | J66: =J9 -> 00:00:00
I71: RESULTS:
I74: % AC: | K74: =K17 -> 0
I77: % VFA:
I80: Unit Weight (pcf):
I83: Gmm:
I86: =I29 -> 
I87: =I30 -> 
I88: =I31 -> 
I94: REMARKS:
I111: Technical Responsibility:
I113: =I56 -> 0
F115: =F1 -> KENTUCKY DEPARTMENT OF HIGHWAYS | K115: =K1 -> October 2022
F116: =F2 -> DIVISION OF MATERIALS
F117: =F3 -> Laboratory Mix Design
A119: Mix ID #: | B119: =B5 -> 0 | C119: County: | D119: =D5 -> 0 | F119: Type Mix: | G119: =G5 -> 
A120: Project Number: | C120: =C6 -> Enter Project(s) & Line Item(s) | H120: Ndes Gyrations: | J120: =J6 -> 
C121: =C7 -> On 'Project Items' Tab. | H121: Lab: | J121: =J7 -> 0
A122: Contractor & Loc.: | C122: =C8 ->  | H122: Date Completed: | J122: =J8 -> 00:00:00
H123: Date Released: | J123: =J9 -> 00:00:00
I128: RESULTS:
I131: % AC: | K131: =K17 -> 0
I134: % Eff. AC: | K134: ='Chart Data'!BL17 -> 
I137: Film Thickness (µm):
I140: Dust/Asphalt Ratio:
I143: =I86 -> 
I144: =I87 -> 
I145: =I88 -> 
I151: REMARKS:
I168: Technical Responsibility:
I170: =I56 -> 0

Sheet TSR
O1: ='Design Data'!U2 -> October 2022
A2: Kentucky Transportation Cabinet, Department of Highways, Division of Materials
A3: Asphalt Mixtures Testing Section
A4: 1227 Wilkinson Boulevard, Frankfort, KY 40601-1226
A7: Percentage of Tensile Strength Retained (% TSR) Results
A9: MIX ID #: | B9: =IF('Design Data'!H10="","",'Design Data'!H10) ->  | F9: COUNTY: | H9: =IF('Design Data'!K10="","",'Design Data'!K10) ->  | J9: TYPE OF MIX.: | L9: ='Chart Data'!W14 -> 
A11: PROJ. #: | B11: =IF('Design Data'!C14="","",'Design Data'!C14) -> Enter Project(s) & Line Item(s) | F11: LAB: | H11: =IF('Design Data'!H12="","",'Design Data'!H12) ->  | J11: CONTR. & LOC.: | L11: =IF('Design Data'!Q14="","",'Design Data'!I15) -> 
B12: =IF('Design Data'!C15="","",'Design Data'!C15) -> On 'Project Items' Tab.
A13: BIND. GRADE: | B13: =IF('Design Data'!C18="","",'Design Data'!C18) ->  | F13: TSRs made with: | H13: =IF('Chart Data'!AJ37="","",'Chart Data'!AJ37) ->  | J13: TEST METHOD: | L13: ASTM D4867
A14: (as per bid item)
A15: BIND. SOURCE: | B15: =IF('Design Data'!H18="","",'Design Data'!A17) ->  | F15: MIX/COMP TEMP: | H15: =IF(H13="","",VLOOKUP(H13,'Chart Data'!J33:K36,2,FALSE)) ->  | K15: Test Specimen Results
K16: Sample Identification
A17: =IF(B31=150,"TSR specimens are to be compacted to a height","TSR specimens are to be compacted by the") -> TSR specimens are to be compacted to a height | G17: % AC: | H17: % ADDITIVE: | K17: Sample Aggregate Weight (g)
A18: =IF(B31=150,"of 95.0 mm with a target air void percentage of","amount of blows that will yeild 7.0% (+ or - 1.0%)") -> of 95.0 mm with a target air void percentage of | K18: Grams of Asphalt Binder (g) | N18: =IF(N17="","",(($G$18)*N17)/(100-($G$18))) ->  | O18: =IF(O17="","",(($G$18)*O17)/(100-($G$18))) -> 
A19: =IF(B31=150,"7.0 % (+ or - 1.0 %). The target degree of initial","air voids. The target degree of initial saturation") -> 7.0 % (+ or - 1.0 %). The target degree of initial | G19: TYPE OF ADDITIVE: | K19: Dry Weight in Air (g)
A20: =IF(B31=150,"saturation is 65.0% (+ or - 5.0 %).","is 65.0% (+ or - 5.0%)") -> saturation is 65.0% (+ or - 5.0 %). | K20: Weight in Water (g)
K21: SSD Weight (g)
A22: Process | C22: Date: | E22: Time: | H22: By: | K22: Bulk Volume (cm3) | N22: =IF(N21="","",N21-N20) ->  | O22: =IF(O21="","",O21-O20) -> 
A23: TSR's Made: | K23: Bulk Specific Gravity | N23: =IF(N22="","",(N19/N22)) ->  | O23: =IF(O22="","",(O19/O22)) -> 
A24: TSR's Bulked: | K24: Maximum Specific Gravity | O24: =IF(N24="","",N24) -> 
A25: TSR's Saturated: | K25: % Air Voids | N25: =IF(N21="","",(100*(N24-N23)/N24)) ->  | O25: =IF(O21="","",(100*(O24-O23)/O24)) -> 
A26: TSR's in Freezer: | K26: Target % Air Voids | N26: =IF(N24="","",7) ->  | O26: =IF(N24="","","%") -> 
A27: TSR's in 140oF Bath: | K27: Target Aggregate Weight (g) | N27: =IF($N$21="","",(N17+(((N25-N26)/(N25-O25))*(O17-N17)))) -> 
A28: TSR's Broken : | K28: Asphalt Binder (g) | N28: =IF(N27="","",(($G$18)*N27)/(100-($G$18))) -> 
A30: Sample ID | B30: 1 | C30: 2 | D30: 3 | E30: 4 | F30: 5 | G30: 6 | H30: Average | I30: 7 | J30: 8 | K30: 9 | L30: 10 | M30: 11 | N30: 12 | O30: Average
A31: Diameter (mm) | B31: 150 | C31: =$B$31 -> 150 | D31: =$B$31 -> 150 | E31: =$B$31 -> 150 | F31: =$B$31 -> 150 | G31: =$B$31 -> 150 | I31: =$B$31 -> 150 | J31: 150 | K31: 150 | L31: 150 | M31: 150 | N31: 150
A32: Thickness (mm)
A33: Dry Weight (g)
A34: SSD Weight (g)
A35: Wt. in Water (g)
A36: Volume (cm3) | B36: =IF(B34="","",B34-B35) ->  | I36: =IF(I34="","",I34-I35) -> 
A37: Bulk Spec. Gravity | B37: =IF(B36="","",(B33/B36)) ->  | I37: =IF(I36="","",(I33/I36)) -> 
A38: Max. Sp. Gravity | C38: =IF(C35="","",$B$38) ->  | D38: =IF(D35="","",$B$38) ->  | E38: =IF(E35="","",$B$38) ->  | F38: =IF(F35="","",$B$38) ->  | G38: =IF(G35="","",$B$38) ->  | I38: =IF(I35="","",$B$38) -> 
A39: % Air Voids | B39: =IF(B37="","",(100*(B38-B37)/B38)) ->  | H39: =IF(B39="","",(AVERAGE(B39:G39))) ->  | I39: =IF(I37="","",(100*(I38-I37)/I38)) ->  | O39: =IF(I39="","",(AVERAGE(I39:N39))) -> 
A40: Vol. Air Voids (cm3) | B40: =IF(B39="","",(B39*B36/100)) ->  | I40: =IF(I39="","",(I39*I36/100)) -> 
A41: Load (lbf)
A42: Saturated
A43: Sample ID | B43: =B30 -> 1 | C43: 2 | D43: 3 | E43: 4 | F43: 5 | G43: 6 | H43: Average | I43: =I30 -> 7 | J43: 8 | K43: 9 | L43: 10 | M43: 11 | N43: 12 | O43: Average
A44: SSD Weight (g)
A45: Vol. Abs. Wat. (cm3) | B45: =IF(B44-B34>0,B44-B33," ") ->  | I45: =IF(I44-I34>0,I44-I33," ") -> 
A46: % Saturation | B46: =IF(ISNUMBER(B45),100*B45/B40," ") ->  | H46: =IF(ISERROR(AVERAGE(B46:G46)),"",AVERAGE(B46:G46)) ->  | I46: =IF(ISNUMBER(I45),100*I45/I40," ") ->  | O46: =IF(ISERROR(AVERAGE(I46:N46)),"",AVERAGE(I46:N46)) -> 
A47: Conditioned 24 hrs. in 140 oF water
A48: Sample ID | B48: =B43 -> 1 | C48: 2 | D48: 3 | E48: 4 | F48: 5 | G48: 6 | H48: Average | I48: =I43 -> 7 | J48: 8 | K48: 9 | L48: 10 | M48: 11 | N48: 12 | O48: Average
A49: Thickness (mm)
A50: SSD Weight (g)
A51: Vol. Abs. Wat. (cm3) | B51: =IF(B50-B34>0,B50-B33," ") ->  | I51: =IF(I50-I34>0,I50-I33," ") -> 
A52: % Saturation | B52: =IF(ISNUMBER(B51),100*B51/B40," ") ->  | H52: =IF(ISERROR(AVERAGE(B52:G52)),"",AVERAGE(B52:G52)) ->  | I52: =IF(ISNUMBER(I51),100*I51/I40," ") ->  | O52: =IF(ISERROR(AVERAGE(I52:N52)),"",AVERAGE(I52:N52)) -> 
A53: Load (lbf)
A54: Wet Strength (psi) | B54: =IF(B49="","",((2*B53)/((B31/25.4)*(B49/25.4)*PI()))) ->  | H54: =IF(ISERROR(AVERAGE(B54:G54)),"",AVERAGE(B54:G54)) ->  | I54: =IF(I49="","",((2*I53)/((I31/25.4)*(I49/25.4)*PI()))) ->  | O54: =IF(ISERROR(AVERAGE(I54:N54)),"",AVERAGE(I54:N54)) -> 
A55: Dry Strength (psi) | B55: =IF(ISNUMBER(B41),(IF(ISNUMBER(B49),"",IF((2*B41)/((B31/25.4)*(B32/25.4)*PI())>0,(2*B41)/((B31/25.4)*(B32/25.4)*PI())," "))),"") ->  | H55: =IF(ISERROR(AVERAGE(B55:G55)),"",AVERAGE(B55:G55)) ->  | I55: =IF(ISNUMBER(I41),(IF(ISNUMBER(I49),"",IF((2*I41)/((I31/25.4)*(I32/25.4)*PI())>0,(2*I41)/((I31/25.4)*(I32/25.4)*PI())," "))),"") ->  | O55: =IF(ISERROR(AVERAGE(I55:N55)),"",AVERAGE(I55:N55)) -> 
C57: % TSR Without Additive = | G57: =IF(H54="","",(H54/H55*100)) ->  | J57: % TSR With Additive = | N57: =IF(O54="","",(O54/O55*100)) -> 
A59: REMARKS:

Sheet Performance Specimens (hidden)
O1: ='Design Data'!U2 -> October 2022
A2: Kentucky Transportation Cabinet, Department of Highways, Division of Materials
A3: Asphalt Mixtures Testing Section
A4: 1227 Wilkinson Boulevard, Frankfort, KY 40601-1226
A7: Performance Specimen Fabrication Results
A9: MIX ID #: | B9: =IF('Design Data'!H10="","",'Design Data'!H10) ->  | F9: COUNTY: | H9: =IF('Design Data'!K10="","",'Design Data'!K10) ->  | J9: TYPE OF MIX.: | L9: ='Chart Data'!W14 -> 
A11: PROJ. #: | B11: =IF('Design Data'!C14="","",'Design Data'!C14) -> Enter Project(s) & Line Item(s) | F11: LAB: | H11: =IF('Design Data'!H12="","",'Design Data'!H12) ->  | J11: CONTR. & LOC.: | L11: =IF('Design Data'!Q14="","",'Design Data'!I15) -> 
B12: =IF('Design Data'!C15="","",'Design Data'!C15) -> On 'Project Items' Tab.
A13: BIND. GRADE: | B13: =IF('Design Data'!C18="","",'Design Data'!C18) ->  | F13: MADE WITH: | H13: =IF('Chart Data'!AJ37="","",'Chart Data'!AJ37) -> 
A14: (as per bid item)
A15: BIND. SOURCE: | B15: =IF('Design Data'!H18="","",'Design Data'!A17) ->  | F15: MIX/COMP TEMP: | H15: =IF(H13="","",VLOOKUP(H13,'Chart Data'!J33:K36,2,FALSE)) ->  | K15: Test Specimen Results
K16: Sample Identification
A17: =IF(B33=150,"Performance specimens are to be compacted to a","TSR specimens are to be compacted by the") -> Performance specimens are to be compacted to a | G17: % AC: | H17: % ADDITIVE: | K17: Sample Aggregate Weight (g)
A18: =IF(B33=150,"height of 62.0 mm with a target air void percentage","amount of blows that will yeild 7.0% (+ or - 1.0%)") -> height of 62.0 mm with a target air void percentage | K18: Grams of Asphalt Binder (g) | N18: =IF(N17="","",(($G$18)*N17)/(100-($G$18))) ->  | O18: =IF(O17="","",(($G$18)*O17)/(100-($G$18))) -> 
A19: =IF(B33=150,"of 7.0 % (+ or - 0.5 %).","air voids. The target degree of initial saturation") -> of 7.0 % (+ or - 0.5 %). | G19: TYPE OF ADDITIVE: | K19: Dry Weight in Air (g)
A20: =IF(B33=150,"","is 65.0% (+ or - 5.0%)") ->  | K20: Weight in Water (g)
K21: SSD Weight (g)
A22: Lab Process | C22: Date: | E22: Time: | H22: By: | K22: Bulk Volume (cm3) | N22: =IF(N21="","",N21-N20) ->  | O22: =IF(O21="","",O21-O20) -> 
A23: Specimens Mixed: | K23: Bulk Specific Gravity | N23: =IF(N22="","",(N19/N22)) ->  | O23: =IF(O22="","",(O19/O22)) -> 
A24: Specimens Oven Conditioned: | K24: Maximum Specific Gravity | O24: =IF(N24="","",N24) -> 
A25: Specimens Made: | K25: % Air Voids | N25: =IF(N21="","",(100*(N24-N23)/N24)) ->  | O25: =IF(O21="","",(100*(O24-O23)/O24)) -> 
A26: Specimens Bulked: | K26: Target % Air Voids | N26: =IF(N24="","",7) -> 
A27: CT Specimens in 77 °F Bath: | K27: Target Aggregate Weight (g) | N27: =IF($N$21="","",(N17+(((N25-N26)/(N25-O25))*(O17-N17)))) -> 
A28: CT Specimens Broken: | K28: Asphalt Binder (g) | N28: =IF(N27="","",(($G$18)*N27)/(100-($G$18))) -> 
A29: Hamburg Specimens in Bath:
A30: Hamburg Specimens Run:
A32: Sample ID | B32: 1 | C32: 2 | D32: 3 | E32: 4 | F32: 5 | G32: 6 | H32: Average | I32: 7 | J32: 8 | K32: 9 | L32: 10 | M32: 11 | N32: 12 | O32: Average
A33: Diameter (mm) | B33: 150 | C33: =$B$33 -> 150 | D33: =$B$33 -> 150 | E33: =$B$33 -> 150 | F33: =$B$33 -> 150 | G33: =$B$33 -> 150 | I33: =$B$33 -> 150 | J33: 150 | K33: 150 | L33: 150 | M33: 150 | N33: 150
A34: Thickness (mm)
A35: Dry Weight (g)
A36: SSD Weight (g)
A37: Wt. in Water (g)
A38: Volume (cm3) | B38: =IF(B36="","",B36-B37) ->  | I38: =IF(I36="","",I36-I37) -> 
A39: Bulk Spec. Gravity | B39: =IF(B38="","",(B35/B38)) ->  | I39: =IF(I38="","",(I35/I38)) -> 
A40: Max. Sp. Gravity | C40: =IF(C37="","",$B$40) ->  | D40: =IF(D37="","",$B$40) ->  | E40: =IF(E37="","",$B$40) ->  | F40: =IF(F37="","",$B$40) ->  | G40: =IF(G37="","",$B$40) ->  | I40: =IF(I37="","",$B$40) -> 
A41: % Air Voids | B41: =IF(B39="","",(100*(B40-B39)/B40)) ->  | H41: =IF(B41="","",(AVERAGE(B41:G41))) ->  | I41: =IF(I39="","",(100*(I40-I39)/I40)) ->  | O41: =IF(I41="","",(AVERAGE(I41:N41))) -> 
A43: REMARKS:

Sheet KYCT Data (hidden)
A1: V1.03 | B1: 850 - IDEAL-CT | P1: ='Design Data'!U2 -> October 2022
P3: Show/Hide Formula Rows | X3: Test Number | Y3: 1
A4: Project ID | X4: =B4 -> 0
A5: Num Points | B5: =COUNTA(INDIRECT("A"&FirstRow&":A"&FirstRow+1000)) -> 0 | C5: Num Points | D5: =COUNTA(INDIRECT("C"&FirstRow&":C"&FirstRow+1000)) -> 0 | E5: Num Points | F5: =COUNTA(INDIRECT("E"&FirstRow&":E"&FirstRow+1000)) -> 0 | G5: Num Points | H5: =COUNTA(INDIRECT("G"&FirstRow&":G"&FirstRow+1000)) -> 0 | I5: Num Points | J5: =COUNTA(INDIRECT("I"&FirstRow&":I"&FirstRow+1000)) -> 0 | K5: Num Points | L5: =COUNTA(INDIRECT("K"&FirstRow&":K"&FirstRow+1000)) -> 0 | M5: Num Points | N5: =COUNTA(INDIRECT("M"&FirstRow&":M"&FirstRow+1000)) -> 0 | O5: Num Points | P5: =COUNTA(INDIRECT("O"&FirstRow&":O"&FirstRow+1000)) -> 0 | X5: =IF(OFFSET(A5:P1031,0,(TestNum-1)*2)="",NA(),OFFSET(A5:P1031,0,(TestNum-1)*2)) -> 
A6: Peak Load | B6: =MAX(INDIRECT("B"&FirstRow&":B"&FirstRow+B5)) -> 0 | C6: Peak Load | D6: =MAX(INDIRECT("D"&FirstRow&":D"&FirstRow+D5)) -> 0 | E6: Peak Load | F6: =MAX(INDIRECT("F"&FirstRow&":F"&FirstRow+F5)) -> 0 | G6: Peak Load | H6: =MAX(INDIRECT("H"&FirstRow&":H"&FirstRow+H5)) -> 0 | I6: Peak Load | J6: =MAX(INDIRECT("J"&FirstRow&":J"&FirstRow+J5)) -> 0 | K6: Peak Load | L6: =MAX(INDIRECT("L"&FirstRow&":L"&FirstRow+L5)) -> 0 | M6: Peak Load | N6: =MAX(INDIRECT("N"&FirstRow&":N"&FirstRow+N5)) -> 0 | O6: Peak Load | P6: =MAX(INDIRECT("P"&FirstRow&":P"&FirstRow+P5)) -> 0 | R6: First Row of Data | S6: 31
A7: 85% Peak | B7: =0.85*B6 -> 0 | C7: 85% Peak | D7: =0.85*D6 -> 0 | E7: 85% Peak | F7: =0.85*F6 -> 0 | G7: 85% Peak | H7: =0.85*H6 -> 0 | I7: 85% Peak | J7: =0.85*J6 -> 0 | K7: 85% Peak | L7: =0.85*L6 -> 0 | M7: 85% Peak | N7: =0.85*N6 -> 0 | O7: 85% Peak | P7: =0.85*P6 -> 0
A8: 75% Peak | B8: =0.75*B6 -> 0 | C8: 75% Peak | D8: =0.75*D6 -> 0 | E8: 75% Peak | F8: =0.75*F6 -> 0 | G8: 75% Peak | H8: =0.75*H6 -> 0 | I8: 75% Peak | J8: =0.75*J6 -> 0 | K8: 75% Peak | L8: =0.75*L6 -> 0 | M8: 75% Peak | N8: =0.75*N6 -> 0 | O8: 75% Peak | P8: =0.75*P6 -> 0
A9: 65% Peak | B9: =0.65*B6 -> 0 | C9: 65% Peak | D9: =0.65*D6 -> 0 | E9: 65% Peak | F9: =0.65*F6 -> 0 | G9: 65% Peak | H9: =0.65*H6 -> 0 | I9: 65% Peak | J9: =0.65*J6 -> 0 | K9: 65% Peak | L9: =0.65*L6 -> 0 | M9: 65% Peak | N9: =0.65*N6 -> 0 | O9: 65% Peak | P9: =0.65*P6 -> 0
A10: Rowpeak | B10: =MATCH(B6,INDIRECT("B"&FirstRow&":B"&FirstRow+B5),0)+FirstRow-1 ->  | C10: Rowpeak | D10: =MATCH(D6,INDIRECT("D"&FirstRow&":D"&FirstRow+D5),0)+FirstRow-1 ->  | E10: Rowpeak | F10: =MATCH(F6,INDIRECT("F"&FirstRow&":F"&FirstRow+F5),0)+FirstRow-1 ->  | G10: Rowpeak | H10: =MATCH(H6,INDIRECT("H"&FirstRow&":H"&FirstRow+H5),0)+FirstRow-1 ->  | I10: Rowpeak | J10: =MATCH(J6,INDIRECT("J"&FirstRow&":J"&FirstRow+J5),0)+FirstRow-1 ->  | K10: Rowpeak | L10: =MATCH(L6,INDIRECT("L"&FirstRow&":L"&FirstRow+L5),0)+FirstRow-1 ->  | M10: Rowpeak | N10: =MATCH(N6,INDIRECT("N"&FirstRow&":N"&FirstRow+N5),0)+FirstRow-1 ->  | O10: Rowpeak | P10: =MATCH(P6,INDIRECT("P"&FirstRow&":P"&FirstRow+P5),0)+FirstRow-1 -> 
A11: Row(85) | B11: =MATCH(B7,INDIRECT("B"&B10&":B"&FirstRow+B5),-1)+B10 ->  | C11: Row(85) | D11: =MATCH(D7,INDIRECT("D"&D10&":D"&FirstRow+D5),-1)+D10 ->  | E11: Row(85) | F11: =MATCH(F7,INDIRECT("F"&F10&":F"&FirstRow+F5),-1)+F10 ->  | G11: Row(85) | H11: =MATCH(H7,INDIRECT("H"&H10&":H"&FirstRow+H5),-1)+H10 ->  | I11: Row(85) | J11: =MATCH(J7,INDIRECT("J"&J10&":J"&FirstRow+J5),-1)+J10 ->  | K11: Row(85) | L11: =MATCH(L7,INDIRECT("L"&L10&":L"&FirstRow+L5),-1)+L10 ->  | M11: Row(85) | N11: =MATCH(N7,INDIRECT("N"&N10&":N"&FirstRow+N5),-1)+N10 ->  | O11: Row(85) | P11: =MATCH(P7,INDIRECT("P"&P10&":P"&FirstRow+P5),-1)+P10 -> 
A12: Row(75) | B12: =MATCH(B8,INDIRECT("B"&B10&":B"&FirstRow+B5),-1)+B10 ->  | C12: Row(75) | D12: =MATCH(D8,INDIRECT("D"&D10&":D"&FirstRow+D5),-1)+D10 ->  | E12: Row(75) | F12: =MATCH(F8,INDIRECT("F"&F10&":F"&FirstRow+F5),-1)+F10 ->  | G12: Row(75) | H12: =MATCH(H8,INDIRECT("H"&H10&":H"&FirstRow+H5),-1)+H10 ->  | I12: Row(75) | J12: =MATCH(J8,INDIRECT("J"&J10&":J"&FirstRow+J5),-1)+J10 ->  | K12: Row(75) | L12: =MATCH(L8,INDIRECT("L"&L10&":L"&FirstRow+L5),-1)+L10 ->  | M12: Row(75) | N12: =MATCH(N8,INDIRECT("N"&N10&":N"&FirstRow+N5),-1)+N10 ->  | O12: Row(75) | P12: =MATCH(P8,INDIRECT("P"&P10&":P"&FirstRow+P5),-1)+P10 -> 
A13: Row(65) | B13: =MATCH(B9,INDIRECT("B"&B10&":B"&FirstRow+B5),-1)+B10 ->  | C13: Row(65) | D13: =MATCH(D9,INDIRECT("D"&D10&":D"&FirstRow+D5),-1)+D10 ->  | E13: Row(65) | F13: =MATCH(F9,INDIRECT("F"&F10&":F"&FirstRow+F5),-1)+F10 ->  | G13: Row(65) | H13: =MATCH(H9,INDIRECT("H"&H10&":H"&FirstRow+H5),-1)+H10 ->  | I13: Row(65) | J13: =MATCH(J9,INDIRECT("J"&J10&":J"&FirstRow+J5),-1)+J10 ->  | K13: Row(65) | L13: =MATCH(L9,INDIRECT("L"&L10&":L"&FirstRow+L5),-1)+L10 ->  | M13: Row(65) | N13: =MATCH(N9,INDIRECT("N"&N10&":N"&FirstRow+N5),-1)+N10 ->  | O13: Row(65) | P13: =MATCH(P9,INDIRECT("P"&P10&":P"&FirstRow+P5),-1)+P10 -> 
A14: l75 | B14: =IF(ISNA(B12),"",INDIRECT("A"&B12)) ->  | C14: l75 | D14: =IF(ISNA(D12),"",INDIRECT("C"&D12)) ->  | E14: l75 | F14: =IF(ISNA(F12),"",INDIRECT("E"&F12)) ->  | G14: l75 | H14: =IF(ISNA(H12),"",INDIRECT("G"&H12)) ->  | I14: l75 | J14: =IF(ISNA(J12),"",INDIRECT("I"&J12)) ->  | K14: l75 | L14: =IF(ISNA(L12),"",INDIRECT("K"&L12)) ->  | M14: l75 | N14: =IF(ISNA(N12),"",INDIRECT("M"&N12)) ->  | O14: l75 | P14: =IF(ISNA(P12),"",INDIRECT("O"&P12)) -> 
A15: m | B15: =ABS(SLOPE((INDEX(B:B,B11):INDEX(B:B,B13)),(INDEX(A:A,B11):INDEX(A:A,B13)))) ->  | C15: m | D15: =ABS(SLOPE((INDEX(D:D,D11):INDEX(D:D,D13)),(INDEX(C:C,D11):INDEX(C:C,D13)))) ->  | E15: m | F15: =ABS(SLOPE((INDEX(F:F,F11):INDEX(F:F,F13)),(INDEX(E:E,F11):INDEX(E:E,F13)))) ->  | G15: m | H15: =ABS(SLOPE((INDEX(H:H,H11):INDEX(H:H,H13)),(INDEX(G:G,H11):INDEX(G:G,H13)))) ->  | I15: m | J15: =ABS(SLOPE((INDEX(J:J,J11):INDEX(J:J,J13)),(INDEX(I:I,J11):INDEX(I:I,J13)))) ->  | K15: m | L15: =ABS(SLOPE((INDEX(L:L,L11):INDEX(L:L,L13)),(INDEX(K:K,L11):INDEX(K:K,L13)))) ->  | M15: m | N15: =ABS(SLOPE((INDEX(N:N,N11):INDEX(N:N,N13)),(INDEX(M:M,N11):INDEX(M:M,N13)))) ->  | O15: m | P15: =ABS(SLOPE((INDEX(P:P,P11):INDEX(P:P,P13)),(INDEX(O:O,P11):INDEX(O:O,P13)))) -> 
A16: Series Name | B16: =IF(ISBLANK(B22),IF(ISBLANK(A28),"",A28),B22) ->  | C16: Series Name | D16: =IF(ISBLANK(D22),IF(ISBLANK(C28),"",C28),D22) ->  | E16: Series Name | F16: =IF(ISBLANK(F22),IF(ISBLANK(E28),"",E28),F22) ->  | G16: Series Name | H16: =IF(ISBLANK(H22),IF(ISBLANK(G28),"",G28),H22) ->  | I16: Series Name | J16: =IF(ISBLANK(J22),IF(ISBLANK(I28),"",I28),J22) ->  | K16: Series Name | L16: =IF(ISBLANK(L22),IF(ISBLANK(K28),"",K28),L22) ->  | M16: Series Name | N16: =IF(ISBLANK(N22),IF(ISBLANK(M28),"",M28),N22) ->  | O16: Series Name | P16: =IF(ISBLANK(P22),IF(ISBLANK(O28),"",O28),P22) -> 
A17: Row < 0.1 | B17: =MATCH(0.1,INDIRECT("B"&B10&":B"&FirstRow+B5),-1)+B10 ->  | C17: Row < 0.1 | D17: =MATCH(0.1,INDIRECT("D"&D10&":D"&FirstRow+D5),-1)+D10 ->  | E17: Row < 0.1 | F17: =MATCH(0.1,INDIRECT("F"&F10&":F"&FirstRow+F5),-1)+F10 ->  | G17: Row < 0.1 | H17: =MATCH(0.1,INDIRECT("H"&H10&":H"&FirstRow+H5),-1)+H10 ->  | I17: Row < 0.1 | J17: =MATCH(0.1,INDIRECT("J"&J10&":J"&FirstRow+J5),-1)+J10 ->  | K17: Row < 0.1 | L17: =MATCH(0.1,INDIRECT("L"&L10&":L"&FirstRow+L5),-1)+L10 ->  | M17: Row < 0.1 | N17: =MATCH(0.1,INDIRECT("N"&N10&":N"&FirstRow+N5),-1)+N10 ->  | O17: Row < 0.1 | P17: =MATCH(0.1,INDIRECT("P"&P10&":P"&FirstRow+P5),-1)+P10 -> 
A18: m75 | B18: =IF(ISERROR(B15),"",ABS(B15)) ->  | C18: m75 | D18: =IF(ISERROR(D15),"",ABS(D15)) ->  | E18: m75 | F18: =IF(ISERROR(F15),"",ABS(F15)) ->  | G18: m75 | H18: =IF(ISERROR(H15),"",ABS(H15)) ->  | I18: m75 | J18: =IF(ISERROR(J15),"",ABS(J15)) ->  | K18: m75 | L18: =IF(ISERROR(L15),"",ABS(L15)) ->  | M18: m75 | N18: =IF(ISERROR(N15),"",ABS(N15)) ->  | O18: m75 | P18: =IF(ISERROR(P15),"",ABS(P15)) -> 
A19: Wf | B19: =IF(ISNA(B17),"",SUMPRODUCT((INDIRECT("A"&FirstRow+1&":A"&B17))-(INDIRECT("A"&FirstRow&":A"&B17-1)),(((INDIRECT("B"&FirstRow+1&":B"&B17))+(INDIRECT("B"&FirstRow&":B"&B17-1)))/2))) ->  | C19: Wf | D19: =IF(ISNA(D17),"",SUMPRODUCT((INDIRECT("C"&FirstRow+1&":C"&D17))-(INDIRECT("C"&FirstRow&":C"&D17-1)),(((INDIRECT("D"&FirstRow+1&":D"&D17))+(INDIRECT("D"&FirstRow&":D"&D17-1)))/2))) ->  | E19: Wf | F19: =IF(ISNA(F17),"",SUMPRODUCT((INDIRECT("E"&FirstRow+1&":E"&F17))-(INDIRECT("E"&FirstRow&":E"&F17-1)),(((INDIRECT("F"&FirstRow+1&":F"&F17))+(INDIRECT("F"&FirstRow&":F"&F17-1)))/2))) ->  | G19: Wf | H19: =IF(ISNA(H17),"",SUMPRODUCT((INDIRECT("G"&FirstRow+1&":G"&H17))-(INDIRECT("G"&FirstRow&":G"&H17-1)),(((INDIRECT("H"&FirstRow+1&":H"&H17))+(INDIRECT("H"&FirstRow&":H"&H17-1)))/2))) ->  | I19: Wf | J19: =IF(ISNA(J17),"",SUMPRODUCT((INDIRECT("I"&FirstRow+1&":I"&J17))-(INDIRECT("I"&FirstRow&":I"&J17-1)),(((INDIRECT("J"&FirstRow+1&":J"&J17))+(INDIRECT("J"&FirstRow&":J"&J17-1)))/2))) ->  | K19: Wf | L19: =IF(ISNA(L17),"",SUMPRODUCT((INDIRECT("K"&FirstRow+1&":K"&L17))-(INDIRECT("K"&FirstRow&":K"&L17-1)),(((INDIRECT("L"&FirstRow+1&":L"&L17))+(INDIRECT("L"&FirstRow&":L"&L17-1)))/2))) ->  | M19: Wf | N19: =IF(ISNA(N17),"",SUMPRODUCT((INDIRECT("M"&FirstRow+1&":M"&N17))-(INDIRECT("M"&FirstRow&":M"&N17-1)),(((INDIRECT("N"&FirstRow+1&":N"&N17))+(INDIRECT("N"&FirstRow&":N"&N17-1)))/2))) ->  | O19: Wf | P19: =IF(ISNA(P17),"",SUMPRODUCT((INDIRECT("O"&FirstRow+1&":O"&P17))-(INDIRECT("O"&FirstRow&":O"&P17-1)),(((INDIRECT("P"&FirstRow+1&":P"&P17))+(INDIRECT("P"&FirstRow&":P"&P17-1)))/2))) -> 
A20: Gf | B20: =IF(B19="","",(B19/(B25*B26))*1000000) ->  | C20: Gf | D20: =IF(D19="","",(D19/(D25*D26))*1000000) ->  | E20: Gf | F20: =IF(F19="","",(F19/(F25*F26))*1000000) ->  | G20: Gf | H20: =IF(H19="","",(H19/(H25*H26))*1000000) ->  | I20: Gf | J20: =IF(J19="","",(J19/(J25*J26))*1000000) ->  | K20: Gf | L20: =IF(L19="","",(L19/(L25*L26))*1000000) ->  | M20: Gf | N20: =IF(N19="","",(N19/(N25*N26))*1000000) ->  | O20: Gf | P20: =IF(P19="","",(P19/(P25*P26))*1000000) -> 
A21: CTIndex | B21: =IF(B20="","",(B26/62)*(B14/B25)*(B20/B18)) ->  | C21: CTIndex | D21: =IF(D20="","",(D26/62)*(D14/D25)*(D20/D18)) ->  | E21: CTIndex | F21: =IF(F20="","",(F26/62)*(F14/F25)*(F20/F18)) ->  | G21: CTIndex | H21: =IF(H20="","",(H26/62)*(H14/H25)*(H20/H18)) ->  | I21: CTIndex | J21: =IF(J20="","",(J26/62)*(J14/J25)*(J20/J18)) ->  | K21: CTIndex | L21: =IF(L20="","",(L26/62)*(L14/L25)*(L20/L18)) ->  | M21: CTIndex | N21: =IF(N20="","",(N26/62)*(N14/N25)*(N20/N18)) ->  | O21: CTIndex | P21: =IF(P20="","",(P26/62)*(P14/P25)*(P20/P18)) -> 
A22: Sample 1 ID | C22: Sample 2 ID | E22: Sample 3 ID | G22: Sample 4 ID | I22: Sample 5 ID | K22: Sample 6 ID | M22: Sample 7 ID | O22: Sample 8 ID
A23: Temp [C] | C23: Temp [C] | E23: Temp [C] | G23: Temp [C] | I23: Temp [C] | K23: Temp [C] | M23: Temp [C] | O23: Temp [C]
A24: Air Voids | C24: Air Voids | E24: Air Voids | G24: Air Voids | I24: Air Voids | K24: Air Voids | M24: Air Voids | O24: Air Voids
A25: Diameter | C25: Diameter | E25: Diameter | G25: Diameter | I25: Diameter | K25: Diameter | M25: Diameter | O25: Diameter
A26: Thickness | C26: Thickness | E26: Thickness | G26: Thickness | I26: Thickness | K26: Thickness | M26: Thickness | O26: Thickness
A27: Flow/Stability Data
A29: =IF(ISBLANK(A31),"",INDIRECT("A$"&MATCH(MAX(B31:B1031),B31:B1031,0)+FirstRow-1)) ->  | B29: =IF(ISBLANK(B31),"",MAX(B31:B1031)) ->  | C29: =IF(ISBLANK(C31),"",INDIRECT("C$"&MATCH(MAX(D31:D1031),D31:D1031,0)+FirstRow-1)) ->  | D29: =IF(ISBLANK(D31),"",MAX(D31:D1031)) ->  | E29: =IF(ISBLANK(E31),"",INDIRECT("E$"&MATCH(MAX(F31:F1031),F31:F1031,0)+FirstRow-1)) ->  | F29: =IF(ISBLANK(F31),"",MAX(F31:F1031)) ->  | G29: =IF(ISBLANK(G31),"",INDIRECT("g$"&MATCH(MAX(H31:H1031),H31:H1031,0)+FirstRow-1)) ->  | H29: =IF(ISBLANK(H31),"",MAX(H31:H1031)) ->  | I29: =IF(ISBLANK(I31),"",INDIRECT("I$"&MATCH(MAX(J31:J1031),J31:J1031,0)+FirstRow-1)) ->  | J29: =IF(ISBLANK(J31),"",MAX(J31:J1031)) ->  | K29: =IF(ISBLANK(K31),"",INDIRECT("K$"&MATCH(MAX(L31:L1031),L31:L1031,0)+FirstRow-1)) ->  | L29: =IF(ISBLANK(L31),"",MAX(L31:L1031)) ->  | M29: =IF(ISBLANK(M31),"",INDIRECT("M$"&MATCH(MAX(N31:N1031),N31:N1031,0)+FirstRow-1)) ->  | N29: =IF(ISBLANK(N31),"",MAX(N31:N1031)) ->  | O29: =IF(ISBLANK(O31),"",INDIRECT("O$"&MATCH(MAX(P31:P1031),P31:P1031,0)+FirstRow-1)) ->  | P29: =IF(ISBLANK(P31),"",MAX(P31:P1031)) -> 
A30: Flow (mm) | B30: Stability (kN) | C30: Flow | D30: Stability | E30: Flow | F30: Stability | G30: Flow | H30: Stability | I30: Flow | J30: Stability | K30: Flow | L30: Stability | M30: Flow | N30: Stability | O30: Flow | P30: Stability
R31: Max Scale | S31: =MAX(B31:B706,D31:D706,F31:F706,H31:H706,J31:J706,L31:L706,N31:N706,P31:P706) -> 0
R32: Port | S32: COM1
R33: Settings | S33: baud=38400 parity=N data=8 stop=1

Sheet Hamburg Data (hidden)
O1: ='Design Data'!U2 -> October 2022
A2: Kentucky Transportation Cabinet, Department of Highways, Division of Materials
A3: Asphalt Mixtures Testing Section
A4: 1227 Wilkinson Boulevard, Frankfort, KY 40601-1226
A7: Hamburg Wheel-Track Testing Results
A9: MIX ID #: | B9: =IF('Design Data'!H10="","",'Design Data'!H10) ->  | F9: COUNTY: | H9: =IF('Design Data'!K10="","",'Design Data'!K10) ->  | J9: TYPE OF MIX.: | L9: ='Chart Data'!W14 -> 
A11: PROJ. #: | B11: =IF('Design Data'!C14="","",'Design Data'!C14) -> Enter Project(s) & Line Item(s) | F11: LAB: | H11: =IF('Design Data'!H12="","",'Design Data'!H12) ->  | J11: CONTR. & LOC.: | L11: =IF('Design Data'!Q14="","",'Design Data'!I15) -> 
B12: =IF('Design Data'!C15="","",'Design Data'!C15) -> On 'Project Items' Tab.
A13: BIND. GRADE: | B13: =IF('Design Data'!C18="","",'Design Data'!C18) ->  | F13: MADE WITH: | H13: =IF('Chart Data'!AJ37="","",'Chart Data'!AJ37) ->  | J13: TEST METHOD: | L13: AASHTO T324
A14: (as per bid item)
A15: BIND. SOURCE: | B15: =IF('Design Data'!H18="","",'Design Data'!A17) ->  | F15: MIX/COMP TEMP: | H15: =IF(H13="","",VLOOKUP(H13,'Chart Data'!J33:K36,2,FALSE)) -> 
A17: S.I.P Criteria | G17: Pass Count | J17: Left Max | M17: Right Max
A18: Plot Count: | E18: 1000
A19: Stripping Limit Depth: | E19: 1 mm | G19: 100
A20: Stripping Limit Count: | E20: 50 passes | G20: 5000
A21: Left Creep Slope Start: | E21: 1000 | G21: 10000
A22: Right Creep Slope Start: | E22: 1000 | G22: 15000
G23: 20000
G24: 25000
A26: Left Max Rut Set Point: | G26: Max Deformation
G27: Pass Number
A28: Right Max Rut Set Point: | G28: SIP
A30: REMARKS:

Sheet Error (hidden)

Sheet Chart Data (hidden)
A1: Sieve | B1: JMF | C1: Opening | D1: Op.^0.45 | E1: Control Points | H1: X-Plot | I1: Y-Plot | L1: =IF(ISNUMBER('Design Data'!Q12),1,0) -> 0 | N1: =IF($K$48="E",1000,900) -> 900 | O1: =IF($K$48="E",N27+1000,N27+900) -> 25200 | P1: =IF($K$48="E",O27+1000,O27+900) -> 49500 | Q1: =IF($K$48="E",P27+1000,P27+900) -> 73800 | R1: =IF($K$48="E",Q27+1000,Q27+900) -> 98100 | T1: 0 | U1: 0 | W1: PG58-22 | X1: 60025 | Y1: =IF(W14="","",VLOOKUP(W15,W1:Z12,4,FALSE)) ->  | Z1: 1 | AA1: =IF($K$48="E",R27+1000,R27+900) -> 122400 | AB1: =IF($K$48="E",AA27+1000,AA27+900) -> 146700 | AC1: =IF($K$48="E",AB27+1000,AB27+900) -> 171000 | AD1: =IF($K$48="E",AC27+1000,AC27+900) -> 195300 | AE1: =IF($K$48="E",AD27+1000,AD27+900) -> 219600 | BO1: Coarse Aggregate Angularity Criteria | BR1: NMAS | BS1: VMA
A2: 2" | B2: ='Design Data'!T15 -> 100 | C2: 50 | D2: =C2^0.45 -> 5.814823032 | H2: =D2 -> 5.814823032 | I2: 0 | L2: =COUNTA('Design Data'!U16:U28) -> 1 | N2: =IF($K$48="E",N1+1000,N1+900) -> 1800 | O2: =IF($K$48="E",O1+1000,O1+900) -> 26100 | P2: =IF($K$48="E",P1+1000,P1+900) -> 50400 | Q2: 74700 | R2: 99000 | W2: PG58-28 | X2: 60050 | Y2: =IF(W14="","",VLOOKUP(W15,W1:Z12,2,FALSE)) ->  | Z2: 2 | AA2: =IF($K$48="E",AA1+1000,AA1+900) -> 123300 | AB2: 147600 | AC2: =IF($K$48="E",AC1+1000,AC1+900) -> 171900 | AD2: =IF($K$48="E",AD1+1000,AD1+900) -> 196200 | AE2: =IF($K$48="E",AE1+1000,AE1+900) -> 220500 | AH2: LAP100903 | AI2: Asphalt Materials @ Warsaw, IN | AM2: AMP090108 | AN2: American Asphalt of West Virginia @ Kenova | AR2: Dol. #10's Unwashed | AS2: 10293 | AV2: LU00642 | AY2: Nom. Max | AZ2: Rec. Type | BA2: Range | BB2: Item Binder | BC2: Total | BD2: Nom. Max | BE2: Item Binder | BF2: Rec. Type | BG2: Eff. Bind | BH2: Virgin Binder | BI2: Design Nom. Max | BK2: ='Chart Data'!J48 ->  | BO2: N/A | BR2: NO. 4 | BS2: 16
A3: 1 1/2" | B3: ='Design Data'!T16 -> 0 | C3: 37.5 | D3: 5.108743174 | E3: 25 | F3: =E3^0.45 -> 4.256699613 | G3: 100 | H3: =D2 -> 5.814823032 | I3: 100 | L3: =COUNTA('Design Data'!T16:T28) -> 1 | N3: =IF($K$48="E",N2+1000,N2+900) -> 2700 | O3: =IF($K$48="E",O2+1000,O2+900) -> 27000 | P3: 51300 | Q3: 75600 | R3: 99900 | W3: PG64-22 | X3: 60075 | Z3: 3 | AA3: 124200 | AB3: 148500 | AC3: 172800 | AD3: 197100 | AE3: 221400 | AH3: LAP100201 | AI3: ATS Asphalt Terminal @ Lexington | AM3: AMP070101 | AN3: ATS @ Lexington (Old Frankfort Pike)-Batch (#14) | AR3: Dol. #10's Washed | AS3: 10290 | AV3: LU01210 | AY3: =IF(OR($BK$2=0.5,$BK$2=0.38,$BK$2="No. 4"),1,0) -> 0 | AZ3: =IF($BK$7=BF3,1,0) -> 0 | BA3: =IF($BK$6<=17,1,0) -> 0 | BB3: =IF($BK$3=BE3,1,0) -> 0 | BC3: =SUM(AY3:BB3) -> 0 | BD3: 0.5,0.38,No. 4 | BE3: PG64-22 | BF3: RAP | BG3: <=17 | BH3: PG 64-22 | BI3: Design Binder | BK3: =F48 ->  | BO3: <=100mm | BP3: >100 mm | BR3: 0.38 | BS3: 15
A4: 1" | B4: ='Design Data'!T17 -> 0 | C4: 25 | D4: 4.256699613 | E4: 19 | F4: 3.762176102 | G4: 100 | H4: =D3 -> 5.108743174 | L4: =IF(ISNUMBER('Design Data'!H20),1,0) -> 0 | N4: 3600 | O4: 27900 | P4: 52200 | Q4: 76500 | R4: 100800 | W4: PG64-28 | X4: 60100 | Z4: 4 | AA4: 125100 | AB4: 149400 | AC4: 173700 | AD4: 198000 | AE4: 222300 | AH4: LAP100302 | AI4: BP @ Calumet | AM4: AMP070303 | AN4: ATS @ Lexington (Old Frankfort Pike)-Drum (#16) | AR4: Dol. #11's Unwashed | AS4: 10297 | AV4: LU02210 | AY4: =IF(OR($BK$2=0.5,$BK$2=0.38,$BK$2="No. 4"),1,0) -> 0 | AZ4: 0 | BA4: =IF(AND($BK$6>=18,$BK$6<=23),1,0) -> 0 | BB4: =IF($BK$3=BE4,1,0) -> 0 | BC4: =SUM(AY4:BB4) -> 0 | BD4: 0.5,0.38,No. 4 | BE4: PG64-22 | BF4: RAP | BG4: 18-23 | BH4: PG 58-28 | BI4: Design Eff. AC | BK4: ='Recycle Data'!J17 -> 0 | BO4: 75/- (minimum) | BP4: 75/- (minimum) | BR4: 0.5 | BS4: 14
A5: 3/4" | B5: ='Design Data'!T18 -> 0 | C5: 19 | D5: 3.762176102 | E5: 19 | F5: 3.762176102 | G5: 90 | H5: =D3 -> 5.108743174 | L5: =COUNTIF('Design Data'!O52:O70,"") -> 19 | N5: 4500 | O5: 28800 | P5: 53100 | Q5: 77400 | R5: 101700 | S5: TSR = | T5: 2 | W5: PG64-34 | X5: 60125 | Z5: 5 | AA5: 126000 | AB5: 150300 | AC5: 174600 | AD5: 198900 | AE5: 223200 | AH5: LAP100301 | AI5: BP Amoco @ Whiting, IN | AM5: AMP070201 | AN5: ATS @ Lexington (Old Richmond Road) (#15) | AR5: Dol. #11's Washed | AS5: 10295 | AV5: LU03210 | AY5: 0 | AZ5: 0 | BA5: =IF($BK$6<=17,1,0) -> 0 | BB5: 0 | BC5: 0 | BD5: 0.5,0.38,No. 4 | BE5: PG76-22 | BF5: RAP | BG5: <=17 | BH5: PG 76-22 | BI5: AC from Recycle | BK5: ='Recycle Data'!J23 ->  | BO5: 85/80 (minimum) | BP5: 85/80 (minimum) | BR5: 0.75 | BS5: 13
A6: 1/2" | B6: ='Design Data'!T19 -> 0 | C6: 12.5 | D6: 3.116086507 | E6: 12.5 | F6: 3.116086507 | G6: 90 | H6: =D4 -> 4.256699613 | N6: 5400 | O6: 29700 | P6: 54000 | Q6: 78300 | R6: 102600 | W6: PG70-22 | X6: 60150 | Z6: 6 | AA6: 126900 | AB6: 151200 | AC6: 175500 | AD6: 199800 | AE6: 224100 | AH6: LAP100401 | AI6: Buckeye Asphalt @ Cincinnati, OH | AM6: AMP070309 | AN6: ATS @ Lexington (Old Richmond Road) (#17) | AR6: Dolomite #67's | AS6: 10350 | AV6: LU04210 | AY6: 0 | AZ6: 0 | BA6: =IF($BK$6<=10,1,0) -> 0 | BB6: 0 | BC6: 0 | BD6: 0.5,0.38,No. 4 | BE6: PG64-22 | BF6: RAS | BG6: <=10 | BH6: PG 64-22 | BI6: Eff. Bind. Content | BK6: =IF(OR(BK4="",BK5=""),"",ROUND(BK5/BK4*100,0)) ->  | BO6: 95/90 (minimum) | BP6: 95/90 (minimum) | BR6: 1 | BS6: 12
A7: 3/8" | B7: ='Design Data'!T20 -> 0 | C7: 9.5 | D7: 2.754074109 | E7: 2.36 | F7: 1.47166988 | G7: 49 | H7: =D4 -> 4.256699613 | M7: =IF(ISERROR(VLOOKUP(J7,J9:M12,4,FALSE)),"",VLOOKUP(J7,J9:M12,4,FALSE)) ->  | N7: 6300 | O7: 30600 | P7: 54900 | Q7: 79200 | R7: 103500 | W7: PG70-28 | X7: 60175 | Z7: 7 | AA7: 127800 | AB7: 152100 | AC7: 176400 | AD7: 200700 | AE7: 225000 | AH7: LAP100803 | AI7: Carrollton River Terminal @ Carrollton | AM7: AMP060402 | AN7: Barrett Paving @ Wilder | AR7: Dolomite #67's Class A | AS7: 10355 | AV7: LU05210 | AY7: 0 | AZ7: 0 | BA7: =IF(AND($BK$6>=11,$BK$6<=15),1,0) -> 0 | BB7: 0 | BC7: 0 | BD7: 0.5,0.38,No. 4 | BE7: PG64-22 | BF7: RAS | BG7: 11-15 | BH7: PG 58-28 | BI7: RAP, RAS,Both? | BK7: =IF(BK5="","",IF(AND(U55>=1,V55=0),"RAS",IF(AND(U55=0,V55>=1),"RAP",IF(AND(U55>=1,V55>=1),"Both","")))) ->  | BO7: 100/100 (minimum) | BP7: 100/100 (minimum) | BR7: 1.5 | BS7: 11
A8: #4 | B8: ='Design Data'!T22 -> 0 | C8: 4.75 | D8: 2.016100254 | E8: 2.36 | F8: 1.47166988 | G8: 23 | H8: =D5 -> 3.762176102 | N8: 7200 | O8: 31500 | P8: 55800 | Q8: 80100 | R8: 104400 | W8: PG76-22 | X8: 60200 | Z8: 8 | AA8: 128700 | AB8: 153000 | AC8: 177300 | AD8: 201600 | AE8: 225900 | AH8: LAP100601 | AI8: Ergon @ Nashville, TN | AM8: AMP070304 | AN8: Bluegrass Contracting @ Garrard County (Lancaster) | AR8: Dolomite #67's Class B | AS8: 10360 | AV8: LU06210 | AY8: 0 | AZ8: 0 | BA8: =IF($BK$6<=12,1,0) -> 0 | BB8: 0 | BC8: 0 | BD8: 0.5,0.38,No. 4 | BE8: PG64-22 | BF8: Both | BG8: <=12 | BH8: PG 64-22
A9: #8 | B9: ='Design Data'!T23 -> 0 | C9: 2.36 | D9: 1.47166988 | E9: 0.075 | F9: 0.31172926 | G9: 8 | H9: =D5 -> 3.762176102 | J9: New Mix Design | M9: 1 | N9: 8100 | O9: 32400 | P9: 56700 | Q9: 81000 | R9: 105300 | S9: Complete SGC Des. | T9: =IF('Design Data'!N79="","",2525) ->  | V9: 1 | W9: PG76-28 | X9: 60225 | Z9: 9 | AA9: 129600 | AB9: 153900 | AC9: 178200 | AD9: 202500 | AE9: 226800 | AH9: LAP100702 | AI9: Greater Cin. Asphalt Term II @ Cin., OH | AM9: AMP060301 | AN9: Bluegrass Paving @ Florence | AR9: Dolomite #68's | AS9: 10365 | AV9: LU07210 | AY9: 0 | AZ9: 0 | BA9: =IF(AND($BK$6>=13,$BK$6<=18),1,0) -> 0 | BB9: 0 | BC9: 0 | BD9: 0.5,0.38,No. 4 | BE9: PG64-22 | BF9: Both | BG9: 13-18 | BH9: PG 58-28 | BI9: Good? | BK9: =IF(BK7="","",IF(OR(BC3=4,BC4=4,BC5=4,BC6=4,BC7=4,BC8=4,BC9=4,BC10=4,BC11=4,BC12=4,BC13=4,BC14=4,BC15=4,BC16=4),"YES","NO")) ->  | BO9: =IF('Chart Data'!J48="NO. 4","N/A",IF(AND('Design Data'!H20=1,'Design Data'!K20<=100),BO4,IF(AND('Design Data'!H20=1,'Design Data'!K20>100),BP4,IF(AND('Design Data'!H20=2,'Design Data'!K20<=100),BO5,IF(AND('Design Data'!H20=2,'Design Data'!K20>100),BP5,IF(AND('Design Data'!H20=3,'Design Data'!K20<=100),BO6,IF(AND('Design Data'!H20=3,'Design Data'!K20>100),BP6,""))))))) ->  | BP9: =IF(AND('Design Data'!H20=4,'Design Data'!K20<=100),BO7,IF(AND('Design Data'!H20=4,'Design Data'!K20>100),BP7)) -> FALSE | BS9: =IF(OR(ISNUMBER('Chart Data'!J48),'Chart Data'!J48="NO. 4"),VLOOKUP('Chart Data'!J48,'Chart Data'!BR2:BS7,2,FALSE),"") -> 
A10: #16 | B10: ='Design Data'!T24 -> 0 | C10: 1.18 | D10: 1.07732541 | E10: 0.075 | F10: 0.31172926 | G10: 2 | H10: =D6 -> 3.116086507 | J10: Ref. Mix Design (project change only) | M10: 2 | N10: 9000 | O10: 33300 | P10: 57600 | Q10: 81900 | R10: 106200 | S10: 1-pt. SGC Des. | T10: =IF('Design Data'!Q79="","",1425) ->  | W10: PG82-22 | X10: 60250 | Z10: 10 | AA10: 130500 | AB10: 154800 | AC10: 179100 | AD10: 203400 | AE10: 227700 | AH10: LAP100801 | AI10: Hinkle Asphalt @ Avon | AM10: AMP030310 | AN10: Charles Deweese Construction @ Franklin | AR10: Dolomite #68's Class A | AS10: 10370 | AV10: LU08210 | AY10: =IF(OR($BK$2=1.5,$BK$2=1,$BK$2=0.75),1,0) -> 0 | AZ10: 0 | BA10: =IF($BK$6<=25,1,0) -> 0 | BB10: 0 | BC10: 0 | BD10: 1.50,1.00,0.75 | BE10: PG64-22 | BF10: RAP | BG10: <=25 | BH10: PG 64-22 | BI10: Virgin Binder | BK10: =IF(BK9="YES",VLOOKUP(4,BC3:BH16,6,FALSE),"") -> 
A11: #30 | B11: ='Design Data'!T25 -> 0 | C11: 0.6 | D11: 0.7946356822 | E11: 0.075 | F11: 0.31172926 | G11: 6 | H11: =D6 -> 3.116086507 | J11: Ref. Mix Design (with changes)-same proj. | M11: 3 | N11: 9900 | O11: 34200 | P11: 58500 | Q11: 82800 | R11: 107100 | S11: App.-New Design | T11: =IF('Design Data'!N80="","",85) ->  | W11: PG82-28 | X11: 60275 | Z11: 11 | AA11: 131400 | AB11: 155700 | AC11: 180000 | AD11: 204300 | AE11: 228600 | AH11: LAP100802 | AI11: Hinkle Asphalt @ Somerset | AM11: AMP020301 | AN11: E & B Paving @ Chandler Indiana | AR11: Dolomite #68's Class B | AS11: 10375 | AV11: LU09210 | AY11: =IF(OR($BK$2=1.5,$BK$2=1,$BK$2=0.75),1,0) -> 0 | AZ11: 0 | BA11: =IF(AND($BK$6>=26,$BK$6<=30),1,0) -> 0 | BB11: 0 | BC11: 0 | BD11: 1.50,1.00,0.75 | BE11: PG64-22 | BF11: RAP | BG11: 26-30 | BH11: PG 58-28
A12: #50 | B12: ='Design Data'!T26 -> 0 | C12: 0.3 | D12: 0.5817073679 | E12: Maximum Density Line | H12: =D7 -> 2.754074109 | J12: Ref. Mix Design (with changes)-different proj. | M12: 4 | N12: 10800 | O12: 35100 | P12: 59400 | Q12: 83700 | R12: 108000 | S12: App.-Ref. Mix. | T12: =IF('Design Data'!Q80="","",45) ->  | W12: CRS-2P | X12: 61075 | Z12: 12 | AA12: 132300 | AB12: 156600 | AC12: 180900 | AD12: 205200 | AE12: 229500 | AH12: LAP101001 | AI12: Marathon Petroleum @ Ashland | AM12: AMP060309 | AN12: Eaton Asphalt Paving @ Butler | AR12: Dolomite #78's | AS12: 10380 | AV12: LU10210 | AY12: 0 | AZ12: 0 | BA12: =IF($BK$6<=25,1,0) -> 0 | BB12: 0 | BC12: 0 | BD12: 1.50,1.00,0.75 | BE12: PG76-22 | BF12: RAP | BG12: <=25 | BH12: PG 76-22 | BO12: Fine Aggregate Angularity Criteria
A13: #100 | B13: ='Design Data'!T27 -> 0 | C13: 0.15 | D13: 0.4258347183 | H13: =D7 -> 2.754074109 | N13: 11700 | O13: 36000 | P13: 60300 | Q13: 84600 | R13: 108900 | S13: 1-pt. Check | T13: =IF('1-Pt. Check'!C30="","",60) ->  | AA13: 133200 | AB13: 157500 | AC13: 181800 | AD13: 206100 | AE13: 230400 | AH13: LAP101002 | AI13: Marathon Petroleum @ Big Sandy | AM13: AMP090303 | AN13: Eaton Ashpalt Paving @ Maysville | AR13: Dolomite #78's Class A | AS13: 10385 | AV13: LU11210 | AY13: 0 | AZ13: 0 | BA13: =IF($BK$6<=12,1,0) -> 0 | BB13: 0 | BC13: 0 | BD13: 1.50,1.00,0.75 | BE13: PG64-22 | BF13: RAS | BG13: <=12 | BH13: PG 64-22 | BO13: NMAS | BP13: =J48 -> 
A14: #200 | B14: ='Design Data'!T28 -> 0 | C14: 0.075 | D14: 0.31172926 | E14: 0 | F14: =E14^0.45 -> 0 | G14: 0 | H14: =D8 -> 2.016100254 | N14: 12600 | O14: 36900 | P14: 61200 | Q14: 85500 | R14: 109800 | S14: Skid Data | T14: =IF(L48="X",200,"") ->  | AA14: 134100 | AB14: 158400 | AC14: 182700 | AD14: 207000 | AE14: 231300 | AH14: LAP101004 | AI14: Marathon Petroleum @ Cane Run | AM14: AMP060307 | AN14: Eaton Asphalt Paving @ Richwood | AR14: Dolomite #78's Class B | AS14: 10390 | AV14: LU12210 | AY14: 0 | AZ14: 0 | BA14: =IF(AND($BK$6>=13,$BK$6<=20),1,0) -> 0 | BB14: 0 | BC14: 0 | BD14: 1.50,1.00,0.75 | BE14: PG64-22 | BF14: RAS | BG14: 13-20 | BH14: PG 58-28 | BI14: Eff. AC (from charts) | BK14: m | BL14: =IFERROR(('Design Data'!L34-'Design Data'!L37)/('Design Data'!B34-'Design Data'!B37),"") ->  | BO14: ESAL | BP14: ='Design Data'!H20 -> 
B15: 0 | C15: 0 | D15: 0 | E15: =IF(W14="","",VLOOKUP(I48,A35:B40,2,FALSE)) ->  | F15: =IF(W14="","",E15^0.45) ->  | G15: 100 | H15: =D8 -> 2.016100254 | N15: 13500 | O15: 37800 | P15: 62100 | Q15: 86400 | R15: 110700 | S15: TOTAL | T15: =SUM(T9:T14) -> 0 | W15: =IF(W14="","",IF(W14="Bid Item Not In Drop-Down List",W24,VLOOKUP(W14,A50:F264,6,FALSE))) ->  | AA15: 135000 | AB15: 159300 | AC15: 183600 | AD15: 207900 | AE15: 232200 | AH15: LAP101007 | AI15: Marathon Petroleum @ Knoxville, TN | AM15: AMP060308 | AN15: Eaton Asphalt Paving @ Sanfordtown | AR15: Dolomite #8's | AS15: 10395 | AY15: 0 | AZ15: 0 | BA15: =IF($BK$6<=15,1,0) -> 0 | BB15: 0 | BC15: 0 | BD15: 1.50,1.00,0.75 | BE15: PG64-22 | BF15: Both | BG15: <=15 | BH15: PG 64-22 | BK15: b | BL15: =IFERROR(('Design Data'!L34-'Chart Data'!BL14*'Design Data'!B34),"") ->  | BO15: Depth | BP15: ='Design Data'!K20 -> 0
H16: =D9 -> 1.47166988 | N16: 14400 | O16: 38700 | P16: 63000 | Q16: 87300 | R16: 111600 | W16: =IF(AND(W14="",W20=""),"",IF(AND(W14="Bid Item Not In Drop-Down List",W20=""),"",IF(W14="Bid Item Not In Drop-Down List",VALUE(RIGHT(W20,1)),VLOOKUP(W14,A50:G264,7,FALSE)))) ->  | AA16: 135900 | AB16: 160200 | AC16: 184500 | AD16: 208800 | AE16: 233100 | AH16: LAP101005 | AI16: Marathon Petroleum @ Kuttawa | AM16: AMP060302 | AN16: Eaton Asphalt Paving @ Verona | AR16: Dolomite #8's Class A | AS16: 10400 | AY16: 0 | AZ16: 0 | BA16: =IF(AND($BK$6>=16,$BK$6<=25),1,0) -> 0 | BB16: 0 | BC16: 0 | BD16: 1.50,1.00,0.75 | BE16: PG64-22 | BF16: Both | BG16: 16-25 | BH16: PG 58-28 | BK16: x | BL16: =IFERROR(Graphs!K131,"") -> 0 | BP16: =IF(AND(BP13="NO. 4",BP14=2),45,IF(AND(BP13="NO. 4",BP14>=3),45,IF(OR(AND(BP15<=100,BP14=2),AND(BP15>100,BP14=2)),40,IF(OR(AND(BP15>100,BP14=3),AND(BP15<=100,BP14=3)),43,45)))) -> 45
H17: =D9 -> 1.47166988 | J17: Binder Source | L17: FALSE | N17: 15300 | O17: 39600 | P17: 63900 | Q17: 88200 | R17: 112500 | W17: =IF(W14="","",VLOOKUP(W14,A51:H264,8,FALSE)) ->  | X17: =IF(W22="0.38","15.0", IF(W22="0.50","14.0", IF(W22="0.75","13.0", IF(W22="1.00", "12.0", IF(W22="1.50", "11.0",""))))) ->  | AA17: 136800 | AB17: 161100 | AC17: 185400 | AD17: 209700 | AE17: 234000 | AH17: LAP101009 | AI17: Marathon Petroleum @ Mt. Vernon, IN | AM17: AMP090102 | AN17: Flemingsburg Materials @ Flemingsburg | AR17: Dolomite #8's Class B | AS17: 10405 | BK17: y | BL17: =IFERROR(ROUND(BL14*BL16+BL15,1),"") ->  | BO17: Criteria | BP17: =IF(BP16="N/A","N/A",CONCATENATE(BP16," (minimun)")) -> 45 (minimun)
A18: Sieve | B18: ATDB JMF | C18: Opening | D18: Op.^0.45 | E18: Lower | F18: Upper | H18: =D10 -> 1.07732541 | I18: MIX/COMP TEMP: | J18: Binder Grade | L18: FALSE | N18: 16200 | O18: 40500 | P18: =IF($K$48="E",P17+1000,P17+900) -> 64800 | Q18: =IF($K$48="E",Q17+1000,Q17+900) -> 89100 | R18: =IF($K$48="E",R17+1000,R17+900) -> 113400 | AA18: 137700 | AB18: 162000 | AC18: 186300 | AD18: 210600 | AE18: 234900 | AH18: LAP101006 | AI18: Marathon Petroleum @ Nashville, TN | AM18: AMP050309 | AN18: Flynn Brothers Brooks Plant @ Shepherdsville | AR18: Dolomite #9M's | AS18: 10410
A19: 1.5 | B19: ='Design Data'!T16 -> 0 | C19: 37.5 | D19: =C19^0.45 -> 5.108743174 | E19: 100 | F19: 100 | H19: =D10 -> 1.07732541 | J19: Plant | L19: FALSE | N19: 17100 | O19: 41400 | P19: 65700 | Q19: 90000 | R19: 114300 | AA19: 138600 | AB19: 162900 | AC19: 187200 | AD19: 211500 | AE19: 235800 | AH19: LAP101003 | AI19: Marathon Petroleum @ North Bend, OH | AM19: AMP050302 | AN19: Flynn Brothers Contracting @ Louisville | AR19: Dolomite #9M's Class A | AS19: 10415
A20: 0.75 | B20: ='Design Data'!T18 -> 0 | C20: 19 | D20: 3.762176102 | E20: 85 | F20: 100 | H20: =D11 -> 0.7946356822 | J20: 1-Point Check | L20: FALSE | N20: 18000 | O20: 42300 | P20: 66600 | Q20: 90900 | R20: 115200 | AA20: 139500 | AB20: 163800 | AC20: 188100 | AD20: 212400 | AE20: 236700 | AH20: LAP101901 | AI20: Middleport Terminal @ Gallipolis, OH | AM20: AMP050303 | AN20: Frankfort Materials @ Frankfort | AR20: Dolomite #9M's Class B | AS20: 10420
A21: 0.5 | B21: ='Design Data'!T19 -> 0 | C21: 12.5 | D21: 3.116086507 | E21: 35 | F21: 65 | H21: =D11 -> 0.7946356822 | L21: =IF(OR(L17,L18,L19,L20),"TRUE","FALSE") -> FALSE | N21: 18900 | O21: 43200 | P21: 67500 | Q21: 91800 | R21: 116100 | X21: =IF(W22="1.50","20625",IF(W22="1.00","20600",IF(W22="0.75","20575",IF(W22="0.38","20500", IF(AND(W22="0.50",W21="ASPH SURF"),"20525","20550"))))) -> 20550 | AA21: 140400 | AB21: 164700 | AC21: 189000 | AD21: 213300 | AE21: 237600 | AH21: LAP101101 | AI21: Midwest Terminal @ Paducah | AM21: AMP090109 | AN21: Freedom Asphalt @ Owingsville, KY | AR21: Dolomite Comb.-NSG | AS21: 10300
A22: 4 | B22: ='Design Data'!T22 -> 0 | C22: 4.75 | D22: 2.016100254 | E22: 0 | F22: 20 | H22: =D12 -> 0.5817073679 | N22: 19800 | O22: 44100 | P22: 68400 | Q22: 92700 | R22: 117000 | AA22: 141300 | AB22: 165600 | AC22: 189900 | AD22: 214200 | AE22: 238500 | AH22: LAP101401 | AI22: Phillips 66 (Tanco) @ Jeffersonville, IN | AM22: AMP080101 | AN22: Gaddie Shamrock @ Albany | AR22: Dolomite NSG Class A | AS22: 10430
A23: 8 | B23: ='Design Data'!T23 -> 0 | C23: 2.36 | D23: 1.47166988 | E23: 0 | F23: 10 | H23: =D12 -> 0.5817073679 | N23: 20700 | O23: 45000 | P23: 69300 | Q23: 93600 | R23: 117900 | AA23: 142200 | AB23: 166500 | AC23: 190800 | AD23: 215100 | AE23: 239400 | AH23: LAP101301 | AI23: Phillips 66 @ Knoxville, TN | AM23: AMP080402 | AN23: Gaddie Shamrock @ Columbia (Plant 1-Mod. Cont.) | AR23: Dolomite NSG Class B | AS23: 10435
A24: 200 | B24: ='Design Data'!T28 -> 0 | C24: 0.075 | D24: 0.31172926 | E24: 0 | F24: 4 | H24: =D13 -> 0.4258347183 | N24: 21600 | O24: 45900 | P24: 70200 | Q24: 94500 | R24: 118800 | AA24: 143100 | AB24: 167400 | AC24: 191700 | AD24: 216000 | AE24: 240300 | AH24: LAP101404 | AI24: Phillips 66 @ Wood River, IL | AM24: AMP080301 | AN24: Gaddie Shamrock, LLC @ Columbia Plant 2 (Drum) | AR24: Dol. NSG Fine (Unwashed) | AS24: 10323
B25: 0 | C25: 0 | D25: 0 | E25: 0 | F25: 0 | H25: =D13 -> 0.4258347183 | N25: 22500 | O25: 46800 | P25: 71100 | Q25: 95400 | R25: 119700 | AA25: 144000 | AB25: 168300 | AC25: 192600 | AD25: 216900 | AE25: 241200 | AH25: LAP101102 | AI25: S & Y Terminal, LLC @ Owensboro | AM25: AMP050311 | AN25: Hall Contracting @ Brooks | AR25: Dol. NSG Fine (Washed) | AS25: 10320
A26: Sieve | B26: OGDC JMF | C26: Opening | D26: Op.^0.45 | E26: Lower | F26: Upper | H26: =D14 -> 0.31172926 | N26: 23400 | O26: 47700 | P26: 72000 | Q26: 96300 | R26: 120600 | AA26: 144900 | AB26: 169200 | AC26: 193500 | AD26: 217800 | AE26: 242100 | AH26: LAP101201 | AI26: Shelbyville Asphalt Terminal @ Shelbyville | AM26: AMP050313 | AN26: Hall Contracting @ Charlestown, IN | AR26: Dolomite NSG-Coarse | AS26: 10440
A27: 0.5 | B27: ='Design Data'!T19 -> 0 | C27: 12.5 | D27: =C27^0.45 -> 3.116086507 | E27: 100 | F27: 100 | H27: =D14 -> 0.31172926 | N27: 24300 | O27: 48600 | P27: 72900 | Q27: 97200 | R27: 121500 | AA27: 145800 | AB27: 170100 | AC27: 194400 | AD27: 218700 | AE27: 243000 | AH27: LAP101501 | AI27: Terry Asphalt @ Hamilton, OH | AM27: AMP070305 | AN27: Hamilton & Hinkle @ Georgetown (Drum #1) | AR27: Dol. Sand (Unwashed) | AS27: 10313
A28: 0.38 | B28: ='Design Data'!T20 -> 0 | C28: 9.5 | D28: 2.754074109 | E28: 90 | F28: 100 | H28: =D15 -> 0 | J28: PG64-22 | K28: 300/265 (deg. F) | AH28: LAP?????? | AI28: Binder Source Not In Drop-Down List | AM28: AMP040302 | AN28: Haydon Materials @ Greensburg (Drum) | AR28: Dol. Sand (Washed) | AS28: 10310
A29: 4 | B29: ='Design Data'!T22 -> 0 | C29: 4.75 | D29: 2.016100254 | E29: 25 | F29: 50 | H29: =D15 -> 0 | J29: PG70-22 | K29: 315/285 (deg. F) | N29: 1 - 1 | O29: 7 - 4 | P29: 14 - 3 | Q29: 21 - 2 | R29: 28 - 1 | S29: Bid Item | T29: 0-20 | U29: 21-30 | V29: >30 | AA29: 34 - 4 | AB29: =CONCATENATE(LEFT(AA55,2)," - 3") -> 41 - 3 | AC29: =CONCATENATE(LEFT(AB55,2)," - 2") -> 48 - 2 | AD29: =CONCATENATE(LEFT(AC55,2)+1," - 1") -> 55 - 1 | AE29: =CONCATENATE(LEFT(AD55,2)," - 4") -> 61 - 4 | AM29: AMP040303 | AN29: Haydon Materials @ Lebanon | AR29: Dolomite Sand Class A | AS29: 10436
A30: 8 | B30: ='Design Data'!T23 -> 0 | C30: 2.36 | D30: 1.47166988 | E30: 5 | F30: 15 | J30: PG76-22 | K30: 330/300 (deg. F) | N30: 1 - 2 | O30: 8 - 1 | P30: 14 - 4 | Q30: 21 - 3 | R30: 28 - 2 | S30: PG76-22 | T30: PG76-22 | U30: PG76-22 | V30: PG76-22 | AA30: =CONCATENATE(LEFT(AA29,2)+1," - 1") -> 35 - 1 | AB30: =CONCATENATE(LEFT(AB29,2)," - 4") -> 41 - 4 | AC30: =CONCATENATE(LEFT(AC29,2)," - 3") -> 48 - 3 | AD30: =CONCATENATE(LEFT(AD29,2)," - 2") -> 55 - 2 | AE30: =CONCATENATE(LEFT(AE29,2)+1," - 1") -> 62 - 1 | AM30: AMP080305 | AN30: Hinkle Contracting @ Bethelridge (Drum) | AR30: Dolomite Sand Class B | AS30: 10437
A31: 200 | B31: ='Design Data'!T28 -> 0 | C31: 0.075 | D31: 0.31172926 | E31: 2 | F31: 5 | J31: CRS-2P | K31: See Special Prov. 79 | N31: 1 - 3 | O31: 8 - 2 | P31: 15 - 1 | Q31: 21 - 4 | R31: 28 - 3 | S31: PG70-22 | T31: PG70-22 | U31: PG64-22 | V31: Use KM 427 | AA31: =CONCATENATE(LEFT(AA30,2)," - 2") -> 35 - 2 | AB31: =CONCATENATE(LEFT(AB30,2)+1," - 1") -> 42 - 1 | AC31: =CONCATENATE(LEFT(AC30,2)," - 4") -> 48 - 4 | AD31: =CONCATENATE(LEFT(AD30,2)," - 3") -> 55 - 3 | AE31: =CONCATENATE(LEFT(AE30,2)," - 2") -> 62 - 2 | AM31: AMP100201 | AN31: Hinkle Contracting @ Bowen | AR31: Granite #67's | AS31: 10355
B32: 0 | C32: 0 | D32: 0 | E32: 0 | F32: 0 | N32: 1 - 4 | O32: 8 - 3 | P32: 15 - 2 | Q32: 22 - 1 | R32: 28 - 4 | S32: PG64-22 | T32: PG64-22 | U32: PG64-22 | V32: Use KM 427 | AA32: =CONCATENATE(LEFT(AA31,2)," - 3") -> 35 - 3 | AB32: =CONCATENATE(LEFT(AB31,2)," - 2") -> 42 - 2 | AC32: =CONCATENATE(LEFT(AC31,2)+1," - 1") -> 49 - 1 | AD32: =CONCATENATE(LEFT(AD31,2)," - 4") -> 55 - 4 | AE32: =CONCATENATE(LEFT(AE31,2)," - 3") -> 62 - 3 | AM32: AMP100301 | AN32: Hinkle Contracting @ Cave Run Stone | AR32: Granite #78's | AS32: 10385
J33: PG64-22 | K33: 300/265 (deg. F) | N33: 2 - 1 | O33: 8 - 4 | P33: 15 - 3 | Q33: 22 - 2 | R33: 29 - 1 | AA33: =CONCATENATE(LEFT(AA32,2)," - 4") -> 35 - 4 | AB33: =CONCATENATE(LEFT(AB32,2)," - 3") -> 42 - 3 | AC33: =CONCATENATE(LEFT(AC32,2)," - 2") -> 49 - 2 | AD33: =CONCATENATE(LEFT(AD32,2)+1," - 1") -> 56 - 1 | AE33: =CONCATENATE(LEFT(AE32,2)," - 4") -> 62 - 4 | AM33: AMP110201 | AN33: Hinkle Contracting @ Flat Lick | AR33: Granite #8's | AS33: 10400
A34: Inches | B34: mm | J34: PG58-28 | K34: 300/265 (deg. F) | N34: 2 - 2 | O34: 9 - 1 | P34: 15 - 4 | Q34: 22 - 3 | R34: 29 - 2 | AA34: =CONCATENATE(LEFT(AA33,2)+1," - 1") -> 36 - 1 | AB34: =CONCATENATE(LEFT(AB33,2)," - 4") -> 42 - 4 | AC34: =CONCATENATE(LEFT(AC33,2)," - 3") -> 49 - 3 | AD34: =CONCATENATE(LEFT(AD33,2)," - 2") -> 56 - 2 | AE34: =CONCATENATE(LEFT(AE33,2)+1," - 1") -> 63 - 1 | AM34: AMP100401 | AN34: Hinkle Contracting @ Jackson | AR34: Granite #9M's | AS34: 10415
A35: 2 | B35: 50 | J35: PG76-22 | K35: 330/300 (deg. F) | N35: 2 - 3 | O35: 9 - 2 | P35: 16 - 1 | Q35: 22 - 4 | R35: 29 - 3 | AA35: =CONCATENATE(LEFT(AA34,2)," - 2") -> 36 - 2 | AB35: =CONCATENATE(LEFT(AB34,2)+1," - 1") -> 43 - 1 | AC35: =CONCATENATE(LEFT(AC34,2)," - 4") -> 49 - 4 | AD35: =CONCATENATE(LEFT(AD34,2)," - 3") -> 56 - 3 | AE35: =CONCATENATE(LEFT(AE34,2)," - 2") -> 63 - 2 | AM35: AMP110301 | AN35: Hinkle Contracting @ Lee County Virginia | AR35: Granite Sand | AS35: 10436
A36: 1.5 | B36: 37.5 | J36: Other | K36: See Applicable Spec. | N36: 2 - 4 | O36: 9 - 3 | P36: 16 - 2 | Q36: 23 - 1 | R36: 29 - 4 | AA36: =CONCATENATE(LEFT(AA35,2)," - 3") -> 36 - 3 | AB36: =CONCATENATE(LEFT(AB35,2)," - 2") -> 43 - 2 | AC36: =CONCATENATE(LEFT(AC35,2)+1," - 1") -> 50 - 1 | AD36: =CONCATENATE(LEFT(AD35,2)," - 4") -> 56 - 4 | AE36: =CONCATENATE(LEFT(AE35,2)," - 3") -> 63 - 3 | AM36: AMP110304 | AN36: Hinkle Contracting @ London | AR36: Gravel #57's | AS36: 10345
A37: 1 | B37: 25 | N37: 3 - 1 | O37: 9 - 4 | P37: 16 - 3 | Q37: 23 - 2 | R37: 30 - 1 | T37: Recycle selected: Use PG 76-22 virgin binder. | AA37: =CONCATENATE(LEFT(AA36,2)," - 4") -> 36 - 4 | AB37: =CONCATENATE(LEFT(AB36,2)," - 3") -> 43 - 3 | AC37: =CONCATENATE(LEFT(AC36,2)," - 2") -> 50 - 2 | AD37: =CONCATENATE(LEFT(AD36,2)+1," - 1") -> 57 - 1 | AE37: =CONCATENATE(LEFT(AE36,2)," - 4") -> 63 - 4 | AI37: TSR's Made With: | AM37: AMP110204 | AN37: Hinkle Contracting @ Middlesboro | AR37: Gravel #67's | AS37: 10355
A38: 0.75 | B38: 19 | J38: WMA? | K38: FALSE | N38: 3 - 2 | O38: 10 - 1 | P38: 16 - 4 | Q38: 23 - 3 | R38: 30 - 2 | T38: Recycle selected: Use PG 70-22 virgin binder. | AA38: =CONCATENATE(LEFT(AA37,2)+1," - 1") -> 37 - 1 | AB38: =CONCATENATE(LEFT(AB37,2)," - 4") -> 43 - 4 | AC38: =CONCATENATE(LEFT(AC37,2)," - 3") -> 50 - 3 | AD38: =CONCATENATE(LEFT(AD37,2)," - 2") -> 57 - 2 | AE38: =CONCATENATE(LEFT(AE37,2)+1," - 1") -> 64 - 1 | AM38: AMP090103 | AN38: Hinkle Contracting @ Morehead (Batch) | AR38: Gravel #78's | AS38: 10385
A39: 0.5 | B39: 12.5 | J39: PG64-22 | K39: 265/245 (deg. F) | N39: 3 - 3 | O39: 10 - 2 | P39: 17 - 1 | Q39: 23 - 4 | R39: 30 - 3 | T39: Recycle selected: Use PG 64-22 virgin binder. | AA39: =CONCATENATE(LEFT(AA38,2)," - 2") -> 37 - 2 | AB39: =CONCATENATE(LEFT(AB38,2)+1," - 1") -> 44 - 1 | AC39: =CONCATENATE(LEFT(AC38,2)," - 4") -> 50 - 4 | AD39: =CONCATENATE(LEFT(AD38,2)," - 3") -> 57 - 3 | AE39: =CONCATENATE(LEFT(AE38,2)," - 2") -> 64 - 2 | AM39: AMP070306 | AN39: Hinkle Contracting @ Paris | AR39: Gravel #8's | AS39: 10400
A40: 0.38 | B40: 9.5 | J40: PG76-22 | K40: 290/275 (deg. F) | N40: 3 - 4 | O40: 10 - 3 | P40: 17 - 2 | Q40: 24 - 1 | R40: 30 - 4 | T40: Recycle selected: Use KM 427 for virgin binder grade selection. | AA40: =CONCATENATE(LEFT(AA39,2)," - 3") -> 37 - 3 | AB40: =CONCATENATE(LEFT(AB39,2)," - 2") -> 44 - 2 | AC40: =CONCATENATE(LEFT(AC39,2)+1," - 1") -> 51 - 1 | AD40: =CONCATENATE(LEFT(AD39,2)," - 4") -> 57 - 4 | AE40: =CONCATENATE(LEFT(AE39,2)," - 3") -> 64 - 3 | AM40: AMP100101 | AN40: Hinkle Contracting @ Pomp | AR40: Gravel #9M's | AS40: 10415
N41: 4 - 1 | O41: 10 - 4 | P41: 17 - 3 | Q41: 24 - 2 | R41: 31 - 1 | T41: Cannot use more than 20% Recycle with PG 76-22. | AA41: =CONCATENATE(LEFT(AA40,2)," - 4") -> 37 - 4 | AB41: =CONCATENATE(LEFT(AB40,2)," - 3") -> 44 - 3 | AC41: =CONCATENATE(LEFT(AC40,2)," - 2") -> 51 - 2 | AD41: =CONCATENATE(LEFT(AD40,2)+1," - 1") -> 58 - 1 | AE41: =CONCATENATE(LEFT(AE40,2)," - 4") -> 64 - 4 | AM41: AMP100402 | AN41: Hinkle Contracting @ Ravenna | AR41: Gravel Sand-Crushed | AS41: 10305
N42: 4 - 2 | O42: 11 - 1 | P42: 17 - 4 | Q42: 24 - 3 | R42: 31 - 2 | T42: The contribution of Asphalt Binder from the reclaimed materials has exceeded the maximum. | AA42: =CONCATENATE(LEFT(AA41,2)+1," - 1") -> 38 - 1 | AB42: =CONCATENATE(LEFT(AB41,2)," - 4") -> 44 - 4 | AC42: =CONCATENATE(LEFT(AC41,2)," - 3") -> 51 - 3 | AD42: =CONCATENATE(LEFT(AD41,2)," - 2") -> 58 - 2 | AE42: =CONCATENATE(LEFT(AE41,2)+1," - 1") -> 65 - 1 | AM42: AMP080304 | AN42: Hinkle Contracting @ Somerset (Drum) | AR42: LS #10's (Unwashed) | AS42: 10293
N43: 4 - 3 | O43: 11 - 2 | P43: 18 - 1 | Q43: 24 - 4 | R43: 31 - 3 | T43: =IF(AND('Chart Data'!S55="Recycle",'Chart Data'!Y1=6,'Chart Data'!T55<=20),T38,IF(AND('Chart Data'!S55="Recycle",'Chart Data'!Y1=6,'Chart Data'!T55<=30),T39,IF(AND('Chart Data'!S55="Recycle",'Chart Data'!Y1=6,'Chart Data'!T55>30),T40,T44))) -> (as specified in Bid Item) | AA43: =CONCATENATE(LEFT(AA42,2)," - 2") -> 38 - 2 | AB43: =CONCATENATE(LEFT(AB42,2)+1," - 1") -> 45 - 1 | AC43: =CONCATENATE(LEFT(AC42,2)," - 4") -> 51 - 4 | AD43: =CONCATENATE(LEFT(AD42,2)," - 3") -> 58 - 3 | AE43: =CONCATENATE(LEFT(AE42,2)," - 2") -> 65 - 2 | AI43: No. 4 A | AM43: AMP080303 | AN43: Hinkle Contracting @ Tateville | AR43: LS #10's (Washed) | AS43: 10290
N44: 4 - 4 | O44: 11 - 3 | P44: 18 - 2 | Q44: 25 - 1 | R44: 31 - 4 | T44: =IF(AND('Chart Data'!S55="Recycle",'Chart Data'!Y1=3,'Chart Data'!T55<=30),T39,IF(AND('Chart Data'!S55="Recycle",'Chart Data'!Y1=3,'Chart Data'!T55>30),T40,"(as specified in Bid Item)")) -> (as specified in Bid Item) | AA44: =CONCATENATE(LEFT(AA43,2)," - 3") -> 38 - 3 | AB44: =CONCATENATE(LEFT(AB43,2)," - 2") -> 45 - 2 | AC44: =CONCATENATE(LEFT(AC43,2)+1," - 1") -> 52 - 1 | AD44: =CONCATENATE(LEFT(AD43,2)," - 4") -> 58 - 4 | AE44: =CONCATENATE(LEFT(AE43,2)," - 3") -> 65 - 3 | AI44: No. 4 B | AM44: AMP040301 | AN44: E & B Paving @ Corydon Indiana | AR44: LS #11's (Unwashed) | AS44: 10297
N45: 5 - 1 | O45: 11 - 4 | P45: 18 - 3 | Q45: 25 - 2 | R45: 32 - 1 | AA45: =CONCATENATE(LEFT(AA44,2)," - 4") -> 38 - 4 | AB45: =CONCATENATE(LEFT(AB44,2)," - 3") -> 45 - 3 | AC45: =CONCATENATE(LEFT(AC44,2)," - 2") -> 52 - 2 | AD45: =CONCATENATE(LEFT(AD44,2)+1," - 1") -> 59 - 1 | AE45: =CONCATENATE(LEFT(AE44,2)," - 4") -> 65 - 4 | AI45: 0.38 A | AM45: AMP050304 | AN45: E & B Paving @ Sellersburg Indiana | AR45: LS #11's (Washed) | AS45: 10295
N46: 5 - 2 | O46: 12 - 1 | P46: 18 - 4 | Q46: 25 - 3 | R46: 32 - 2 | AA46: =CONCATENATE(LEFT(AA45,2)+1," - 1") -> 39 - 1 | AB46: =CONCATENATE(LEFT(AB45,2)," - 4") -> 45 - 4 | AC46: =CONCATENATE(LEFT(AC45,2)," - 3") -> 52 - 3 | AD46: =CONCATENATE(LEFT(AD45,2)," - 2") -> 59 - 2 | AE46: =CONCATENATE(LEFT(AE45,2)+1," - 1") -> 66 - 1 | AI46: 0.38 B | AM46: AMP020302 | AN46: J H Rudolph @ Evansville Indiana | AR46: Limestone #357's | AS46: 10325
L47: =IF(W14="","",IF(W14="Bid Item Not In Drop-Down List",W23,VLOOKUP(W14,A50:L264,12,FALSE))) ->  | N47: 5 - 3 | O47: 12 - 2 | P47: 19 - 1 | Q47: 25 - 4 | R47: 32 - 3 | AA47: =CONCATENATE(LEFT(AA46,2)," - 2") -> 39 - 2 | AB47: =CONCATENATE(LEFT(AB46,2)+1," - 1") -> 46 - 1 | AC47: =CONCATENATE(LEFT(AC46,2)," - 4") -> 52 - 4 | AD47: =CONCATENATE(LEFT(AD46,2)," - 3") -> 59 - 3 | AE47: =CONCATENATE(LEFT(AE46,2)," - 2") -> 66 - 2 | AI47: 0.50 A | AM47: AMP020308 | AN47: J H Rudolph @ Henderson | AR47: Limestone #467's | AS47: 10335
E48: =MID(F48,3,2)&RIGHT(F48,2) ->  | F48: =IF(W14="","",IF(W14="Bid Item Not In Drop-Down List",W24,VLOOKUP(W14,A50:J264,6,FALSE))) ->  | G48: =IF(W14="","",VLOOKUP(W14,A50:J264,7,FALSE)) ->  | H48: =IF(W14="","",IF(W14="Bid Item Not In Drop-Down List",X21,VLOOKUP(W14,A50:J264,8,FALSE))) ->  | I48: =IF(W14="","",VLOOKUP(W14,A50:J264,9,FALSE)) ->  | J48: =IF(W14="Bid Item Not In Drop-Down List",W22,IF(W14="","",VLOOKUP(W14,A50:J264,10,FALSE))) ->  | K48: =IF(W14="Bid Item Not In Drop-Down List",LEFT(W25,1),IF(W14="","",VLOOKUP(W14,A50:K264,11,FALSE))) ->  | L48: =IF(L47="","","X") ->  | M48: =IF(W14="","",VLOOKUP(W14,A50:M264,13,FALSE)) ->  | N48: 5 - 4 | O48: 12 - 3 | P48: 19 - 2 | Q48: 26 - 1 | R48: 32 - 4 | AA48: =CONCATENATE(LEFT(AA47,2)," - 3") -> 39 - 3 | AB48: =CONCATENATE(LEFT(AB47,2)," - 2") -> 46 - 2 | AC48: =CONCATENATE(LEFT(AC47,2)+1," - 1") -> 53 - 1 | AD48: =CONCATENATE(LEFT(AD47,2)," - 4") -> 59 - 4 | AE48: =CONCATENATE(LEFT(AE47,2)," - 3") -> 66 - 3 | AI48: 0.50 B | AM48: AMP020304 | AN48: J H Rudolph @ St Croix Indiana | AR48: Limestone #4's | AS48: 10330
A49: Bid Item | E49: ASPHCEM Code | F49: Bind. Gr. | G49: ESAL | H49: Mat. Code | I49: Max. | J49: NMAS | K49: Metric? | L49: Skid Data | M49: cd_id | N49: 6 - 1 | O49: 12 - 4 | P49: 19 - 3 | Q49: 26 - 2 | R49: 33 - 1 | S49: =IF(LEFT('Design Data'!H23,3)="240",'Design Data'!H23,"") ->  | T49: =IF(S49="","",'Design Data'!M23) ->  | U49: =IF(S49=24035,1,0) -> 0 | V49: =IF(OR(S49=24025,S49=24030,S49=24033),1,0) -> 0 | AA49: =CONCATENATE(LEFT(AA48,2)," - 4") -> 39 - 4 | AB49: =CONCATENATE(LEFT(AB48,2)," - 3") -> 46 - 3 | AC49: =CONCATENATE(LEFT(AC48,2)," - 2") -> 53 - 2 | AD49: =CONCATENATE(LEFT(AD48,2)+1," - 1") -> 60 - 1 | AE49: =CONCATENATE(LEFT(AE48,2)," - 4") -> 66 - 4 | AM49: AMP010301 | AN49: Jim Smith Contracting @ Graves County (Hickory) | AR49: Limestone #57's | AS49: 10345
N50: 6 - 2 | O50: 13 - 1 | P50: 19 - 4 | Q50: 26 - 3 | R50: 33 - 2 | S50: =IF(LEFT('Design Data'!H24,3)="240",'Design Data'!H24,"") ->  | T50: =IF(S50="","",'Design Data'!M24) ->  | U50: 0 | V50: 0 | AA50: =CONCATENATE(LEFT(AA49,2)+1," - 1") -> 40 - 1 | AB50: =CONCATENATE(LEFT(AB49,2)," - 4") -> 46 - 4 | AC50: =CONCATENATE(LEFT(AC49,2)," - 3") -> 53 - 3 | AD50: =CONCATENATE(LEFT(AD49,2)," - 2") -> 60 - 2 | AE50: =CONCATENATE(LEFT(AE49,2)+1," - 1") -> 67 - 1 | AM50: AMP010101 | AN50: Jim Smith Contracting @ Lake City (Batch) | AR50: Limestone #5's | AS50: 10340
A51: 00018 DRAINAGE BLANKET-TYPE II-ASPH | E51: 6422 | F51: PG64-22 | G51: N/A | H51: 20025 | I51: 1.5 | J51: ATDB | K51: E | M51: M001 | N51: 6 - 3 | O51: 13 - 2 | P51: 20 - 1 | Q51: 26 - 4 | R51: 33 - 3 | S51: =IF(LEFT('Design Data'!H25,3)="240",'Design Data'!H25,"") ->  | T51: =IF(S51="","",'Design Data'!M25) ->  | U51: 0 | V51: 0 | AA51: =CONCATENATE(LEFT(AA50,2)," - 2") -> 40 - 2 | AB51: =CONCATENATE(LEFT(AB50,2)+1," - 1") -> 47 - 1 | AC51: =CONCATENATE(LEFT(AC50,2)," - 4") -> 53 - 4 | AD51: =CONCATENATE(LEFT(AD50,2)," - 3") -> 60 - 3 | AE51: =CONCATENATE(LEFT(AE50,2)," - 2") -> 67 - 2 | AM51: AMP010302 | AN51: Jim Smith Contracting @ Lake City (Drum) | AR51: Limestone #67's | AS51: 10350
A52: 00190 LEVELING & WEDGING (0.38-IN.) PG64-22 | E52: 6422 | F52: =RIGHT(A52,7) -> PG64-22 | G52: N/A | H52: 20250 | I52: 0.5 | J52: 0.38 | K52: E | M52: M003 | N52: 6 - 4 | O52: 13 - 3 | P52: 20 - 2 | Q52: 27 - 1 | R52: 33 - 4 | S52: =IF(LEFT('Design Data'!H26,3)="240",'Design Data'!H26,"") ->  | T52: =IF(S52="","",'Design Data'!M26) ->  | U52: 0 | V52: 0 | AA52: =CONCATENATE(LEFT(AA51,2)," - 3") -> 40 - 3 | AB52: =CONCATENATE(LEFT(AB51,2)," - 2") -> 47 - 2 | AC52: =CONCATENATE(LEFT(AC51,2)+1," - 1") -> 54 - 1 | AD52: =CONCATENATE(LEFT(AD51,2)," - 4") -> 60 - 4 | AE52: =CONCATENATE(LEFT(AE51,2)," - 3") -> 67 - 3 | AM52: AMP010303 | AN52: Jim Smith Contracting @ Paducah | AR52: LS #67's Class A | AS52: 10355
A53: 00190 LEVELING & WEDGING (0.50-IN.) PG64-22 | E53: 6422 | F53: =RIGHT(A53,7) -> PG64-22 | G53: N/A | H53: 20275 | I53: 0.75 | J53: 0.5 | K53: E | M53: M004 | N53: 7 - 1 | O53: 13 - 4 | P53: 20 - 3 | Q53: 27 - 2 | R53: 34 - 1 | S53: =IF(LEFT('Design Data'!H27,3)="240",'Design Data'!H27,"") ->  | T53: =IF(S53="","",'Design Data'!M27) ->  | U53: 0 | V53: 0 | AA53: =CONCATENATE(LEFT(AA52,2)," - 4") -> 40 - 4 | AB53: =CONCATENATE(LEFT(AB52,2)," - 3") -> 47 - 3 | AC53: =CONCATENATE(LEFT(AC52,2)," - 2") -> 54 - 2 | AD53: =CONCATENATE(LEFT(AD52,2)+1," - 1") -> 61 - 1 | AE53: =CONCATENATE(LEFT(AE52,2)," - 4") -> 67 - 4 | AM53: AMP060306 | AN53: Len Riegler Blacktop @ Florence | AR53: LS #67's Class B | AS53: 10360
A54: 00190 LEVELING & WEDGING (0.75-IN.) PG64-22 | E54: 6422 | F54: =RIGHT(A54,7) -> PG64-22 | G54: N/A | H54: 20300 | I54: 1 | J54: 0.75 | K54: E | M54: M005 | N54: 7 - 2 | O54: 14 - 1 | P54: 20 - 4 | Q54: 27 - 3 | R54: 34 - 2 | S54: =IF(LEFT('Design Data'!H28,3)="240",'Design Data'!H28,"") ->  | T54: =IF(S54="","",'Design Data'!M28) ->  | U54: 0 | V54: 0 | AA54: =CONCATENATE(LEFT(AA53,2)+1," - 1") -> 41 - 1 | AB54: =CONCATENATE(LEFT(AB53,2)," - 4") -> 47 - 4 | AC54: =CONCATENATE(LEFT(AC53,2)," - 3") -> 54 - 3 | AD54: =CONCATENATE(LEFT(AD53,2)," - 2") -> 61 - 2 | AE54: =CONCATENATE(LEFT(AE53,2)+1," - 1") -> 68 - 1 | AM54: AMP110501 | AN54: L-G Materials @ Corbin | AR54: Limestone #68's | AS54: 10365
A55: 00190 LEVELING & WEDGING (1.00-IN.) PG64-22 | E55: 6422 | F55: =RIGHT(A55,7) -> PG64-22 | G55: N/A | H55: 20325 | I55: 1.5 | J55: 1 | K55: E | M55: M006 | N55: 7 - 3 | O55: 14 - 2 | P55: 21 - 1 | Q55: 27 - 4 | R55: 34 - 3 | S55: =IF(AND(S49="",S50="",S51="",S52="",S53="",S54=""),"","Recycle") ->  | T55: =SUM(T49:T54) -> 0 | U55: =SUM(U49:U54) -> 0 | V55: =SUM(V49:V54) -> 0 | W55: =SUM(U55:V55) -> 0 | AA55: =CONCATENATE(LEFT(AA54,2)," - 2") -> 41 - 2 | AB55: =CONCATENATE(LEFT(AB54,2)+1," - 1") -> 48 - 1 | AC55: =CONCATENATE(LEFT(AC54,2)," - 4") -> 54 - 4 | AD55: =CONCATENATE(LEFT(AD54,2)," - 3") -> 61 - 3 | AE55: =CONCATENATE(LEFT(AE54,2)," - 2") -> 68 - 2 | AM55: AMP110502 | AN55: L-G Materials @ Fariston | AR55: LS #68's Class A | AS55: 10370
A56: 00190 LEVELING & WEDGING (1.50-IN.) PG64-22 | E56: 6422 | F56: =RIGHT(A56,7) -> PG64-22 | G56: N/A | H56: 20350 | I56: 2 | J56: 1.5 | K56: E | M56: M007 | AM56: AMP110202 | AN56: L-G Materials @ Manchester | AR56: LS #68's Class B | AS56: 10375
A57: 00191 ASPHALT SCRATCH COURSE (0.38-IN.) PG64-22 | E57: 6422 | F57: =RIGHT(A57,7) -> PG64-22 | G57: N/A | H57: 20375 | I57: 0.5 | J57: 0.38 | K57: E | M57: M013 | AA57: =IF($K$48="E",AE27+1000,AE27+900) -> 243900 | AB57: =IF($K$48="E",AA83+1000,AA83+900) -> 268200 | AC57: =IF($K$48="E",AB83+1000,AB83+900) -> 292500 | AD57: =IF($K$48="E",AC83+1000,AC83+900) -> 316800 | AE57: =IF($K$48="E",AD83+1000,AD83+900) -> 341100 | AM57: AMP110203 | AN57: L-G Materials @ McKee | AR57: Limestone #78's | AS57: 10380
A58: 00191 ASPHALT SCRATCH COURSE (0.50-IN.) PG64-22 | E58: 6422 | F58: PG64-22 | G58: N/A | H58: 20400 | I58: 0.75 | J58: 0.5 | K58: E | M58: M014 | AA58: =IF($K$48="E",AA57+1000,AA57+900) -> 244800 | AB58: 269100 | AC58: 293400 | AD58: 317700 | AE58: 342000 | AM58: AMP080302 | AN58: L-G Materials @ Mount Vernon | AR58: LS #78's Class A | AS58: 10385
A59: 00191 ASPHALT SCRATCH COURSE (0.75-IN.) PG64-22 | E59: 6422 | F59: PG64-22 | G59: N/A | H59: 20425 | I59: 1 | J59: 0.75 | K59: E | M59: M015 | AA59: =IF($K$48="E",AA58+1000,AA58+900) -> 245700 | AB59: 270000 | AC59: 294300 | AD59: 318600 | AE59: 342900 | AM59: AMP110302 | AN59: L-G Materials @ Pittsburg | AR59: LS #78's Class B | AS59: 10390
A60: 00191 ASPHALT SCRATCH COURSE (1.00-IN.) PG64-22 | E60: 6422 | F60: PG64-22 | G60: N/A | H60: 20450 | I60: 1.5 | J60: 1 | K60: E | M60: M016 | AA60: 246600 | AB60: 270900 | AC60: 295200 | AD60: 319500 | AE60: 343800 | AM60: AMP080306 | AN60: L-G Materials @ Shopville | AR60: Limestone #8's | AS60: 10395
A61: 00191 ASPHALT SCRATCH COURSE (1.50-IN.) PG64-22 | E61: 6422 | F61: PG64-22 | G61: N/A | H61: 20475 | I61: 2 | J61: 1.5 | K61: E | M61: M017 | AA61: 247500 | AB61: 271800 | AC61: 296100 | AD61: 320400 | AE61: 344700 | AM61: AMP110305 | AN61: L-G Materials @ Williamsburg | AR61: LS #8's Class A | AS61: 10400
A62: 00193 ASPHALT SCRATCH COURSE (0.38-IN.) PG76-22 | E62: 7622 | F62: PG76-22 | G62: N/A | H62: 20375 | I62: 0.5 | J62: 0.38 | K62: E | M62: M033 | O62: ESAL Class | P62: Mix Type | Q62: NMAS | R62: Agg Des. | S62: PG Binder Grade | T62: Unit | AA62: 248400 | AB62: 272700 | AC62: 297000 | AD62: 321300 | AE62: 345600 | AM62: AMP050308 | AN62: Louisville Paving @ Brownsboro | AR62: LS #8's Class B | AS62: 10405
A63: 00193 ASPHALT SCRATCH COURSE (0.50-IN.) PG76-22 | E63: 7622 | F63: PG76-22 | G63: N/A | H63: 20400 | I63: 0.75 | J63: 0.5 | K63: E | M63: M034 | AA63: 249300 | AB63: 273600 | AC63: 297900 | AD63: 322200 | AE63: 346500 | AM63: AMP050301 | AN63: Louisville Paving @ Middletown | AR63: Limestone #9M's | AS63: 10410
A64: 00193 ASPHALT SCRATCH COURSE (0.75-IN.) PG76-22 | E64: 7622 | F64: PG76-22 | G64: N/A | H64: 20425 | I64: 1 | J64: 0.75 | K64: E | M64: M035 | O64: CL1 | P64: ASPH BASE | Q64: 1.50 | R64: A | S64: PG58-22 | T64: English | AA64: 250200 | AB64: 274500 | AC64: 298800 | AD64: 323100 | AE64: 347400 | AM64: AMP050401 | AN64: Louisville Paving @ Shepherdsville | AR64: LS #9M's Class A | AS64: 10415
A65: 00193 ASPHALT SCRATCH COURSE (1.00-IN.) PG76-22 | E65: 7622 | F65: PG76-22 | G65: N/A | H65: 20450 | I65: 1.5 | J65: 1 | K65: E | M65: M036 | O65: CL2 | P65: ASPH BIND | Q65: 1.00 | R65: B | S65: PG58-28 | T65: Metric | AA65: 251100 | AB65: 275400 | AC65: 299700 | AD65: 324000 | AE65: 348300 | AM65: AMP050101 | AN65: Mac Construction @ Jeffersonville IN | AR65: LS #9M's Class B | AS65: 10420
A66: 00193 ASPHALT SCRATCH COURSE (1.50-IN.) PG76-22 | E66: 7622 | F66: PG76-22 | G66: N/A | H66: 20475 | I66: 2 | J66: 1.5 | K66: E | M66: M037 | O66: CL3 | P66: ASPH SURF | Q66: 0.75 | R66: D | S66: PG64-22 | AA66: 252000 | AB66: 276300 | AC66: 300600 | AD66: 324900 | AE66: 349200 | AM66: AMP020103 | AN66: Madisonville Paving @ Madisonville | AR66: LS Combined-NSG | AS66: 10300
A67: 00194 LEVELING & WEDGING (0.38-IN.) PG76-22 | E67: 7622 | F67: PG76-22 | G67: N/A | H67: 20250 | I67: 0.5 | J67: 0.38 | K67: E | M67: M043 | O67: CL4 | Q67: 0.50 | S67: PG64-28 | AA67: 252900 | AB67: 277200 | AC67: 301500 | AD67: 325800 | AE67: 350100 | AM67: AMP040310 | AN67: Mago Construction @ Bardstown (Drum) | AR67: Limestone DGA | AS67: 10425
A68: 00194 LEVELING & WEDGING (0.50-IN.) PG76-22 | E68: 7622 | F68: PG76-22 | G68: N/A | H68: 20275 | I68: 0.75 | J68: 0.5 | K68: E | M68: M044 | Q68: 0.38 | S68: PG64-34 | AA68: 253800 | AB68: 278100 | AC68: 302400 | AD68: 326700 | AE68: 351000 | AM68: AMP060303 | AN68: Mago Construction @ Butler | AR68: LS NSG Class A | AS68: 10430
A69: 00194 LEVELING & WEDGING (0.75-IN.) PG76-22 | E69: 7622 | F69: PG76-22 | G69: N/A | H69: 20300 | I69: 1 | J69: 0.75 | K69: E | M69: M045 | S69: PG70-22 | AA69: 254700 | AB69: 279000 | AC69: 303300 | AD69: 327600 | AE69: 351900 | AM69: AMP060104 | AN69: Mago Construction @ Foster | AR69: LS NSG Class B | AS69: 10435
A70: 00194 LEVELING & WEDGING (1.00-IN.) PG76-22 | E70: 7622 | F70: PG76-22 | G70: N/A | H70: 20325 | I70: 1.5 | J70: 1 | K70: E | M70: M046 | S70: PG70-28 | AA70: 255600 | AB70: 279900 | AC70: 304200 | AD70: 328500 | AE70: 352800 | AM70: AMP040102 | AN70: Mago Construction @ Hardinsburg | AR70: LS NSG-Coarse | AS70: 10440
A71: 00194 LEVELING & WEDGING (1.50-IN.) PG76-22 | E71: 7622 | F71: PG76-22 | G71: N/A | H71: 20350 | I71: 2 | J71: 1.5 | K71: E | M71: M047 | S71: PG76-22 | AA71: 256500 | AB71: 280800 | AC71: 305100 | AD71: 329400 | AE71: 353700 | AM71: AMP070102 | AN71: Mago Construction @ Harrodsburg | AR71: LS NSG-Fine (Unwashed) | AS71: 10323
A72: 00203 CL2 ASPH BASE 1.50D PG64-22 | E72: 6422 | F72: PG64-22 | G72: 2 | H72: 20625 | I72: 2 | J72: 1.5 | K72: E | M72: M055 | S72: PG76-28 | AA72: 257400 | AB72: 281700 | AC72: 306000 | AD72: 330300 | AE72: 354600 | AM72: AMP040103 | AN72: Mago Construction @ Irvington | AR72: LS NSG-Fine (Washed) | AS72: 10320
A73: 00205 CL3 ASPH BASE 1.50D PG64-22 | E73: 6422 | F73: =RIGHT(A73,7) -> PG64-22 | G73: 3 | H73: 20625 | I73: 2 | J73: 1.5 | K73: E | M73: M059 | S73: PG82-22 | AA73: 258300 | AB73: 282600 | AC73: 306900 | AD73: 331200 | AE73: 355500 | AM73: AMP050306 | AN73: Mago Construction @ Lockport | AR73: LSS (Unwashed) | AS73: 10313
A74: 00207 CL3 ASPH BASE 1.50D PG76-22 | E74: 7622 | F74: PG76-22 | G74: 3 | H74: 20625 | I74: 2 | J74: 1.5 | K74: E | M74: M063 | S74: PG82-28 | AA74: =IF($K$48="E",AA73+1000,AA73+900) -> 259200 | AB74: 283500 | AC74: 307800 | AD74: 332100 | AE74: 356400 | AM74: AMP080103 | AN74: Mago Construction @ Monticello | AR74: LSS (Washed) | AS74: 10310
A75: 00208 CL4 ASPH BASE 1.50D PG64-22 | E75: 6422 | F75: PG64-22 | G75: 4 | H75: 20625 | I75: 2 | J75: 1.5 | K75: E | M75: M065 | S75: CRS-2P | AA75: =IF($K$48="E",AA74+1000,AA74+900) -> 260100 | AB75: 284400 | AC75: 308700 | AD75: 333000 | AE75: 357300 | AM75: AMP050307 | AN75: Mago Construction @ Shepherdsville | AR75: LSS Anti-Skid A (Unwashed) | AS75: 10436
A76: 00210 CL4 ASPH BASE 1.50D PG76-22 | E76: 7622 | F76: PG76-22 | G76: 4 | H76: 20625 | I76: 2 | J76: 1.5 | K76: E | M76: M069 | AA76: 261000 | AB76: 285300 | AC76: 309600 | AD76: 333900 | AE76: 358200 | AM76: AMP070103 | AN76: Mago Construction @ Tyrone | AR76: LSS Anti-Skid A (Washed) | AS76: 10436
A77: 00212 CL2 ASPH BASE 1.00D PG64-22 | E77: 6422 | F77: PG64-22 | G77: 2 | H77: 20600 | I77: 1.5 | J77: 1 | K77: E | M77: M073 | AA77: 261900 | AB77: 286200 | AC77: 310500 | AD77: 334800 | AE77: 359100 | AM77: AMP090104 | AN77: Maysville Materials @ Maysville | AR77: LSS Anti-Skid B (Unwashed) | AS77: 10437
A78: 00214 CL3 ASPH BASE 1.00D PG64-22 | E78: 6422 | F78: PG64-22 | G78: 3 | H78: 20600 | I78: 1.5 | J78: 1 | K78: E | M78: M077 | AA78: 262800 | AB78: 287100 | AC78: 311400 | AD78: 335700 | AE78: 360000 | AM78: AMP090302 | AN78: Mountain Enterprises @ Ashland | AR78: LSS Anti-Skid B (Washed) | AS78: 10437
A79: 00216 CL3 ASPH BASE 1.00D PG76-22 | E79: 7622 | F79: PG76-22 | G79: 3 | H79: 20600 | I79: 1.5 | J79: 1 | K79: E | M79: M081 | AA79: 263700 | AB79: 288000 | AC79: 312300 | AD79: 336600 | AE79: 360900 | AM79: AMP120307 | AN79: Mountain Enterprises @ Cumberland | AR79: Mineral Filler | AS79: 10315
A80: 00217 CL4 ASPH BASE 1.00D PG64-22 | E80: 6422 | F80: PG64-22 | G80: 4 | H80: 20600 | I80: 1.5 | J80: 1 | K80: E | M80: M083 | AA80: 264600 | AB80: 288900 | AC80: 313200 | AD80: 337500 | AE80: 361800 | AM80: AMP090105 | AN80: Mountain Enterprises @ Grassy Creek | AR80: Natural Sand | AS80: 10436
A81: 00219 CL4 ASPH BASE 1.00D PG76-22 | E81: 7622 | F81: PG76-22 | G81: 4 | H81: 20600 | I81: 1.5 | J81: 1 | K81: E | M81: M087 | AA81: 265500 | AB81: 289800 | AC81: 314100 | AD81: 338400 | AE81: 362700 | AM81: AMP110101 | AN81: Mountain Enterprises @ Harlan | AR81: Natural Rock Asphalt | AS81: 24045
A82: 00221 CL2 ASPH BASE 0.75D PG64-22 | E82: 6422 | F82: PG64-22 | G82: 2 | H82: 20575 | I82: 1 | J82: 0.75 | K82: E | M82: M091 | AA82: 266400 | AB82: 290700 | AC82: 315000 | AD82: 339300 | AE82: 363600 | AM82: AMP100303 | AN82: Mountain Enterprises @ Hazard | AR82: Coarse RAP | AS82: 24025
A83: 00223 CL3 ASPH BASE 0.75D PG64-22 | E83: 6422 | F83: PG64-22 | G83: 3 | H83: 20575 | I83: 1 | J83: 0.75 | K83: E | M83: M095 | AA83: 267300 | AB83: 291600 | AC83: 315900 | AD83: 340200 | AE83: 364500 | AM83: AMP120102 | AN83: Mountain Enterprises @ Inez | AR83: Intermediate RAP | AS83: 24030
A84: 00225 CL3 ASPH BASE 0.75D PG76-22 | E84: 7622 | F84: PG76-22 | G84: 3 | H84: 20575 | I84: 1 | J84: 0.75 | K84: E | M84: M099 | AM84: AMP120301 | AN84: Mountain Enterprises @ Jenkins | AR84: Fine RAP | AS84: 24033
A85: 00226 CL4 ASPH BASE 0.75D PG64-22 | E85: 6422 | F85: PG64-22 | G85: 4 | H85: 20575 | I85: 1 | J85: 0.75 | K85: E | M85: M101 | AA85: 68 - 3 | AB85: =CONCATENATE(LEFT(AA111,2)," - 2") -> 75 - 2 | AC85: =CONCATENATE(LEFT(AB111,2)+1," - 1") -> 83 - 1 | AD85: =CONCATENATE(LEFT(AC111,2)," - 4") -> 89 - 4 | AE85: =CONCATENATE(LEFT(AD111,2)," - 3") -> 96 - 3 | AM85: AMP090106 | AN85: Mountain Enterprises @ Kenova,WV | AR85: Quartzite #8's Class A | AS85: 10400
A86: 00228 CL4 ASPH BASE 0.75D PG76-22 | E86: 7622 | F86: PG76-22 | G86: 4 | H86: 20575 | I86: 1 | J86: 0.75 | K86: E | M86: M105 | AA86: =CONCATENATE(LEFT(AA85,2)," - 4") -> 68 - 4 | AB86: =CONCATENATE(LEFT(AB85,2)," - 3") -> 75 - 3 | AC86: =CONCATENATE(LEFT(AC85,2)," - 2") -> 83 - 2 | AD86: =CONCATENATE(LEFT(AD85,2)+1," - 1") -> 90 - 1 | AE86: =CONCATENATE(LEFT(AE85,2)," - 4") -> 96 - 4 | AM86: AMP120306 | AN86: Mountain Enterprises @ Louisa | AR86: Quartzite #9M's Class A | AS86: 10415
A87: 06427 TRENCHING (0.38-IN.) PG64-22 | E87: 6422 | F87: PG64-22 | G87: N/A | H87: 20500 | I87: 0.5 | J87: 0.38 | K87: E | M87: M107 | AA87: =CONCATENATE(LEFT(AA86,2)+1," - 1") -> 69 - 1 | AB87: =CONCATENATE(LEFT(AB86,2)+1," - 4") -> 76 - 4 | AC87: =CONCATENATE(LEFT(AC86,2)," - 3") -> 83 - 3 | AD87: =CONCATENATE(LEFT(AD86,2)," - 2") -> 90 - 2 | AE87: =CONCATENATE(LEFT(AE86,2)+1," - 1") -> 97 - 1 | AM87: AMP120302 | AN87: Mountain Enterprises @ Martin | AR87: Quartzite Sand (Unwashed) Class A | AS87: 10313
A88: 06427 TRENCHING (0.38-IN.) PG76-22 | E88: 7622 | F88: PG76-22 | G88: N/A | H88: 20500 | I88: 0.5 | J88: 0.38 | K88: E | M88: M109 | O88: Agg. 1 | P88: =COUNTA('Polish-Resistant Data'!B21:B33) -> 0 | AA88: =CONCATENATE(LEFT(AA87,2)," - 2") -> 69 - 2 | AB88: =CONCATENATE(LEFT(AB87,2)+1," - 1") -> 77 - 1 | AC88: =CONCATENATE(LEFT(AC87,2)," - 4") -> 83 - 4 | AD88: =CONCATENATE(LEFT(AD87,2)," - 3") -> 90 - 3 | AE88: =CONCATENATE(LEFT(AE87,2)," - 2") -> 97 - 2 | AM88: AMP090107 | AN88: Mountain Enterprises @ Olive Hill (Batch) | AR88: Quartzite Sand (Washed) Class A | AS88: 10310
A89: 06427 TRENCHING (0.50-IN.) PG64-22 | E89: 6422 | F89: =RIGHT(A89,7) -> PG64-22 | G89: N/A | H89: 20550 | I89: 0.75 | J89: 0.5 | K89: E | M89: M111 | O89: Agg. 2 | P89: =COUNTA('Polish-Resistant Data'!C21:C33) -> 0 | AA89: =CONCATENATE(LEFT(AA88,2)," - 3") -> 69 - 3 | AB89: =CONCATENATE(LEFT(AB88,2)," - 2") -> 77 - 2 | AC89: =CONCATENATE(LEFT(AC88,2)+1," - 1") -> 84 - 1 | AD89: =CONCATENATE(LEFT(AD88,2)," - 4") -> 90 - 4 | AE89: =CONCATENATE(LEFT(AE88,2)," - 3") -> 97 - 3 | AM89: AMP120304 | AN89: Mountain Enterprises @ Shelbiana | AR89: ROM | AS89: 10300
A90: 06427 TRENCHING (0.50-IN.) PG76-22 | E90: 7622 | F90: PG76-22 | G90: N/A | H90: 20550 | I90: 0.75 | J90: 0.5 | K90: E | M90: M113 | O90: Agg. 3 | P90: =COUNTA('Polish-Resistant Data'!D21:D33) -> 0 | AA90: =CONCATENATE(LEFT(AA89,2)," - 4") -> 69 - 4 | AB90: =CONCATENATE(LEFT(AB89,2)," - 3") -> 77 - 3 | AC90: =CONCATENATE(LEFT(AC89,2)," - 2") -> 84 - 2 | AD90: =CONCATENATE(LEFT(AD89,2)+1," - 1") -> 91 - 1 | AE90: =CONCATENATE(LEFT(AE89,2)," - 4") -> 97 - 4 | AM90: AMP120305 | AN90: Mountain Enterprises @ Turkey Creek | AR90: Sandst. #78’s Class A | AS90: 10385
A91: 06427 TRENCHING (0.75-IN.) PG64-22 | E91: 6422 | F91: PG64-22 | G91: N/A | H91: 20575 | I91: 1 | J91: 0.75 | K91: E | M91: M115 | O91: Agg. 4 | P91: =COUNTA('Polish-Resistant Data'!E21:E33) -> 0 | AA91: =CONCATENATE(LEFT(AA90,2)+1," - 1") -> 70 - 1 | AB91: =CONCATENATE(LEFT(AB90,2)," - 4") -> 77 - 4 | AC91: =CONCATENATE(LEFT(AC90,2)," - 3") -> 84 - 3 | AD91: =CONCATENATE(LEFT(AD90,2)," - 2") -> 91 - 2 | AE91: =CONCATENATE(LEFT(AE90,2)+1," - 1") -> 98 - 1 | AM91: AMP010102 | AN91: Murray Paving @ Murray (Batch) | AR91: Sandst. #8’s Class A | AS91: 10400
A92: 06427 TRENCHING (0.75-IN.) PG76-22 | E92: 7622 | F92: PG76-22 | G92: N/A | H92: 20575 | I92: 1 | J92: 0.75 | K92: E | M92: M117 | O92: Agg. 5 | P92: =COUNTA('Polish-Resistant Data'!F21:F33) -> 0 | AA92: =CONCATENATE(LEFT(AA91,2)," - 2") -> 70 - 2 | AB92: =CONCATENATE(LEFT(AB91,2)+1," - 1") -> 78 - 1 | AC92: =CONCATENATE(LEFT(AC91,2)," - 4") -> 84 - 4 | AD92: =CONCATENATE(LEFT(AD91,2)," - 3") -> 91 - 3 | AE92: =CONCATENATE(LEFT(AE91,2)," - 2") -> 98 - 2 | AM92: AMP010307 | AN92: Murray Paving @ Murray (Drum) | AR92: Sandst. #9-M’s Class A | AS92: 10415
A93: 06427 TRENCHING (1.00-IN.) PG64-22 | E93: 6422 | F93: PG64-22 | G93: N/A | H93: 20600 | I93: 1.5 | J93: 1 | K93: E | M93: M119 | O93: Agg. 6 | P93: =COUNTA('Polish-Resistant Data'!G21:G33) -> 0 | AA93: =CONCATENATE(LEFT(AA92,2)," - 3") -> 70 - 3 | AB93: =CONCATENATE(LEFT(AB92,2)," - 2") -> 78 - 2 | AC93: =CONCATENATE(LEFT(AC92,2)+1," - 1") -> 85 - 1 | AD93: =CONCATENATE(LEFT(AD92,2)," - 4") -> 91 - 4 | AE93: =CONCATENATE(LEFT(AE92,2)," - 3") -> 98 - 3 | AM93: AMP060304 | AN93: Ohio Valley Asphalt @ Carrollton | AR93: Sandst. #11’s Class A | AS93: 10295
A94: 06427 TRENCHING (1.00-IN.) PG76-22 | E94: 7622 | F94: PG76-22 | G94: N/A | H94: 20600 | I94: 1.5 | J94: 1 | K94: E | M94: M121 | AA94: =CONCATENATE(LEFT(AA93,2)," - 4") -> 70 - 4 | AB94: =CONCATENATE(LEFT(AB93,2)," - 3") -> 78 - 3 | AC94: =CONCATENATE(LEFT(AC93,2)," - 2") -> 85 - 2 | AD94: =CONCATENATE(LEFT(AD93,2)+1," - 1") -> 92 - 1 | AE94: =CONCATENATE(LEFT(AE93,2)," - 4") -> 98 - 4 | AM94: AMP020303 | AN94: Owensboro Paving @ Owensboro (Drum) | AR94: Sandst. Sand (Unwashed) Class A | AS94: 10313
A95: 06427 TRENCHING (1.50-IN.) PG64-22 | E95: 6422 | F95: PG64-22 | G95: N/A | H95: 20625 | I95: 2 | J95: 1.5 | K95: E | M95: M123 | AA95: =CONCATENATE(LEFT(AA94,2)+1," - 1") -> 71 - 1 | AB95: =CONCATENATE(LEFT(AB94,2)," - 4") -> 78 - 4 | AC95: =CONCATENATE(LEFT(AC94,2)," - 3") -> 85 - 3 | AD95: =CONCATENATE(LEFT(AD94,2)," - 2") -> 92 - 2 | AE95: =CONCATENATE(LEFT(AE94,2)+1," - 1") -> 99 - 1 | AM95: AMP020307 | AN95: Owensboro Paving @ Owensboro (Drum#2) | AR95: Sandst. Sand (Washed) Class A | AS95: 10310
A96: 06427 TRENCHING (1.50-IN.) PG76-22 | E96: 7622 | F96: PG76-22 | G96: N/A | H96: 20625 | I96: 2 | J96: 1.5 | K96: E | M96: M125 | O96: =SUM('Recycle Data'!K12:K15) -> 0 | P96: ='Recycle Data'!K12/O96 ->  | Q96: =IF('Recycle Data'!L12="","",('Recycle Data'!L12*P96)) ->  | AA96: =CONCATENATE(LEFT(AA95,2)," - 2") -> 71 - 2 | AB96: =CONCATENATE(LEFT(AB95,2)+1," - 1") -> 79 - 1 | AC96: =CONCATENATE(LEFT(AC95,2)," - 4") -> 85 - 4 | AD96: =CONCATENATE(LEFT(AD95,2)," - 3") -> 92 - 3 | AE96: =CONCATENATE(LEFT(AE95,2)," - 2") -> 99 - 2 | AM96: AMP020305 | AN96: Pennyrile Asphalt @ Hopkinsville | AR96: Shingles | AS96: 24035
A97: 03240 BASE FAILURE REPAIR (0.75-IN) PG64-22 | E97: 6422 | F97: PG64-22 | G97: N/A | H97: 20575 | I97: 1 | J97: 0.75 | K97: E | M97: M127 | P97: ='Recycle Data'!K13/O96 ->  | Q97: =IF('Recycle Data'!L13="","",('Recycle Data'!L13*P97)) ->  | AA97: =CONCATENATE(LEFT(AA96,2)," - 3") -> 71 - 3 | AB97: =CONCATENATE(LEFT(AB96,2)," - 2") -> 79 - 2 | AC97: =CONCATENATE(LEFT(AC96,2)+1," - 1") -> 86 - 1 | AD97: =CONCATENATE(LEFT(AD96,2)," - 4") -> 92 - 4 | AE97: =CONCATENATE(LEFT(AE96,2)," - 3") -> 99 - 3 | AM97: AMP050202 | AN97: Riverside Paving @ Louisville | AR97: Siltstone #67's | AS97: 10355
A98: 03240 BASE FAILURE REPAIR (0.75-IN) PG76-22 | E98: 7622 | F98: PG76-22 | G98: N/A | H98: 20575 | I98: 1 | J98: 0.75 | K98: E | M98: M129 | P98: ='Recycle Data'!K14/O96 ->  | Q98: =IF('Recycle Data'!L14="","",('Recycle Data'!L14*P98)) ->  | AA98: =CONCATENATE(LEFT(AA97,2)," - 4") -> 71 - 4 | AB98: =CONCATENATE(LEFT(AB97,2)," - 3") -> 79 - 3 | AC98: =CONCATENATE(LEFT(AC97,2)," - 2") -> 86 - 2 | AD98: =CONCATENATE(LEFT(AD97,2)+1," - 1") -> 93 - 1 | AE98: =CONCATENATE(LEFT(AE97,2)," - 4") -> 99 - 4 | AM98: AMP010305 | AN98: Rogers Group @ Canton | AR98: Siltstone #78's | AS98: 10385
A99: 03240 BASE FAILURE REPAIR (1.00-IN) PG64-22 | E99: 6422 | F99: PG64-22 | G99: N/A | H99: 20600 | I99: 1.5 | J99: 1 | K99: E | M99: M131 | P99: ='Recycle Data'!K15/O96 ->  | Q99: =IF('Recycle Data'!L15="","",('Recycle Data'!L15*P99)) ->  | R99: =IF(SUM(Q96:Q99)=0,"",SUM(Q96:Q99)) ->  | AA99: =CONCATENATE(LEFT(AA98,2)+1," - 1") -> 72 - 1 | AB99: =CONCATENATE(LEFT(AB98,2)," - 4") -> 79 - 4 | AC99: =CONCATENATE(LEFT(AC98,2)," - 3") -> 86 - 3 | AD99: =CONCATENATE(LEFT(AD98,2)," - 2") -> 93 - 2 | AE99: =CONCATENATE(LEFT(AE98,2)+1," - 1") -> 100 - 1 | AM99: AMP020105 | AN99: Rogers Group @ Henderson | AR99: Siltstone #8's | AS99: 10400
A100: 03240 BASE FAILURE REPAIR (1.00-IN) PG76-22 | E100: 7622 | F100: PG76-22 | G100: N/A | H100: 20600 | I100: 1.5 | J100: 1 | K100: E | M100: M133 | AA100: =CONCATENATE(LEFT(AA99,2)," - 2") -> 72 - 2 | AB100: =CONCATENATE(LEFT(AB99,2)+1," - 1") -> 80 - 1 | AC100: =CONCATENATE(LEFT(AC99,2)," - 4") -> 86 - 4 | AD100: =CONCATENATE(LEFT(AD99,2)," - 3") -> 93 - 3 | AE100: =CONCATENATE(LEFT(AE99,3)," - 2") -> 100 - 2 | AM100: AMP020306 | AN100: Rogers Group @ Hopkinsville (Drum) | AR100: Siltstone #9M's | AS100: 10415
A101: 03240 BASE FAILURE REPAIR (1.50-IN) PG64-22 | E101: 6422 | F101: PG64-22 | G101: N/A | H101: 20625 | I101: 2 | J101: 1.5 | K101: E | M101: M135 | AA101: =CONCATENATE(LEFT(AA100,2)," - 3") -> 72 - 3 | AB101: =CONCATENATE(LEFT(AB100,2)," - 2") -> 80 - 2 | AC101: =CONCATENATE(LEFT(AC100,2)+1," - 1") -> 87 - 1 | AD101: =CONCATENATE(LEFT(AD100,2)," - 4") -> 93 - 4 | AE101: =CONCATENATE(LEFT(AE100,3)," - 3") -> 100 - 3 | AM101: AMP010306 | AN101: Rogers Group @ Marion (Drum) | AR101: Siltsone Sand | AS101: 10436
A102: 03240 BASE FAILURE REPAIR (1.50-IN) PG76-22 | E102: 7622 | F102: PG76-22 | G102: N/A | H102: 20625 | I102: 2 | J102: 1.5 | K102: E | M102: M137 | O102: =SUM('Recycle Data'!K12:K15) -> 0 | P102: ='Recycle Data'!K12/O102 ->  | Q102: =IF(OR('Recycle Data'!L12="",'Recycle Data'!O12=""),"",('Recycle Data'!O12*P102)) ->  | AA102: =CONCATENATE(LEFT(AA101,2)," - 4") -> 72 - 4 | AB102: =CONCATENATE(LEFT(AB101,2)," - 3") -> 80 - 3 | AC102: =CONCATENATE(LEFT(AC101,2)," - 2") -> 87 - 2 | AD102: =CONCATENATE(LEFT(AD101,2)+1," - 1") -> 94 - 1 | AE102: =CONCATENATE(LEFT(AE101,3)," - 4") -> 100 - 4 | AM102: AMP030311 | AN102: Scottys Contracting @ Bowling Green (North) | AR102: Slag #57's | AS102: 10345
A103: 00263 ASPHALT MIX FOR PAVEMENT WEDGE (0.38-IN.) | E103: 6422 | F103: PG64-22 | G103: N/A | H103: 20225 | I103: 0.5 | J103: 0.38 | K103: E | M103: M139 | P103: ='Recycle Data'!K13/O102 ->  | Q103: =IF(OR('Recycle Data'!L13="",'Recycle Data'!O13=""),"",('Recycle Data'!O13*P103)) ->  | AA103: =CONCATENATE(LEFT(AA102,2)+1," - 1") -> 73 - 1 | AB103: =CONCATENATE(LEFT(AB102,2)," - 4") -> 80 - 4 | AC103: =CONCATENATE(LEFT(AC102,2)," - 3") -> 87 - 3 | AD103: =CONCATENATE(LEFT(AD102,2)," - 2") -> 94 - 2 | AE103: =CONCATENATE(LEFT(AE102,3)+1," - 1") -> 101 - 1 | AM103: AMP030303 | AN103: Scottys Contracting @ Bowling Green (South) | AR103: Slag #67's Class A | AS103: 10355
A104: 00263 ASPHALT MIX FOR PAVEMENT WEDGE (0.50-IN.) | E104: 6422 | F104: PG64-22 | G104: N/A | H104: 20225 | I104: 0.75 | J104: 0.5 | K104: E | M104: M140 | P104: ='Recycle Data'!K14/O102 ->  | Q104: =IF(OR('Recycle Data'!L14="",'Recycle Data'!O14=""),"",('Recycle Data'!O14*P104)) ->  | AA104: =CONCATENATE(LEFT(AA103,2)," - 2") -> 73 - 2 | AB104: =CONCATENATE(LEFT(AB103,2)+1," - 1") -> 81 - 1 | AC104: =CONCATENATE(LEFT(AC103,2)," - 4") -> 87 - 4 | AD104: =CONCATENATE(LEFT(AD103,2)," - 3") -> 94 - 3 | AE104: =CONCATENATE(LEFT(AE103,3)," - 2") -> 101 - 2 | AM104: AMP030305 | AN104: Scottys Contracting @ Glasgow ("Rambo") | AR104: Slag #67's Class B | AS104: 10360
A105: 00263 ASPHALT MIX FOR PAVEMENT WEDGE (0.75-IN.) | E105: 6422 | F105: PG64-22 | G105: N/A | H105: 20225 | I105: 1 | J105: 0.75 | K105: E | M105: M141 | P105: ='Recycle Data'!K15/O102 ->  | Q105: =IF(OR('Recycle Data'!L15="",'Recycle Data'!O15=""),"",('Recycle Data'!O15*P105)) ->  | R105: =IF(SUM(Q102:Q105)=0,"",SUM(Q102:Q105)) ->  | AA105: =CONCATENATE(LEFT(AA104,2)," - 3") -> 73 - 3 | AB105: =CONCATENATE(LEFT(AB104,2)," - 2") -> 81 - 2 | AC105: =CONCATENATE(LEFT(AC104,2)+1," - 1") -> 88 - 1 | AD105: =CONCATENATE(LEFT(AD104,2)," - 4") -> 94 - 4 | AE105: =CONCATENATE(LEFT(AE104,3)," - 3") -> 101 - 3 | AM105: AMP030301 | AN105: Scottys Contracting @ Glasgow | AR105: Slag #68's Class A | AS105: 10370
A106: 00263 ASPHALT MIX FOR PAVEMENT WEDGE (1.00-IN.) | E106: 6422 | F106: PG64-22 | G106: N/A | H106: 20225 | I106: 1.5 | J106: 1 | K106: E | M106: M142 | AA106: =CONCATENATE(LEFT(AA105,2)," - 4") -> 73 - 4 | AB106: =CONCATENATE(LEFT(AB105,2)," - 3") -> 81 - 3 | AC106: =CONCATENATE(LEFT(AC105,2)," - 2") -> 88 - 2 | AD106: =CONCATENATE(LEFT(AD105,2)+1," - 1") -> 95 - 1 | AE106: =CONCATENATE(LEFT(AE105,3)," - 4") -> 101 - 4 | AM106: AMP020101 | AN106: Scottys Contracting @ Greenville | AR106: Slag #68's Class B | AS106: 10375
A107: 00263 ASPHALT MIX FOR PAVEMENT WEDGE (1.50-IN.) | E107: 6422 | F107: PG64-22 | G107: N/A | H107: 20225 | I107: 2 | J107: 1.5 | K107: E | M107: M143 | AA107: =CONCATENATE(LEFT(AA106,2)+1," - 1") -> 74 - 1 | AB107: =CONCATENATE(LEFT(AB106,2)," - 4") -> 81 - 4 | AC107: =CONCATENATE(LEFT(AC106,2)," - 3") -> 88 - 3 | AD107: =CONCATENATE(LEFT(AD106,2)," - 2") -> 95 - 2 | AE107: =CONCATENATE(LEFT(AE106,3)+1," - 1") -> 102 - 1 | AM107: AMP020309 | AN107: Scottys Contracting @ Hartford | AR107: Slag #78's Class A | AS107: 10385
A108: 00267 ASPH SURF OPEN-GRADED PG64-22 | E108: 6422 | F108: =RIGHT(A108,7) -> PG64-22 | G108: N/A | H108: 20050 | I108: 0.5 | J108: OGFC | K108: E | L108: A | M108: M151 | O108: =SUM('Recycle Data'!K12:K15) -> 0 | P108: ='Recycle Data'!K12/O108 ->  | Q108: =IF(OR('Recycle Data'!L12="",'Recycle Data'!P12=""),"",('Recycle Data'!P12*P108)) ->  | AA108: =CONCATENATE(LEFT(AA107,2)," - 2") -> 74 - 2 | AB108: =CONCATENATE(LEFT(AB107,2)+1," - 1") -> 82 - 1 | AC108: =CONCATENATE(LEFT(AC107,2)," - 4") -> 88 - 4 | AD108: =CONCATENATE(LEFT(AD107,2)," - 3") -> 95 - 3 | AE108: =CONCATENATE(LEFT(AE107,3)," - 2") -> 102 - 2 | AM108: AMP020310 | AN108: Scottys Contracting @ Madisonville ("Rocky") | AR108: Slag #78's Class B | AS108: 10390
A109: 00268 ASPH SURF OPEN-GRADED PG76-22 | E109: 7622 | F109: =RIGHT(A109,7) -> PG76-22 | G109: N/A | H109: 20050 | I109: 0.5 | J109: OGFC | K109: E | L109: A | M109: M153 | P109: ='Recycle Data'!K13/O108 ->  | Q109: =IF(OR('Recycle Data'!L13="",'Recycle Data'!P13=""),"",('Recycle Data'!P13*P109)) ->  | AA109: =CONCATENATE(LEFT(AA108,2)," - 3") -> 74 - 3 | AB109: =CONCATENATE(LEFT(AB108,2)," - 2") -> 82 - 2 | AC109: =CONCATENATE(LEFT(AC108,2)+1," - 1") -> 89 - 1 | AD109: =CONCATENATE(LEFT(AD108,2)," - 4") -> 95 - 4 | AE109: =CONCATENATE(LEFT(AE108,3)," - 3") -> 102 - 3 | AM109: AMP020311 | AN109: Scottys Contracting @ Madisonville ("Rolling Thunder") | AR109: Slag #8's Class A | AS109: 10400
A110: 00269 MODIFIED OPEN-GRADED DRAINAGE COURSE | E110: 6422 | F110: PG64-22 | G110: N/A | H110: 20075 | I110: 0.5 | J110: OGDC | K110: E | M110: M155 | P110: ='Recycle Data'!K14/O108 ->  | Q110: =IF(OR('Recycle Data'!L14="",'Recycle Data'!P14=""),"",('Recycle Data'!P14*P110)) ->  | AA110: =CONCATENATE(LEFT(AA109,2)," - 4") -> 74 - 4 | AB110: =CONCATENATE(LEFT(AB109,2)," - 3") -> 82 - 3 | AC110: =CONCATENATE(LEFT(AC109,2)," - 2") -> 89 - 2 | AD110: =CONCATENATE(LEFT(AD109,2)+1," - 1") -> 96 - 1 | AE110: =CONCATENATE(LEFT(AE109,3)," - 4") -> 102 - 4 | AM110: AMP040311 | AN110: Scottys Contracting @ Upton ("Rocky") | AR110: Slag #8's Class B | AS110: 10405
A111: 00272 CL2 ASPH BIND 0.50D PG64-22 | E111: 6422 | F111: =RIGHT(A111,7) -> PG64-22 | G111: 2 | H111: 20550 | I111: 0.75 | J111: 0.5 | K111: E | M111: M158 | P111: ='Recycle Data'!#REF!/O108 ->  | Q111: =IF('Recycle Data'!L15="","",('Recycle Data'!P15*P111)) ->  | R111: =IF(SUM(Q108:Q111)=0,"",SUM(Q108:Q111)) ->  | AA111: =CONCATENATE(LEFT(AA110,2)+1," - 1") -> 75 - 1 | AB111: =CONCATENATE(LEFT(AB110,2)," - 4") -> 82 - 4 | AC111: =CONCATENATE(LEFT(AC110,2)," - 3") -> 89 - 3 | AD111: =CONCATENATE(LEFT(AD110,2)," - 2") -> 96 - 2 | AE111: =CONCATENATE(LEFT(AE110,3)," - 1") -> 102 - 1 | AM111: AMP040308 | AN111: Scottys Contracting @ Leitchfield (Drum #3) | AR111: Slag #9M's Class A | AS111: 10415
A112: 00274 CL3 ASPH BIND 0.50D PG64-22 | E112: 6422 | F112: PG64-22 | G112: 3 | H112: 20550 | I112: 0.75 | J112: 0.5 | K112: E | M112: M162 | AM112: AMP030306 | AN112: Scottys Contracting @ Russellville | AR112: Slag #9M's Class B | AS112: 10420
A113: 00276 CL3 ASPH BIND 0.50D PG76-22 | E113: 7622 | F113: PG76-22 | G113: 3 | H113: 20550 | I113: 0.75 | J113: 0.5 | K113: E | M113: M166 | AA113: =IF($K$48="E",AE83+1000,AE83+900) -> 365400 | AB113: =IF($K$48="E",AA139+1000,AA139+900) -> 389700 | AC113: =IF($K$48="E",AB139+1000,AB139+900) -> 414000 | AD113: =IF($K$48="E",AC139+1000,AC139+900) -> 438300 | AE113: =IF($K$48="E",AD139+1000,AD139+900) -> 462600 | AM113: AMP030309 | AN113: Scottys Contracting @ Scottsville | AR113: Slag NSG Class A | AS113: 10430
A114: 00277 CL4 ASPH BIND 0.50D PG64-22 | E114: 6422 | F114: PG64-22 | G114: 4 | H114: 20550 | I114: 0.75 | J114: 0.5 | K114: E | M114: M168 | O114: Recycle Information | AA114: =IF($K$48="E",AA113+1000,AA113+900) -> 366300 | AB114: =IF($K$48="E",AB113+1000,AB113+900) -> 390600 | AC114: =IF($K$48="E",AC113+1000,AC113+900) -> 414900 | AD114: =IF($K$48="E",AD113+1000,AD113+900) -> 439200 | AE114: =IF($K$48="E",AE113+1000,AE113+900) -> 463500 | AM114: AMP030307 | AN114: Scottys Contracting @ Tompkinsville ("Top Gun") | AR114: Slag NSG Class B | AS114: 10435
A115: 00279 CL4 ASPH BIND 0.50D PG76-22 | E115: 7622 | F115: PG76-22 | G115: 4 | H115: 20550 | I115: 0.75 | J115: 0.5 | K115: E | M115: M172 | O115: %AC in Recycle: | Q115: =R99 ->  | AA115: 367200 | AB115: 391500 | AC115: 415800 | AD115: 440100 | AE115: 464400 | AM115: AMP040309 | AN115: Scottys Contracting @ Upton ("Rolling Thunder") | AR115: Slag Sand Class A | AS115: 10436
A116: 00301 CL2 ASPH SURF 0.38D PG64-22 | E116: 6422 | F116: PG64-22 | G116: 2 | H116: 20500 | I116: 0.5 | J116: 0.38 | K116: E | M116: M176 | O116: %Virgin AC in mix: | Q116: ='Recycle Data'!J24 ->  | AA116: 368100 | AB116: 392400 | AC116: 416700 | AD116: 441000 | AE116: 465300 | AM116: AMP040304 | AN116: Scottys Contracting @ Vine Grove | AR116: Slag Sand Class B | AS116: 10437
A117: 00307 CL2 ASPH SURF 0.38B PG64-22 | E117: 6422 | F117: PG64-22 | G117: 2 | H117: 20500 | I117: 0.5 | J117: 0.38 | K117: E | L117: B | M117: M188 | O117: %Recycle AC in mix: | Q117: ='Recycle Data'!J23 ->  | AA117: 369000 | AB117: 393300 | AC117: 417600 | AD117: 441900 | AE117: 466200 | AM117: AMP030304 | AN117: Scottys Contracting @ Woodburn ("Boll Weevil")
A118: 00309 CL2 ASPH SURF 0.50D PG64-22 | E118: 6422 | F118: PG64-22 | G118: 2 | H118: 20525 | I118: 0.75 | J118: 0.5 | K118: E | M118: M192 | O118: Total %AC in mix: | Q118: =IF(OR(Q116="",Q117=""),"",(Q116+Q117)) ->  | AA118: 369900 | AB118: 394200 | AC118: 418500 | AD118: 442800 | AE118: 467100 | AM118: AMP050102 | AN118: Shelbyville Asphalt @ Shelbyville
A119: 00311 CL2 ASPH SURF 0.38B PG76-22 | E119: 7622 | F119: =RIGHT(A119,7) -> PG76-22 | G119: 2 | H119: 20500 | I119: 0.5 | J119: 0.38 | K119: E | L119: B | M119: M338 | AA119: 370800 | AB119: 395100 | AC119: 419400 | AD119: 443700 | AE119: 468000 | AM119: AMP070301 | AN119: The Allen Company @ Berea
A120: 00312 CL3 ASPH SURF 0.50D PG64-22 | E120: 6422 | F120: =RIGHT(A120,7) -> PG64-22 | G120: 3 | H120: 20525 | I120: 0.75 | J120: 0.5 | K120: E | M120: M194 | AA120: 371700 | AB120: 396000 | AC120: 420300 | AD120: 444600 | AE120: 468900 | AM120: AMP070302 | AN120: The Allen Company @ Boonesborough
A121: 00314 CL3 ASPH SURF 0.50D PG76-22 | E121: 7622 | F121: =RIGHT(A121,7) -> PG76-22 | G121: 3 | H121: 20525 | I121: 0.75 | J121: 0.5 | K121: E | L121: B | M121: M198 | AA121: 372600 | AB121: 396900 | AC121: 421200 | AD121: 445500 | AE121: 469800 | AM121: AMP110306 | AN121: The Allen Company @ Clover Bottom
A122: 00324 CL3 ASPH SURF 0.50B PG64-22 | E122: 6422 | F122: =RIGHT(A122,7) -> PG64-22 | G122: 3 | H122: 20525 | I122: 0.75 | J122: 0.5 | K122: E | L122: B | M122: M218 | AA122: 373500 | AB122: 397800 | AC122: 422100 | AD122: 446400 | AE122: 470700 | AM122: AMP070311 | AN122: The Allen Company @ Danville (Drum)
A123: 00326 CL3 ASPH SURF 0.50B PG76-22 | E123: 7622 | F123: PG76-22 | G123: 3 | H123: 20525 | I123: 0.75 | J123: 0.5 | K123: E | L123: B | M123: M356 | AA123: 374400 | AB123: 398700 | AC123: 423000 | AD123: 447300 | AE123: 471600 | AM123: AMP070501 | AN123: The Allen Company @ Danville
A124: 00327 CL4 ASPH SURF 0.50B PG64-22 | E124: 6422 | F124: PG64-22 | G124: 4 | H124: 20525 | I124: 0.75 | J124: 0.5 | K124: E | L124: B | M124: M224 | AA124: 375300 | AB124: 399600 | AC124: 423900 | AD124: 448200 | AE124: 472500 | AM124: AMP070307 | AN124: The Allen Company Lexington Quarry @ Nicholasville
A125: 00329 CL4 ASPH SURF 0.50B PG76-22 | E125: 7622 | F125: PG76-22 | G125: 4 | H125: 20525 | I125: 0.75 | J125: 0.5 | K125: E | L125: B | M125: M228 | AA125: 376200 | AB125: 400500 | AC125: 424800 | AD125: 449100 | AE125: 473400 | AM125: AMP100302 | AN125: The Walker Company @ Frenchburg
A126: 00330 CL3 ASPH SURF 0.50A PG64-22 | E126: 6422 | F126: PG64-22 | G126: 3 | H126: 20525 | I126: 0.75 | J126: 0.5 | K126: E | L126: A | M126: M230 | AA126: 377100 | AB126: 401400 | AC126: 425700 | AD126: 450000 | AE126: 474300 | AM126: AMP070308 | AN126: The Walker Company @ Mount Sterling
A127: 00332 CL3 ASPH SURF 0.50A PG76-22 | E127: 7622 | F127: PG76-22 | G127: 3 | H127: 20525 | I127: 0.75 | J127: 0.5 | K127: E | L127: A | M127: M234 | AA127: 378000 | AB127: 402300 | AC127: 426600 | AD127: 450900 | AE127: 475200 | AM127: AMP060106 | AN127: Valley Asphalt Corporation @ Cincinnati, OH
A128: 00333 CL4 ASPH SURF 0.50A PG64-22 | E128: 6422 | F128: PG64-22 | G128: 4 | H128: 20525 | I128: 0.75 | J128: 0.5 | K128: E | L128: A | M128: M236 | AA128: 378900 | AB128: 403200 | AC128: 427500 | AD128: 451800 | AE128: 476100 | AM128: AMP060310 | AN128: Valley Asphalt Corporation @ Cleves, OH
A129: 00334 CL3 ASPH SURF 0.38A PG64-22 (SLAG) | E129: 6422 | F129: PG64-22 | G129: 3 | H129: 20500 | I129: 0.5 | J129: 0.38 | K129: E | L129: A | M129: M347 | AA129: 379800 | AB129: 404100 | AC129: 428400 | AD129: 452700 | AE129: 477000 | AM129: AMPMP0301 | AN129: HCC Mobile Plant 1
A130: 00335 CL4 ASPH SURF 0.50A PG76-22 | E130: 7622 | F130: =RIGHT(A130,7) -> PG76-22 | G130: 4 | H130: 20525 | I130: 0.75 | J130: 0.5 | K130: E | L130: A | M130: M240 | AA130: 380700 | AB130: 405000 | AC130: 429300 | AD130: 453600 | AE130: 477900 | AM130: AMP?????? | AN130: Contractor & Loc. Not In Drop-Down List
A131: 00336 CL3 ASPH SURF 0.38A PG76-22 | E131: 7622 | F131: PG76-22 | G131: 3 | H131: 20500 | I131: 0.5 | J131: 0.38 | K131: E | L131: A | M131: M242 | AA131: 381600 | AB131: 405900 | AC131: 430200 | AD131: 454500 | AE131: 478800
A132: 00337 CL4 ASPH SURF 0.38B PG76-22 | E132: 7622 | F132: PG76-22 | G132: 4 | H132: 20500 | I132: 0.5 | J132: 0.38 | K132: E | L132: B | M132: M244 | AA132: 382500 | AB132: 406800 | AC132: 431100 | AD132: 455400 | AE132: 479700
A133: 00339 CL3 ASPH SURF 0.38D PG64-22 | E133: 6422 | F133: PG64-22 | G133: 3 | H133: 20500 | I133: 0.5 | J133: 0.38 | K133: E | M133: M246 | AA133: 383400 | AB133: 407700 | AC133: 432000 | AD133: 456300 | AE133: 480600
A134: 00340 CL2 ASPH SURF 0.38D PG76-22 | E134: 7622 | F134: PG76-22 | G134: 2 | H134: 20500 | I134: 0.5 | J134: 0.38 | K134: E | M134: M248 | AA134: 384300 | AB134: 408600 | AC134: 432900 | AD134: 457200 | AE134: 481500
A135: 00342 CL4 ASPH SURF 0.38A PG76-22 | E135: 7622 | F135: PG76-22 | G135: 4 | H135: 20500 | I135: 0.5 | J135: 0.38 | K135: E | L135: A | M135: M250 | AA135: 385200 | AB135: 409500 | AC135: 433800 | AD135: 458100 | AE135: 482400
A136: 00374 ASPH SURF SAND TY II PG64-22 | E136: 6422 | F136: PG64-22 | G136: N/A | H136: 20100 | I136: 0.25 | J136: SA TY II | K136: E | L136: A | M136: M254 | AA136: 386100 | AB136: 410400 | AC136: 434700 | AD136: 459000 | AE136: 483300
A137: 00385 CL3 ASPH SURF 0.38A PG64-22 | E137: 6422 | F137: PG64-22 | G137: 3 | H137: 20500 | I137: 0.5 | J137: 0.38 | K137: E | L137: A | M137: M334 | AA137: 387000 | AB137: 411300 | AC137: 435600 | AD137: 459900 | AE137: 484200
A138: 00386 CL3 ASPH SURF 0.38B PG64-22(SLAG) | E138: 6422 | F138: PG64-22 | G138: 3 | H138: 20500 | I138: 0.5 | J138: 0.38 | K138: E | L138: B | M138: M348 | AA138: 387900 | AB138: 412200 | AC138: 436500 | AD138: 460800 | AE138: 485100
A139: 00387 CL3 ASPH SURF 0.38B PG76-22 | E139: 7622 | F139: PG76-22 | G139: 3 | H139: 20500 | I139: 0.5 | J139: 0.38 | K139: E | L139: B | M139: M339 | AA139: 388800 | AB139: 413100 | AC139: 437400 | AD139: 461700 | AE139: 486000
A140: 00388 CL3 ASPH SURF 0.38B PG64-22 | E140: 6422 | F140: PG64-22 | G140: 3 | H140: 20500 | I140: 0.5 | J140: 0.38 | K140: E | L140: B | M140: M335
A141: 00389 CL3 ASPH SURF 0.38D PG76-22 | E141: 7622 | F141: PG76-22 | G141: 3 | H141: 20500 | I141: 0.5 | J141: 0.38 | K141: E | M141: M349 | AA141: 102 - 2 | AB141: =CONCATENATE(LEFT(AA167,3)+1," - 1") -> 109 - 1 | AC141: =CONCATENATE(LEFT(AB167,3)," - 4") -> 115 - 4 | AD141: =CONCATENATE(LEFT(AC167,3)," - 3") -> 122 - 3 | AE141: =CONCATENATE(LEFT(AD167,3)," - 2") -> 129 - 2
A142: 00391 CL2 ASPH SURF 0.50B PG76-22 | E142: 7622 | F142: PG76-22 | G142: 2 | H142: 20525 | I142: 0.5 | J142: 0.38 | K142: E | L142: B | M142: M357 | AA142: =CONCATENATE(LEFT(AA141,3)," - 3") -> 102 - 3 | AB142: =CONCATENATE(LEFT(AB141,3)," - 2") -> 109 - 2 | AC142: =CONCATENATE(LEFT(AC141,3)+1," - 1") -> 116 - 1 | AD142: =CONCATENATE(LEFT(AD141,3)," - 4") -> 122 - 4 | AE142: =CONCATENATE(LEFT(AE141,3)," - 3") -> 129 - 3
A143: 01897 ASPHALT WEDGE CURB | E143: 6422 | F143: PG64-22 | G143: N/A | H143: 23025 | I143: 0.5 | J143: 0.38 | K143: E | M143: M256 | AA143: =CONCATENATE(LEFT(AA142,3)," - 4") -> 102 - 4 | AB143: =CONCATENATE(LEFT(AB142,3)," - 3") -> 109 - 3 | AC143: =CONCATENATE(LEFT(AC142,3)," - 2") -> 116 - 2 | AD143: =CONCATENATE(LEFT(AD142,3)+1," - 1") -> 123 - 1 | AE143: =CONCATENATE(LEFT(AE142,3)," - 4") -> 129 - 4
A144: 01935 MOUNTABLE MEDIAN TYPE 1 | E144: 6422 | F144: PG64-22 | G144: N/A | H144: 23050 | I144: 0.5 | J144: 0.38 | K144: E | M144: M258 | AA144: =CONCATENATE(LEFT(AA143,3)+1," - 1") -> 103 - 1 | AB144: =CONCATENATE(LEFT(AB143,3)," - 4") -> 109 - 4 | AC144: =CONCATENATE(LEFT(AC143,3)," - 3") -> 116 - 3 | AD144: =CONCATENATE(LEFT(AD143,3)," - 2") -> 123 - 2 | AE144: =CONCATENATE(LEFT(AE143,3)+1," - 1") -> 130 - 1
A145: 01936 MOUNTABLE MEDIAN TYPE 1 MOD | E145: 6422 | F145: PG64-22 | G145: N/A | H145: 23050 | I145: 0.5 | J145: 0.38 | K145: E | M145: M260 | AA145: =CONCATENATE(LEFT(AA144,3)," - 2") -> 103 - 2 | AB145: =CONCATENATE(LEFT(AB144,3)+1," - 1") -> 110 - 1 | AC145: =CONCATENATE(LEFT(AC144,3)," - 4") -> 116 - 4 | AD145: =CONCATENATE(LEFT(AD144,3)," - 3") -> 123 - 3 | AE145: =CONCATENATE(LEFT(AE144,3)," - 2") -> 130 - 2
A146: 01937 MOUNTABLE MEDIAN TYPE 2 | E146: 6422 | F146: PG64-22 | G146: N/A | H146: 23050 | I146: 0.5 | J146: 0.38 | K146: E | M146: M262 | AA146: =CONCATENATE(LEFT(AA145,3)," - 3") -> 103 - 3 | AB146: =CONCATENATE(LEFT(AB145,3)," - 2") -> 110 - 2 | AC146: =CONCATENATE(LEFT(AC145,3)+1," - 1") -> 117 - 1 | AD146: =CONCATENATE(LEFT(AD145,3)," - 4") -> 123 - 4 | AE146: =CONCATENATE(LEFT(AE145,3)," - 3") -> 130 - 3
A147: 01939 MOUNTABLE MEDIAN TYPE 3 | E147: 6422 | F147: PG64-22 | G147: N/A | H147: 23050 | I147: 0.5 | J147: 0.38 | K147: E | M147: M264 | AA147: =CONCATENATE(LEFT(AA146,3)," - 4") -> 103 - 4 | AB147: =CONCATENATE(LEFT(AB146,3)," - 3") -> 110 - 3 | AC147: =CONCATENATE(LEFT(AC146,3)," - 2") -> 117 - 2 | AD147: =CONCATENATE(LEFT(AD146,3)+1," - 1") -> 124 - 1 | AE147: =CONCATENATE(LEFT(AE146,3)," - 4") -> 130 - 4
A148: 01940 MOUNTABLE MEDIAN TYPE 3 MOD | E148: 6422 | F148: PG64-22 | G148: N/A | H148: 23050 | I148: 0.5 | J148: 0.38 | K148: E | M148: M266 | AA148: =CONCATENATE(LEFT(AA147,3)+1," - 1") -> 104 - 1 | AB148: =CONCATENATE(LEFT(AB147,3)," - 4") -> 110 - 4 | AC148: =CONCATENATE(LEFT(AC147,3)," - 3") -> 117 - 3 | AD148: =CONCATENATE(LEFT(AD147,3)," - 2") -> 124 - 2 | AE148: =CONCATENATE(LEFT(AE147,3)+1," - 1") -> 131 - 1
A149: 01941 MOUNTABLE MEDIAN TYPE 4 | E149: 6422 | F149: PG64-22 | G149: N/A | H149: 23050 | I149: 0.5 | J149: 0.38 | K149: E | M149: M268 | AA149: =CONCATENATE(LEFT(AA148,3)," - 2") -> 104 - 2 | AB149: =CONCATENATE(LEFT(AB148,3)+1," - 1") -> 111 - 1 | AC149: =CONCATENATE(LEFT(AC148,3)," - 4") -> 117 - 4 | AD149: =CONCATENATE(LEFT(AD148,3)," - 3") -> 124 - 3 | AE149: =CONCATENATE(LEFT(AE148,3)," - 2") -> 131 - 2
A150: 01943 MOUNTABLE MEDIAN TYPE 5 | E150: 6422 | F150: PG64-22 | G150: N/A | H150: 23050 | I150: 0.5 | J150: 0.38 | K150: E | M150: M270 | AA150: =CONCATENATE(LEFT(AA149,3)," - 3") -> 104 - 3 | AB150: =CONCATENATE(LEFT(AB149,3)," - 2") -> 111 - 2 | AC150: =CONCATENATE(LEFT(AC149,3)+1," - 1") -> 118 - 1 | AD150: =CONCATENATE(LEFT(AD149,3)," - 4") -> 124 - 4 | AE150: =CONCATENATE(LEFT(AE149,3)," - 3") -> 131 - 3
A151: 01945 MOUNTABLE MEDIAN TYPE 1A | E151: 6422 | F151: PG64-22 | G151: N/A | H151: 23050 | I151: 0.5 | J151: 0.38 | K151: E | M151: M272 | AA151: =CONCATENATE(LEFT(AA150,3)," - 4") -> 104 - 4 | AB151: =CONCATENATE(LEFT(AB150,3)," - 3") -> 111 - 3 | AC151: =CONCATENATE(LEFT(AC150,3)," - 2") -> 118 - 2 | AD151: =CONCATENATE(LEFT(AD150,3)+1," - 1") -> 125 - 1 | AE151: =CONCATENATE(LEFT(AE150,3)," - 4") -> 131 - 4
A152: 01946 MOUNTABLE MEDIAN TYPE 2A | E152: 6422 | F152: PG64-22 | G152: N/A | H152: 23050 | I152: 0.5 | J152: 0.38 | K152: E | M152: M274 | AA152: =CONCATENATE(LEFT(AA151,3)+1," - 1") -> 105 - 1 | AB152: =CONCATENATE(LEFT(AB151,3)," - 4") -> 111 - 4 | AC152: =CONCATENATE(LEFT(AC151,3)," - 3") -> 118 - 3 | AD152: =CONCATENATE(LEFT(AD151,3)," - 2") -> 125 - 2 | AE152: =CONCATENATE(LEFT(AE151,3)+1," - 1") -> 132 - 1
A153: 01947 MOUNTABLE MEDIAN TYPE 3A | E153: 6422 | F153: PG64-22 | G153: N/A | H153: 23050 | I153: 0.5 | J153: 0.38 | K153: E | M153: M276 | AA153: =CONCATENATE(LEFT(AA152,3)," - 2") -> 105 - 2 | AB153: =CONCATENATE(LEFT(AB152,3)+1," - 1") -> 112 - 1 | AC153: =CONCATENATE(LEFT(AC152,3)," - 4") -> 118 - 4 | AD153: =CONCATENATE(LEFT(AD152,3)," - 3") -> 125 - 3 | AE153: =CONCATENATE(LEFT(AE152,3)," - 2") -> 132 - 2
A154: 01949 MOUNTABLE MEDIAN TYPE 6A | E154: 6422 | F154: PG64-22 | G154: N/A | H154: 23050 | I154: 0.5 | J154: 0.38 | K154: E | M154: M278 | AA154: =CONCATENATE(LEFT(AA153,3)," - 3") -> 105 - 3 | AB154: =CONCATENATE(LEFT(AB153,3)," - 2") -> 112 - 2 | AC154: =CONCATENATE(LEFT(AC153,3)+1," - 1") -> 119 - 1 | AD154: =CONCATENATE(LEFT(AD153,3)," - 4") -> 125 - 4 | AE154: =CONCATENATE(LEFT(AE153,3)," - 3") -> 132 - 3
A155: 01950 MOUNTABLE MEDIAN TYPE 7A | E155: 6422 | F155: PG64-22 | G155: N/A | H155: 23050 | I155: 0.5 | J155: 0.38 | K155: E | M155: M280 | AA155: =CONCATENATE(LEFT(AA154,3)," - 4") -> 105 - 4 | AB155: =CONCATENATE(LEFT(AB154,3)," - 3") -> 112 - 3 | AC155: =CONCATENATE(LEFT(AC154,3)," - 2") -> 119 - 2 | AD155: =CONCATENATE(LEFT(AD154,3)+1," - 1") -> 126 - 1 | AE155: =CONCATENATE(LEFT(AE154,3)," - 4") -> 132 - 4
A156: 00101 SAMI | E156: N/A | F156: CRS-2P | G156: N/A | H156: 22100 | I156: 0.5 | J156: 0.38 | K156: E | M156: M288 | AA156: =CONCATENATE(LEFT(AA155,3)+1," - 1") -> 106 - 1 | AB156: =CONCATENATE(LEFT(AB155,3)," - 4") -> 112 - 4 | AC156: =CONCATENATE(LEFT(AC155,3)," - 3") -> 119 - 3 | AD156: =CONCATENATE(LEFT(AD155,3)," - 2") -> 126 - 2 | AE156: =CONCATENATE(LEFT(AE155,3)+1," - 1") -> 133 - 1
A157: 21683ES400 CL2 ASPH BASE 0.75D PG76-22 | E157: 7622 | F157: PG76-22 | G157: 2 | H157: 20575 | I157: 1 | J157: 0.75 | K157: E | M157: M317 | AA157: =CONCATENATE(LEFT(AA156,3)," - 2") -> 106 - 2 | AB157: =CONCATENATE(LEFT(AB156,3)+1," - 1") -> 113 - 1 | AC157: =CONCATENATE(LEFT(AC156,3)," - 4") -> 119 - 4 | AD157: =CONCATENATE(LEFT(AD156,3)," - 3") -> 126 - 3 | AE157: =CONCATENATE(LEFT(AE156,3)," - 2") -> 133 - 2
A158: 20696ES403 CL2 ASPH BASE 1.0D PG76-22 | E158: 7622 | F158: PG76-22 | G158: 2 | H158: 20600 | I158: 1.5 | J158: 1 | K158: E | M158: M294 | AA158: =CONCATENATE(LEFT(AA157,3)," - 3") -> 106 - 3 | AB158: =CONCATENATE(LEFT(AB157,3)," - 2") -> 113 - 2 | AC158: =CONCATENATE(LEFT(AC157,3)+1," - 1") -> 120 - 1 | AD158: =CONCATENATE(LEFT(AD157,3)," - 4") -> 126 - 4 | AE158: =CONCATENATE(LEFT(AE157,3)," - 3") -> 133 - 3
A159: 20761ES403 CL2 ASPH SURF 0.38D PG64-22(SLAG) | E159: 6422 | F159: PG64-22 | G159: 2 | H159: 20500 | I159: 0.5 | J159: 0.38 | K159: E | M159: M303 | AA159: =CONCATENATE(LEFT(AA158,3)," - 4") -> 106 - 4 | AB159: =CONCATENATE(LEFT(AB158,3)," - 3") -> 113 - 3 | AC159: =CONCATENATE(LEFT(AC158,3)," - 2") -> 120 - 2 | AD159: =CONCATENATE(LEFT(AD158,3)+1," - 1") -> 127 - 1 | AE159: =CONCATENATE(LEFT(AE158,3)," - 4") -> 133 - 4
A160: 24887EC CL3 ASPH SURF NO.4A PG64-22 | E160: 6422 | F160: PG64-22 | G160: 3 | H160: 20490 | I160: 0.38 | J160: NO. 4 | K160: E | L160: A | M160: M352 | AA160: =CONCATENATE(LEFT(AA159,3)+1," - 1") -> 107 - 1 | AB160: =CONCATENATE(LEFT(AB159,3)," - 4") -> 113 - 4 | AC160: =CONCATENATE(LEFT(AC159,3)," - 3") -> 120 - 3 | AD160: =CONCATENATE(LEFT(AD159,3)," - 2") -> 127 - 2 | AE160: =CONCATENATE(LEFT(AE159,3)+1," - 1") -> 134 - 1
A161: 23307EC CL3 ASPH SURF NO.4B PG64-22 | E161: 6422 | F161: PG64-22 | G161: 3 | H161: 20490 | I161: 0.38 | J161: NO. 4 | K161: E | L161: B | M161: M353 | AA161: =CONCATENATE(LEFT(AA160,3)," - 2") -> 107 - 2 | AB161: =CONCATENATE(LEFT(AB160,3)+1," - 1") -> 114 - 1 | AC161: =CONCATENATE(LEFT(AC160,3)," - 4") -> 120 - 4 | AD161: =CONCATENATE(LEFT(AD160,3)," - 3") -> 127 - 3 | AE161: =CONCATENATE(LEFT(AE160,3)," - 2") -> 134 - 2
A162: 24570EC CL3 ASPH SURF NO.4D PG64-22 | E162: 6422 | F162: PG64-22 | G162: 3 | H162: 20490 | I162: 0.38 | J162: NO. 4 | K162: E | M162: M354 | AA162: =CONCATENATE(LEFT(AA161,3)," - 3") -> 107 - 3 | AB162: =CONCATENATE(LEFT(AB161,3)," - 2") -> 114 - 2 | AC162: =CONCATENATE(LEFT(AC161,3)+1," - 1") -> 121 - 1 | AD162: =CONCATENATE(LEFT(AD161,3)," - 4") -> 127 - 4 | AE162: =CONCATENATE(LEFT(AE161,3)," - 3") -> 134 - 3
A163: 24888ED CL2 ASPH SURF NO.4B PG64-22 | E163: 6422 | F163: PG64-22 | G163: 2 | H163: 20490 | I163: 0.38 | J163: NO. 4 | K163: E | L163: B | M163: M355 | AA163: =CONCATENATE(LEFT(AA162,3)," - 4") -> 107 - 4 | AB163: =CONCATENATE(LEFT(AB162,3)," - 3") -> 114 - 3 | AC163: =CONCATENATE(LEFT(AC162,3)," - 2") -> 121 - 2 | AD163: =CONCATENATE(LEFT(AD162,3)+1," - 1") -> 128 - 1 | AE163: =CONCATENATE(LEFT(AE162,3)," - 4") -> 134 - 4
A164: 25077EC CL4 ASPH SURF NO.4A PG64-22 | E164: 6422 | F164: PG64-22 | G164: 4 | H164: 20490 | I164: 0.38 | J164: NO. 4 | K164: E | L164: A | M164: M361 | AA164: =CONCATENATE(LEFT(AA163,3)+1," - 1") -> 108 - 1 | AB164: =CONCATENATE(LEFT(AB163,3)," - 4") -> 114 - 4 | AC164: =CONCATENATE(LEFT(AC163,3)," - 3") -> 121 - 3 | AD164: =CONCATENATE(LEFT(AD163,3)," - 2") -> 128 - 2 | AE164: =CONCATENATE(LEFT(AE163,3)+1," - 1") -> 135 - 1
A165: 21653ES403 CL2 ASPH SURF NO.4D PG64-22 | E165: 6422 | F165: PG64-22 | G165: 2 | H165: 20490 | I165: 0.38 | J165: NO. 4 | K165: E | M165: M311 | AA165: =CONCATENATE(LEFT(AA164,3)," - 2") -> 108 - 2 | AB165: =CONCATENATE(LEFT(AB164,3)+1," - 1") -> 115 - 1 | AC165: =CONCATENATE(LEFT(AC164,3)," - 4") -> 121 - 4 | AD165: =CONCATENATE(LEFT(AD164,3)," - 3") -> 128 - 3 | AE165: =CONCATENATE(LEFT(AE164,3)," - 2") -> 135 - 2
A166: 22906ES403 CL3 ASPH SURF 0.38A PG64-22 | E166: 6422 | F166: PG64-22 | G166: 3 | H166: 20500 | I166: 0.5 | J166: 0.38 | K166: E | L166: A | M166: M332 | AA166: =CONCATENATE(LEFT(AA165,3)," - 3") -> 108 - 3 | AB166: =CONCATENATE(LEFT(AB165,3)," - 2") -> 115 - 2 | AC166: =CONCATENATE(LEFT(AC165,3)+1," - 1") -> 122 - 1 | AD166: =CONCATENATE(LEFT(AD165,3)," - 4") -> 128 - 4 | AE166: =CONCATENATE(LEFT(AE165,3)," - 3") -> 135 - 3
A167: 20469ES403 CL3 ASPH SURF 0.38B PG76-22 | E167: 7622 | F167: PG76-22 | G167: 3 | H167: 20500 | I167: 0.5 | J167: 0.38 | K167: E | L167: B | M167: M291 | AA167: =CONCATENATE(LEFT(AA166,3)," - 4") -> 108 - 4 | AB167: =CONCATENATE(LEFT(AB166,3)," - 3") -> 115 - 3 | AC167: =CONCATENATE(LEFT(AC166,3)," - 2") -> 122 - 2 | AD167: =CONCATENATE(LEFT(AD166,3)+1," - 1") -> 129 - 1 | AE167: =CONCATENATE(LEFT(AE166,3)," - 4") -> 135 - 4
A168: 23128ES403 CL4 ASPH SURF 0.38A PG64-22 | E168: 6422 | F168: PG64-22 | G168: 4 | H168: 20500 | I168: 0.5 | J168: 0.38 | K168: E | L168: A | M168: M336
A169: 23142ES403 CL4 ASPH SURF 0.38B PG64-22 | E169: 6422 | F169: PG64-22 | G169: 4 | H169: 20500 | I169: 0.5 | J169: 0.38 | K169: E | L169: B | M169: M337 | AA169: =IF($K$48="E",AE139+1000,AE139+900) -> 486900 | AB169: =IF($K$48="E",AA195+1000,AA195+900) -> 511200 | AC169: =IF($K$48="E",AB195+1000,AB195+900) -> 535500 | AD169: =IF($K$48="E",AC195+1000,AC195+900) -> 559800 | AE169: =IF($K$48="E",AD195+1000,AD195+900) -> 584100
A170: 21001ES400 CL4 ASPH SURF 0.38D PG64-22 | E170: 6422 | F170: PG64-22 | G170: 4 | H170: 20500 | I170: 0.5 | J170: 0.38 | K170: E | M170: M329 | AA170: =IF($K$48="E",AA169+1000,AA169+900) -> 487800 | AB170: =IF($K$48="E",AB169+1000,AB169+900) -> 512100 | AC170: =IF($K$48="E",AC169+1000,AC169+900) -> 536400 | AD170: =IF($K$48="E",AD169+1000,AD169+900) -> 560700 | AE170: =IF($K$48="E",AE169+1000,AE169+900) -> 585000
A171: 23647ES400 CL2 ASPH SURF 0.5A PG 64-22 | E171: 6422 | F171: PG64-22 | G171: 2 | H171: 20525 | I171: 0.75 | J171: 0.5 | K171: E | L171: A | M171: M340 | AA171: 488700 | AB171: 513000 | AC171: 537300 | AD171: 561600 | AE171: 585900
A172: 23362ES403 CL2 ASPH SURF 0.5B PG 64-22 | E172: 6422 | F172: PG64-22 | G172: 2 | H172: 20525 | I172: 0.75 | J172: 0.5 | K172: E | L172: B | M172: M341 | AA172: 489600 | AB172: 513900 | AC172: 538200 | AD172: 562500 | AE172: 586800
A173: 23165ES403 CL3 ASPH SURF 0.5B PG64-22 | E173: 6422 | F173: PG64-22 | G173: 3 | H173: 20525 | I173: 0.75 | J173: 0.5 | K173: E | L173: B | M173: M342 | AA173: 490500 | AB173: 514800 | AC173: 539100 | AD173: 563400 | AE173: 587700
A174: 23176ES403 CL4 ASPH SURF 0.5A PG76-22 | E174: 7622 | F174: PG76-22 | G174: 4 | H174: 20525 | I174: 0.75 | J174: 0.5 | K174: E | L174: A | M174: M343 | AA174: 491400 | AB174: 515700 | AC174: 540000 | AD174: 564300 | AE174: 588600
A175: 23307EC CL3 ASPH SURF NO.4B PG64-22 | E175: 6422 | F175: PG64-22 | G175: 3 | H175: 20490 | I175: 0.38 | J175: NO. 4 | K175: E | L175: B | M175: M350 | AA175: 492300 | AB175: 516600 | AC175: 540900 | AD175: 565200 | AE175: 589500
A176: 24177ES400 CL2 ASPH BASE 0.75D PG64-22-SLAG | E176: 6422 | F176: PG64-22 | G176: 2 | H176: 20575 | I176: 1 | J176: 0.75 | K176: E | M176: M351 | AA176: 493200 | AB176: 517500 | AC176: 541800 | AD176: 566100 | AE176: 590400
A177: Bid Item Not In Drop-Down List | H177: =IF(J177=0.38,20500,IF(J177=0.5,20525,IF(J177=0.75,20575,IF(J177=1,20600,IF(J177=1.5,20625,""))))) ->  | I177: =IF(J177=0.38,0.5,IF(J177=0.5,0.75,IF(J177=0.75,1,IF(J177=1,1.5,IF(J177=1.5,2,""))))) ->  | AA177: 494100 | AB177: 518400 | AC177: 542700 | AD177: 567000 | AE177: 591300
AA178: 495000 | AB178: 519300 | AC178: 543600 | AD178: 567900 | AE178: 592200
AA179: 495900 | AB179: 520200 | AC179: 544500 | AD179: 568800 | AE179: 593100
AA180: 496800 | AB180: 521100 | AC180: 545400 | AD180: 569700 | AE180: 594000
AA181: 497700 | AB181: 522000 | AC181: 546300 | AD181: 570600 | AE181: 594900
AA182: 498600 | AB182: 522900 | AC182: 547200 | AD182: 571500 | AE182: 595800
AA183: 499500 | AB183: 523800 | AC183: 548100 | AD183: 572400 | AE183: 596700
AA184: 500400 | AB184: 524700 | AC184: 549000 | AD184: 573300 | AE184: 597600
AA185: 501300 | AB185: 525600 | AC185: 549900 | AD185: 574200 | AE185: 598500
AA186: 502200 | AB186: 526500 | AC186: 550800 | AD186: 575100 | AE186: 599400
AA187: 503100 | AB187: 527400 | AC187: 551700 | AD187: 576000 | AE187: 600300
AA188: 504000 | AB188: 528300 | AC188: 552600 | AD188: 576900 | AE188: 601200
AA189: 504900 | AB189: 529200 | AC189: 553500 | AD189: 577800 | AE189: 602100
AA190: 505800 | AB190: 530100 | AC190: 554400 | AD190: 578700 | AE190: 603000
AA191: 506700 | AB191: 531000 | AC191: 555300 | AD191: 579600 | AE191: 603900
AA192: 507600 | AB192: 531900 | AC192: 556200 | AD192: 580500 | AE192: 604800
AA193: 508500 | AB193: 532800 | AC193: 557100 | AD193: 581400 | AE193: 605700
AA194: 509400 | AB194: 533700 | AC194: 558000 | AD194: 582300 | AE194: 606600
AA195: 510300 | AB195: 534600 | AC195: 558900 | AD195: 583200 | AE195: 607500
AA197: 136 - 1 | AB197: =CONCATENATE(LEFT(AA223,3)," - 4") -> 142 - 4 | AC197: =CONCATENATE(LEFT(AB223,3)," - 3") -> 149 - 3 | AD197: =CONCATENATE(LEFT(AC223,3)," - 2") -> 156 - 2 | AE197: =CONCATENATE(LEFT(AD223,3)+1," - 1") -> 163 - 1
AA198: =CONCATENATE(LEFT(AA197,3)," - 2") -> 136 - 2 | AB198: =CONCATENATE(LEFT(AB197,3)+1," - 1") -> 143 - 1 | AC198: =CONCATENATE(LEFT(AC197,3)," - 4") -> 149 - 4 | AD198: =CONCATENATE(LEFT(AD197,3)," - 3") -> 156 - 3 | AE198: =CONCATENATE(LEFT(AE197,3)," - 2") -> 163 - 2
AA199: =CONCATENATE(LEFT(AA198,3)," - 3") -> 136 - 3 | AB199: =CONCATENATE(LEFT(AB198,3)," - 2") -> 143 - 2 | AC199: =CONCATENATE(LEFT(AC198,3)+1," - 1") -> 150 - 1 | AD199: =CONCATENATE(LEFT(AD198,3)," - 4") -> 156 - 4 | AE199: =CONCATENATE(LEFT(AE198,3)," - 3") -> 163 - 3
AA200: =CONCATENATE(LEFT(AA199,3)," - 4") -> 136 - 4 | AB200: =CONCATENATE(LEFT(AB199,3)," - 3") -> 143 - 3 | AC200: =CONCATENATE(LEFT(AC199,3)," - 2") -> 150 - 2 | AD200: =CONCATENATE(LEFT(AD199,3)+1," - 1") -> 157 - 1 | AE200: =CONCATENATE(LEFT(AE199,3)," - 4") -> 163 - 4
AA201: =CONCATENATE(LEFT(AA200,3)+1," - 1") -> 137 - 1 | AB201: =CONCATENATE(LEFT(AB200,3)," - 4") -> 143 - 4 | AC201: =CONCATENATE(LEFT(AC200,3)," - 3") -> 150 - 3 | AD201: =CONCATENATE(LEFT(AD200,3)," - 2") -> 157 - 2 | AE201: =CONCATENATE(LEFT(AE200,3)+1," - 1") -> 164 - 1
... 76 more rows

Sheet Workbook Edits (hidden)
A1: Tracks Pre-Production Workbook Changes
A2: Date | B2: Initials | C2: Description
A3: 2006-08-17 | B3: BGP | C3: Mapping completed. Needs to be populated for testing.
A4: 2006-08-30 | B4: BGP | C4: Added District to disicline tab.
A5: 2006-09-28 | B5: BGP | C5: Revised the following edits as discussed with Troy on 8/30/06: - "Sampler", "Tester", "Authorizer" edits to be more complete; - t_smpl_tst.tst_meth to check t_tst_fee_sched - Add district to discipline tab - Re-validate authorizer (& witnessed by) [NOTE: no changes in any discipline] - Add code table check for t_smpl.unt_t where missing - Redo format of DATE conversion on AMMIXPACK Test Template - Replace t_superpave key edit with t_cont_streq_matl table (rather than t_cont_itm) - Comment out std_rmrks_ind on t_smpl tab to be consistent with CONCMIX - Review Repr_Qty on all spreadsheet [NOTE: no changes in any discipline] Revised the following due to Committee decisions: - Revise Test Start, Est. Compl., and Actual Compl. Dates (as specified in updated procedures)
A6: 2006-10-12 | B6: BGP | C6: Added "Tab" Hide/Unhide macros and removed green highlights for "FINAL" version.
A7: 2006-11-07 | B7: BGP | C7: Corrected "Date" field on AMMIXPACK Test (t_tst_rslt_dtl) so that "N/A" will not be accidentally passed to Applet; Corrected Mix ID Num on Design Data tab so that leading zeros would be stored in SiteManager; Corrected "Binder Grade" table in Chart Data so that the correct code table value (rather than the description) is passed to SiteManager on the t_superpave record; Made sure "N/A" was not mistakenly passed for Sample ID on the t_bit_conc_mixblnd record; Added edits in t_superpave and t_bit_conc_mixblnd for appropriate sample date used in edits ("since only 1 sample").
A8: 2006-11-22 | B8: MB & MH | C8: Adjustments to data to correspond to SM database (and thereby avoid edit errors).
A9: 2006-11-22 | B9: BGP | C9: Fixed edit on t_smpl.smpl_mix_id (SUPERPAVE not blank - which Troy was actually defaulting to the original PCC test done with the other concrete-based spreadsheets).
A10: 2006-12-08 | B10: MDH | C10: Replaced Lab, Sampler, and Tester data with valid KQTL data.
A11: 2006-12-11 | B11: BGP | C11: Performance tuning (started using ScreenUpdating Property in background macros to help speed up processing); Added "Filename" (SampleIDRoot) to the discipline tab.
A12: 2006-12-13 | B12: TDS | C12: Attached new map which includes the root sample id (filename). The new map also ensures all dates from excel are in the same formate (serial date). Conversion to normal date and format is handled in the applet. All dates are tested for validity and that they don't exceed the current system date.
A13: 2006-12-20 | B13: MDH | C13: Made changes to code to allow Non-Superpave mixtures to save correctly.
A14: 2007-01-03 | B14: MDH | C14: Prefixed Lab ID with 'C' or 'T' to designate Contractor or KYTC lab.
A15: 2007-01-03 | B15: BGP | C15: Re-enable t_bit_conc_mixblnd tab (and adjust Material Codes properly on Design Data tab so that no duplicates are found).
A16: 2007-01-04 | B16: BGP | C16: Fixed "Hide" & "UnHide Macros; Fixed District assignement on discipline tab.
A17: 2007-01-10 | B17: BGP | C17: Fixed the Authorized By edit on the t_superpave tab.
A18: 2007-01-18 | B18: BGP | C18: Removed the edit on t_smpl.smpl_mix_id as this cannot be performed in the same file where the mix is being created; Also fixed TYPE OF ADDITIVE mapping on t_tst_rslt_dtl where tst_fld_sn = 159 (data was being pulled from incorrect cell).
A19: 2007-02-07 | B19: BGP | C19: Assigned new "Template Status" code table value in t_tst_rslt_dtl.F2 based on the value in t_smpl.smpl_stat (Global Template Change).
A20: 2007-02-19 | B20: MDH&MTB | C20: Added drop-downs to Liquid and Contractor P/S.
A21: 1958-03-01 | B21: MTB | C21: Corrected error on 'Chart Data' chell Q14
A22: 2007-04-04 | B22: MDH | C22: Corrected 'Save As' errors on 'Design Data' tab;Corrected protection/locked cell issues
A23: 2007-04-10 | B23: MDH | C23: Blanked sheet for final version.
A24: 2007-07-31 | B24: MDH/MTB | C24: Deployed new version 5.02/Discipline v2.0.

Sheet discipline (hidden)
A1: discipline_id | B1: discipline_version | C1: replace_allowed_indicator | D1: district | E1: Filename
A2: AMMIXPACK | B2: v3.0 | C2: Y | D2: =LEFT('Design Data'!C10,2) ->  | E2: ='Design Data'!C10 -> 0

Sheet AMMIXPACK (hidden)
T1: SM Field | U1: Cell | V1: Type | W1: Label | X1: Length | Y1: English unit | Z1: Notes:
B2: PROJECT INFORMATION | H2: Template Name: AMMIXPACK | M2: MIXTURE DESIGN APPROVAL INFORMATION | T2: F8 | U2: B2 | V2: Label | W2: PROJECT INFORMATION | X2: N/A | Y2: N/A | Z2: OVERALL: Please follow fill coloration and bolding as pictured at left
B3: SUBMITTAL TYPE: | D3: D3 | H3: Descrip.: MIX DESIGN SPREADSHEET | M3: Design Property | P3: Design Value | Q3: Criteria | T3: F9 | U3: B8 | V3: Alphanumeric | W3: RAP Note | X3: 50 | Y3: N/A
B4: COUNTY: | D4: D4 | M4: Coarse Aggregate Angularity (%) | P4: P4 | Q4: Q4 | T4: F10 | U4: D3 | V4: Alphanumeric | W4: SUBMITTAL TYPE: | X4: 40 | Y4: N/A
B5: TOTAL TONS: | D5: D5 | H5: GRADATION INFORMATION | M5: Fine Aggregate Angularity (%) | P5: P5 | Q5: Q5 | T5: F11 | U5: D4 | V5: Alphanumeric | W5: COUNTY: | X5: 50 | Y5: N/A
B6: DEPTH (mm): | D6: D6 | H6: Sieve | I6: JMF | J6: "WeighUp" | M6: Flat & Elongated Particles (%) | P6: P6 | Q6: Q6 | T6: F12 | U6: D5 | V6: Numeric | W6: TOTAL TONS: | X6: 6.0 | Y6: Tons
B7: BINDER GRADE: | D7: D7 | H7: 2 " | I7: I7 | J7: J7 | M7: Clay Content (SE) (%) | P7: P7 | Q7: Q7 | T7: F13 | U7: D6 | V7: Numeric | W7: DEPTH (mm): | X7: 3.0 | Y7: mm
B8: B8 | H8: 1 1/2 " | I8: I8 | J8: J8 | M8: % VFA | P8: P8 | Q8: Q8 | T8: F14 | U8: D7 | V8: Alphanumeric | W8: BINDER GRADE | X8: 10 | Y8: N/A
H9: 1 " | I9: I9 | J9: J9 | M9: % VMA | P9: P9 | Q9: Q9 | T9: F15 | U9: B10 | V9: Label | W9: 4-PT. GYRATORY MIX DESIGN INFORMATION | X9: N/A | Y9: N/A
B10: 4-PT. GYRATORY MIX DESIGN INFORMATION | H10: 3/4 " | I10: I10 | J10: J10 | M10: D/A Ratio | P10: P10 | Q10: Q10 | T10: F16 | U10: C11 | V10: Numeric | W10: AC | X10: 1.1 | Y10: %
B11: AC | C11: C11 | D11: D11 | E11: E11 | F11: F11 | H11: 1/2 " | I11: I11 | J11: J11 | M11: % Gmm @ Ninitial | P11: P11 | Q11: Q11 | T11: F17 | U11: C12 | V11: Numeric | W11: Gmmini | X11: 2.1 | Y11: %
B12: Gmmini | C12: C12 | D12: D12 | E12: E12 | F12: F12 | H12: 3/8 " | I12: I12 | J12: J12 | M12: % Gmm @ Nmax | P12: P12 | Q12: Q12 | T12: F18 | U12: C13 | V12: Numeric | W12: AV | X12: 2.1 | Y12: %
B13: AV | C13: C13 | D13: D13 | E13: E13 | F13: F13 | H13: 1/4 " | I13: I13 | J13: J13 | M13: % Air Voids | P13: P13 | Q13: Q13 | T13: F19 | U13: C14 | V13: Numeric | W13: VMA | X13: 2.1 | Y13: %
B14: VMA | C14: C14 | D14: D14 | E14: E14 | F14: F14 | H14: #4 | I14: I14 | J14: J14 | M14: Unit Weight (lb/ft3) | P14: P14 | T14: F20 | U14: C15 | V14: Numeric | W14: VFA | X14: 2.1 | Y14: %
B15: VFA | C15: C15 | D15: D15 | E15: E15 | F15: F15 | H15: #8 | I15: I15 | J15: J15 | M15: % AC | P15: P15 | Q15: Q15 | T15: F21 | U15: C16 | V15: Numeric | W15: UW | X15: 3.1 | Y15: lbs/ft3
B16: UW | C16: C16 | D16: D16 | E16: E16 | F16: F16 | H16: #16 | I16: I16 | J16: J16 | M16: % Effective AC | P16: P16 | T16: F22 | U16: C17 | V16: Numeric | W16: MSG | X16: 1.3 | Y16: (no units)
B17: MSG | C17: C17 | D17: D17 | E17: E17 | F17: F17 | H17: #30 | I17: I17 | J17: J17 | M17: Maximum Specific Gravity | P17: P17 | T17: F23 | U17: C18 | V17: Numeric | W17: Eff. AC | X17: 1.1 | Y17: %
B18: Eff. AC | C18: C18 | D18: D18 | E18: E18 | F18: F18 | H18: #50 | I18: I18 | J18: J18 | M18: % Absorbed AC (Mix) | P18: P18 | T18: F24 | U18: C19 | V18: Numeric | W18: Film Th | X18: 2.1 | Y18: (µm)
B19: Film Th | C19: C19 | D19: D19 | E19: E19 | F19: F19 | H19: #100 | I19: I19 | J19: J19 | M19: Gsb | P19: P19 | T19: F25 | U19: C20 | V19: Numeric | W19: D/A | X19: 1.1 | Y19: (no units)
B20: D/A | C20: C20 | D20: D20 | E20: E20 | F20: F20 | H20: #200 | I20: I20 | J20: J20 | M20: Gse | P20: P20 | T20: F26 | U20: D11 | V20: Numeric | W20: Point 2 - AC | X20: 1.1 | Y20: %
M21: Film Thickness (µm) | P21: P21 | T21: F27 | U21: D12 | V21: Numeric | W21: Point 2 - Gmmini | X21: 2.1 | Y21: %
B22: Reference Information | F22: APPROVAL INFORMATION | M22: Specimen Weight (g) | P22: P22 | T22: F28 | U22: D13 | V22: Numeric | W22: Point 2 - AV | X22: 2.1 | Y22: %
B23: County: | C23: C23 | F23: =IF(OR(H7=1,H7=2),"","Complete SGC Des.") -> Complete SGC Des. | H23: H23 | I23: =IF(OR(H7=1,H7=2),"","1-Pt. SGC Des.") -> 1-Pt. SGC Des. | K23: K23 | M23: TSR Weight (g) | P23: P23 | T23: F29 | U23: D14 | V23: Numeric | W23: Point 2 - VMA | X23: 2.1 | Y23: %
B24: ID #: | C24: C24 | F24: App.-New Design | H24: H24 | I24: App.-Ref. Mix | K24: K24 | M24: % TSR without additive | P24: P24 | Q24: Q24 | T24: F30 | U24: D15 | V24: Numeric | W24: Point 2 - VFA | X24: 2.1 | Y24: %
B25: Binder: | C25: C25 | F25: MCL Design | H25: H25 | I25: Contr. Design | K25: K25 | M25: % TSR with additive | P25: P25 | Q25: Q25 | T25: F31 | U25: D16 | V25: Numeric | W25: Point 2 - UW | X25: 3.1 | Y25: lbs/ft3
B26: Date Released: | D26: D26 | F26: Revised Asphalt Content (+ or - 0.3 %): | K26: K26 | M26: % Additive | P26: P26 | T26: F32 | U26: D17 | V26: Numeric | W26: Point 2 - MSG | X26: 1.3 | Y26: (no units)
B27: Design AC %: | D27: D27 | M27: Type of Additive | P27: P27 | T27: F33 | U27: D18 | V27: Numeric | W27: Point 2 - Eff. AC | X27: 1.1 | Y27: %
B28: Job Complete? | D28: D28 | M28: NOTES: | N28: N28 | T28: F34 | U28: D19 | V28: Numeric | W28: Point 2 - Film Th | X28: 2.1 | Y28: (µm)
B29: B29 | F29: TSR INFORMATION | T29: F35 | U29: D20 | V29: Numeric | W29: Point 2 - D/A | X29: 1.1 | Y29: (no units)
F30: % AC: | G30: % ADDITIVE: | I30: TYPE OF ADDITIVE: | T30: F36 | U30: E11 | V30: Numeric | W30: Point 3 - AC | X30: 1.1 | Y30: %
B31: RAP Information | F31: F31 | G31: G31 | I31: I31 | M31: TOTAL UNIT TEST COST | T31: F37 | U31: E12 | V31: Numeric | W31: Point 3 - Gmmini | X31: 2.1 | Y31: %
B32: % AC in RAP: | D32: D32 | F32: % Air Voids w/o add. | H32: H32 | I32: % Air Voids with add. | K32: K32 | M32: M32 | T32: F38 | U32: E13 | V32: Numeric | W32: Point 3 - AV | X32: 2.1 | Y32: %
B33: % Virgin AC in mix: | D33: D33 | F33: % Initial Saturation w/o Add. | H33: H33 | I33: % Initial Saturation with Add. | K33: K33 | T33: F39 | U33: E14 | V33: Numeric | W33: Point 3 - VMA | X33: 2.1 | Y33: %
B34: % RAP AC in mix: | D34: D34 | F34: % Final Saturation w/o Add. | H34: H34 | I34: % Final Saturation with Add. | K34: K34 | T34: F40 | U34: E15 | V34: Numeric | W34: Point 3 - VFA | X34: 2.1 | Y34: %
B35: Total % AC in mix: | D35: D35 | F35: Wet Strength w/o add. (psi) | H35: H35 | I35: Wet Strength with add. (psi) | K35: K35 | T35: F41 | U35: E16 | V35: Numeric | W35: Point 3 - UW | X35: 3.1 | Y35: lbs/ft3
B36: RAP MSG's | C36: C36 | D36: D36 | F36: Dry Strength w/o add. (psi) | H36: H36 | I36: Dry Strength with add. (psi) | K36: K36 | T36: F42 | U36: E17 | V36: Numeric | W36: Point 3 - MSG | X36: 1.3 | Y36: (no units)
C37: C37 | D37: D37 | F37: % TSR w/o Add. = | H37: H37 | I37: % TSR with Add. = | K37: K37 | T37: F43 | U37: E18 | V37: Numeric | W37: Point 3 - Eff. AC | X37: 1.1 | Y37: %
T38: F44 | U38: E19 | V38: Numeric | W38: Point 3 - Film Th | X38: 2.1 | Y38: (µm)
B39: MIX DESIGN AGGREGATE INFORMATION | T39: F45 | U39: E20 | V39: Numeric | W39: Point 3 - D/A | X39: 1.1 | Y39: (no units)
B40: AGG. PROD. NO. | D40: PRODUCER NAME | I40: MAT. CODE | K40: AGG. TYPE | M40: Gsb | N40: % | O40: S/C | P40: SiteManager Agg. Sample ID # | T40: F46 | U40: F11 | V40: Numeric | W40: Point 4 - AC | X40: 1.1 | Y40: %
B41: B41 | D41: D41 | I41: I41 | K41: K41 | M41: M41 | N41: N41 | O41: O41 | P41: P41 | T41: F47 | U41: F12 | V41: Numeric | W41: Point 4 - Gmmini | X41: 2.1 | Y41: %
B42: B42 | D42: D42 | I42: I42 | K42: K42 | M42: M42 | N42: N42 | O42: O42 | P42: P42 | T42: F48 | U42: F13 | V42: Numeric | W42: Point 4 - AV | X42: 2.1 | Y42: %
B43: B43 | D43: D43 | I43: I43 | K43: K43 | M43: M43 | N43: N43 | O43: O43 | P43: P43 | T43: F49 | U43: F14 | V43: Numeric | W43: Point 4 - VMA | X43: 2.1 | Y43: %
B44: B44 | D44: D44 | I44: I44 | K44: K44 | M44: M44 | N44: N44 | O44: O44 | P44: P44 | T44: F50 | U44: F15 | V44: Numeric | W44: Point 4 - VFA | X44: 2.1 | Y44: %
B45: B45 | D45: D45 | I45: I45 | K45: K45 | M45: M45 | N45: N45 | O45: O45 | P45: P45 | T45: F51 | U45: F16 | V45: Numeric | W45: Point 4 - UW | X45: 3.1 | Y45: lbs/ft3
B46: B46 | D46: D46 | I46: I46 | K46: K46 | M46: M46 | N46: N46 | O46: O46 | P46: P46 | T46: F52 | U46: F17 | V46: Numeric | W46: Point 4 - MSG | X46: 1.3 | Y46: (no units)
T47: F53 | U47: F18 | V47: Numeric | W47: Point 4 - Eff. AC | X47: 1.1 | Y47: %
B48: 1-PT. CHECK PROPERTIES | L48: MCL CONSENSUS (& ADDITIONAL) VERIFICATION INFORMATION | T48: F54 | U48: F19 | V48: Numeric | W48: Point 4 - Film Th | X48: 2.1 | Y48: (µm)
B49: Unit Wt. (lb/ft3) = | D49: D49 | E49: D/A Ratio = | F49: F49 | G49: AC (%) = | I49: I49 | L49: TEST TYPE | O49: S/C | P49: SiteManager Sample ID # | T49: F55 | U49: F20 | V49: Numeric | W49: Point 4 - D/A | X49: 1.1 | Y49: (no units)
B50: % Air Voids = | D50: D50 | E50: Gmm = | F50: F50 | G50: % VMA = | I50: I50 | L50: L50 | O50: O50 | P50: P50 | T50: F56 | U50: H2 | V50: Label | W50: Template Name: AMMIXPACK | X50: N/A | Y50: N/A
B51: % VFA = | D51: D51 | E51: % Eff. AC = | F51: F51 | G51: % Abs. AC (Mix) = | I51: I51 | L51: L51 | O51: O51 | P51: P51 | T51: F57 | U51: H3 | V51: Label | W51: Descrip.: MIX DESIGN SPREADSHEET | X51: N/A | Y51: N/A
B52: Gsb = | D52: D52 | E52: Gse = | F52: F52 | G52: ESAL Class | I52: I52 | L52: L52 | O52: O52 | P52: P52 | T52: F58 | U52: H5 | V52: Label | W52: GRADATION INFORMATION | X52: N/A | Y52: N/A
L53: L53 | O53: O53 | P53: P53 | T53: F59 | U53: H6 | V53: Label | W53: Sieve | X53: N/A | Y53: N/A
L54: L54 | O54: O54 | P54: P54 | T54: F60 | U54: I6 | V54: Label | W54: JMF | X54: N/A | Y54: N/A
L55: L55 | O55: O55 | P55: P55 | T55: F61 | U55: I7 | V55: Numeric | W55: 2 " | X55: 3.0 | Y55: %
T56: F62 | U56: I8 | V56: Numeric | W56: 1 1/2 " | X56: 3.0 | Y56: %
T57: F63 | U57: I9 | V57: Numeric | W57: 1 " | X57: 3.0 | Y57: %
T58: F64 | U58: I10 | V58: Numeric | W58: 3/4 " | X58: 3.0 | Y58: %
T59: F65 | U59: I11 | V59: Numeric | W59: 1/2 " | X59: 3.0 | Y59: %
T60: F66 | U60: I12 | V60: Numeric | W60: 3/8 " | X60: 3.0 | Y60: %
T61: F67 | U61: I13 | V61: Numeric | W61: 1/4 " | X61: 3.0 | Y61: %
T62: F68 | U62: I14 | V62: Numeric | W62: #4 | X62: 3.0 | Y62: %
T63: F69 | U63: I15 | V63: Numeric | W63: #8 | X63: 3.0 | Y63: %
T64: F70 | U64: I16 | V64: Numeric | W64: #16 | X64: 3.0 | Y64: %
T65: F71 | U65: I17 | V65: Numeric | W65: #30 | X65: 3.0 | Y65: %
T66: F72 | U66: I18 | V66: Numeric | W66: #50 | X66: 3.0 | Y66: %
T67: F73 | U67: I19 | V67: Numeric | W67: #100 | X67: 3.0 | Y67: %
T68: F74 | U68: I20 | V68: Numeric | W68: #200 | X68: 2.1 | Y68: %
T69: F75 | U69: J6 | V69: Label | W69: "WeighUp" | X69: N/A | Y69: N/A
T70: F76 | U70: J7 | V70: Numeric | W70: WeighUp - 2 " | X70: 3.0 | Y70: %
T71: F77 | U71: J8 | V71: Numeric | W71: WeighUp - 1 1/2 " | X71: 3.0 | Y71: %
T72: F78 | U72: J9 | V72: Numeric | W72: WeighUp - 1 " | X72: 3.0 | Y72: %
T73: F79 | U73: J10 | V73: Numeric | W73: WeighUp - 3/4 " | X73: 3.0 | Y73: %
T74: F80 | U74: J11 | V74: Numeric | W74: WeighUp - 1/2 " | X74: 3.0 | Y74: %
T75: F81 | U75: J12 | V75: Numeric | W75: WeighUp - 3/8 " | X75: 3.0 | Y75: %
T76: F82 | U76: J13 | V76: Numeric | W76: WeighUp - 1/4 " | X76: 3.0 | Y76: %
T77: F83 | U77: J14 | V77: Numeric | W77: WeighUp - #4 | X77: 3.0 | Y77: %
T78: F84 | U78: J15 | V78: Numeric | W78: WeighUp - #8 | X78: 3.0 | Y78: %
T79: F85 | U79: J16 | V79: Numeric | W79: WeighUp - #16 | X79: 3.0 | Y79: %
T80: F86 | U80: J17 | V80: Numeric | W80: WeighUp - #30 | X80: 3.0 | Y80: %
T81: F87 | U81: J18 | V81: Numeric | W81: WeighUp - #50 | X81: 3.0 | Y81: %
T82: F88 | U82: J19 | V82: Numeric | W82: WeighUp - #100 | X82: 3.0 | Y82: %
T83: F89 | U83: J20 | V83: Numeric | W83: WeighUp - #200 | X83: 2.1 | Y83: %
T84: F90 | U84: M2 | V84: Label | W84: MIXTURE DESIGN APPROVAL INFORMATION | X84: N/A | Y84: N/A
T85: F91 | U85: M3 | V85: Label | W85: Design Property | X85: N/A | Y85: N/A
T86: F92 | U86: N28 | V86: Alphanumeric | W86: Notes | X86: 256 | Y86: N/A
T87: F93 | U87: P3 | V87: Label | W87: Design Value | X87: N/A | Y87: N/A
T88: F94 | U88: P4 | V88: Alphanumeric | W88: Coarse Aggregate Angularity (%) | X88: 10 | Y88: % / %
T89: F95 | U89: P5 | V89: Numeric | W89: Fine Aggregate Angularity (%) | X89: 2.0 | Y89: %
T90: F96 | U90: P6 | V90: Numeric | W90: Flat & Elongated Particles (%) | X90: 2.0 | Y90: %
T91: F97 | U91: P7 | V91: Numeric | W91: Clay Content (SE) (%) | X91: 2.0 | Y91: %
T92: F98 | U92: P8 | V92: Numeric | W92: % VFA | X92: 2.1 | Y92: %
T93: F99 | U93: P9 | V93: Numeric | W93: % VMA | X93: 2.1 | Y93: %
T94: F100 | U94: P10 | V94: Numeric | W94: D/A Ratio | X94: 1.1 | Y94: (no units)
T95: F101 | U95: P11 | V95: Numeric | W95: % Gmm @ Ninitial | X95: 2.1 | Y95: %
T96: F102 | U96: P12 | V96: Numeric | W96: % Gmm @ Nmax | X96: 2.1 | Y96: %
T97: F103 | U97: P13 | V97: Numeric | W97: % Air Voids | X97: 2.1 | Y97: %
T98: F104 | U98: P14 | V98: Numeric | W98: Unit Weight (lb/ft3) | X98: 3.1 | Y98: lbs/ft3
T99: F105 | U99: P15 | V99: Numeric | W99: % AC | X99: 2.1 | Y99: %
T100: F106 | U100: P16 | V100: Numeric | W100: % Effective AC | X100: 2.1 | Y100: %
T101: F107 | U101: P17 | V101: Numeric | W101: Maximum Specific Gravity | X101: 1.3 | Y101: (no units)
T102: F108 | U102: P18 | V102: Numeric | W102: % Absorbed AC (Mix) | X102: 1.2 | Y102: %
T103: F109 | U103: P19 | V103: Numeric | W103: Gsb | X103: 1.2 | Y103: (no units)
T104: F110 | U104: P20 | V104: Numeric | W104: Gse | X104: 1.3 | Y104: (no units)
T105: F111 | U105: P21 | V105: Numeric | W105: Film Thickness (µm) | X105: 2.1 | Y105: (µm)
T106: F112 | U106: P22 | V106: Numeric | W106: Specimen Weight (g) | X106: 4.0 | Y106: grams
T107: F113 | U107: P23 | V107: Numeric | W107: TSR Weight (g) | X107: 4.0 | Y107: grams
T108: F114 | U108: P24 | V108: Numeric | W108: % TSR without additive | X108: 2.0 | Y108: %
T109: F115 | U109: P25 | V109: Numeric | W109: % TSR with additive | X109: 2.0 | Y109: %
T110: F116 | U110: P26 | V110: Numeric | W110: % Additive | X110: 1.2 | Y110: %
T111: F117 | U111: P27 | V111: Alphanumeric | W111: Type of Additive | X111: 15 | Y111: N/A
T112: F118 | U112: Q3 | V112: Label | W112: Criteria | X112: 20 | Y112: N/A
T113: F119 | U113: Q4 | V113: Alphanumeric | W113: Criteria - Coarse Aggregate Angularity (%) | X113: 20 | Y113: N/A
T114: F120 | U114: Q5 | V114: Alphanumeric | W114: Criteria - Fine Aggregate Angularity (%) | X114: 20 | Y114: N/A
T115: F121 | U115: Q6 | V115: Alphanumeric | W115: Criteria - Flat & Elongated Particles (%) | X115: 20 | Y115: N/A
T116: F122 | U116: Q7 | V116: Alphanumeric | W116: Criteria - Clay Content (SE) (%) | X116: 20 | Y116: N/A
T117: F123 | U117: Q8 | V117: Alphanumeric | W117: Criteria - % VFA | X117: 20 | Y117: N/A
T118: F124 | U118: Q9 | V118: Alphanumeric | W118: Criteria - % VMA | X118: 20 | Y118: N/A
T119: F125 | U119: Q10 | V119: Alphanumeric | W119: Criteria - D/A Ratio | X119: 20 | Y119: N/A
T120: F126 | U120: Q11 | V120: Alphanumeric | W120: Criteria - % Gmm @ Ninitial | X120: 20 | Y120: N/A
T121: F127 | U121: Q12 | V121: Alphanumeric | W121: Criteria - % Gmm @ Nmax | X121: 20 | Y121: N/A
T122: F128 | U122: Q13 | V122: Alphanumeric | W122: Criteria - % Air Voids | X122: 20 | Y122: N/A
T123: F129 | U123: Q15 | V123: Alphanumeric | W123: Criteria - % AC | X123: 20 | Y123: N/A
T124: F130 | U124: Q24 | V124: Alphanumeric | W124: Criteria - % TSR without additive | X124: 20 | Y124: N/A
T125: F131 | U125: Q25 | V125: Alphanumeric | W125: Criteria - % TSR with additive | X125: 20 | Y125: N/A
T126: F132 | U126: B22 | V126: Label | W126: Reference Information | X126: N/A | Y126: N/A
T127: F133 | U127: B29 | V127: Alphanumeric | W127: Additional Reference Information | X127: 60 | Y127: N/A
T128: F134 | U128: C23 | V128: Alphanumeric | W128: COUNTY: | X128: 50 | Y128: N/A
T129: F135 | U129: C24 | V129: Alphanumeric | W129: ID#: | X129: 50 | Y129: N/A
T130: F136 | U130: C25 | V130: Alphanumeric | W130: Binder: | X130: 50 | Y130: N/A
T131: F137 | U131: D26 | V131: Numeric | W131: Date Released: | X131: 8.0 | Y131: N/A | Z131: FORMAT: MMDDYYYY
T132: F138 | U132: D27 | V132: Alphanumeric | W132: Design AC%: | X132: 5 | Y132: %
T133: F139 | U133: D28 | V133: Alphanumeric | W133: Job Complete? | X133: 5 | Y133: N/A
T134: F140 | U134: B31 | V134: Label | W134: RAP Information | X134: N/A | Y134: N/A
T135: F141 | U135: D32 | V135: Numeric | W135: % AC in RAP: | X135: 2.1 | Y135: %
T136: F142 | U136: D33 | V136: Numeric | W136: % Virgin AC in mix: | X136: 2.1 | Y136: %
T137: F143 | U137: D34 | V137: Numeric | W137: % RAP AC in mix: | X137: 2.1 | Y137: %
T138: F144 | U138: D35 | V138: Numeric | W138: Total % AC in mix: | X138: 2.1 | Y138: %
T139: F145 | U139: C36 | V139: Alphanumeric | W139: RAP MSG's | X139: 5 | Y139: N/A
T140: F254 | U140: C37 | V140: Alphanumeric | W140: RAP Gsb field "label" | X140: 9 | Y140: N/A
T141: F146 | U141: D36 | V141: Alphanumeric | W141: RAP MSG's (2) | X141: 5 | Y141: N/A
T142: F147 | U142: D37 | V142: Numeric | W142: RAP Gsb = | X142: 1.2 | Y142: N/A
T143: F148 | U143: F22 | V143: Label | W143: APPROVAL INFORMATION | X143: N/A | Y143: N/A
T144: F149 | U144: H23 | V144: Alphanumeric | W144: Complete SGC Des. | X144: 1 | Y144: N/A
T145: F150 | U145: H24 | V145: Alphanumeric | W145: App.-New Design | X145: 1 | Y145: N/A
T146: F151 | U146: H25 | V146: Alphanumeric | W146: MCL Design | X146: 1 | Y146: N/A
T147: F152 | U147: K23 | V147: Alphanumeric | W147: 1-Pt. SGC Des. | X147: 1 | Y147: N/A
T148: F153 | U148: K24 | V148: Alphanumeric | W148: App.-Ref. Mix | X148: 1 | Y148: N/A
T149: F154 | U149: K25 | V149: Alphanumeric | W149: Contr. Design | X149: 1 | Y149: N/A
T150: F155 | U150: K26 | V150: Alphanumeric | W150: Revised Asphalt Content (+ or - 0.3%): | X150: 5 | Y150: %
T151: F156 | U151: F29 | V151: Label | W151: TSR INFORMATION | X151: N/A | Y151: N/A
T152: F157 | U152: F31 | V152: Numeric | W152: %AC: | X152: 2.1 | Y152: %
T153: F158 | U153: G31 | V153: Alphanumeric | W153: % ADDITIVE: | X153: 5 | Y153: %
T154: F159 | U154: I31 | V154: Alphanumeric | W154: TYPE OF ADDITIVE: | X154: 30 | Y154: N/A
T155: F160 | U155: H32 | V155: Numeric | W155: % Air Voids w/o add. | X155: 2.1 | Y155: %
T156: F161 | U156: H33 | V156: Numeric | W156: % Initial Saturation w/o Add. | X156: 2.1 | Y156: %
T157: F162 | U157: H34 | V157: Numeric | W157: % Final Saturation w/o Add. | X157: 3.1 | Y157: %
T158: F163 | U158: H35 | V158: Numeric | W158: Wet Strength w/o add. (psi) | X158: 3.1 | Y158: %
T159: F164 | U159: H36 | V159: Numeric | W159: Dry Strength w/o add. (psi) | X159: 3.1 | Y159: psi
T160: F165 | U160: H37 | V160: Numeric | W160: % TSR w/o Add. = | X160: 2.0 | Y160: psi
T161: F166 | U161: K32 | V161: Numeric | W161: % Air Voids with add. | X161: 2.1 | Y161: %
T162: F167 | U162: K33 | V162: Numeric | W162: % Initial Saturation with Add. | X162: 2.1 | Y162: %
T163: F168 | U163: K34 | V163: Numeric | W163: % Final Saturation with Add. | X163: 3.1 | Y163: %
T164: F169 | U164: K35 | V164: Numeric | W164: Wet Strength with add. (psi) | X164: 3.1 | Y164: psi
T165: F170 | U165: K36 | V165: Numeric | W165: Dry Strength with add. (psi) | X165: 3.1 | Y165: psi
T166: F171 | U166: K37 | V166: Numeric | W166: % TSR with Add. = | X166: 2.0 | Y166: %
T167: F172 | U167: B39 | V167: Label | W167: MIX DESIGN AGGREGATE INFORMATION | X167: N/A | Y167: N/A
T168: F173 | U168: B41 | V168: Alphanumeric | W168: AGG. PROD. NO. | X168: 10 | Y168: N/A
T169: F174 | U169: B42 | V169: Alphanumeric | W169: AGG. PROD. NO. #2 | X169: 10 | Y169: N/A
T170: F175 | U170: B43 | V170: Alphanumeric | W170: AGG. PROD. NO. #3 | X170: 10 | Y170: N/A
T171: F176 | U171: B44 | V171: Alphanumeric | W171: AGG. PROD. NO. #4 | X171: 10 | Y171: N/A
T172: F177 | U172: B45 | V172: Alphanumeric | W172: AGG. PROD. NO. #5 | X172: 10 | Y172: N/A
T173: F178 | U173: B46 | V173: Alphanumeric | W173: AGG. PROD. NO. #6 | X173: 10 | Y173: N/A
T174: F179 | U174: D41 | V174: Alphanumeric | W174: PRODUCER NAME | X174: 75 | Y174: N/A
T175: F180 | U175: D42 | V175: Alphanumeric | W175: PRODUCER NAME #2 | X175: 75 | Y175: N/A
T176: F181 | U176: D43 | V176: Alphanumeric | W176: PRODUCER NAME #3 | X176: 75 | Y176: N/A
T177: F182 | U177: D44 | V177: Alphanumeric | W177: PRODUCER NAME #4 | X177: 75 | Y177: N/A
T178: F183 | U178: D45 | V178: Alphanumeric | W178: PRODUCER NAME #5 | X178: 75 | Y178: N/A
T179: F184 | U179: D46 | V179: Alphanumeric | W179: PRODUCER NAME #6 | X179: 75 | Y179: N/A
T180: F185 | U180: I41 | V180: Alphanumeric | W180: MAT.CODE | X180: 10 | Y180: N/A
T181: F186 | U181: I42 | V181: Alphanumeric | W181: MAT.CODE #2 | X181: 10 | Y181: N/A
T182: F187 | U182: I43 | V182: Alphanumeric | W182: MAT.CODE #3 | X182: 10 | Y182: N/A
T183: F188 | U183: I44 | V183: Alphanumeric | W183: MAT.CODE #4 | X183: 10 | Y183: N/A
T184: F189 | U184: I45 | V184: Alphanumeric | W184: MAT.CODE #5 | X184: 10 | Y184: N/A
T185: F190 | U185: I46 | V185: Alphanumeric | W185: MAT.CODE #6 | X185: 10 | Y185: N/A
T186: F191 | U186: K41 | V186: Alphanumeric | W186: AGG. TYPE | X186: 25 | Y186: N/A
T187: F192 | U187: K42 | V187: Alphanumeric | W187: AGG. TYPE #2 | X187: 25 | Y187: N/A
T188: F193 | U188: K43 | V188: Alphanumeric | W188: AGG. TYPE #3 | X188: 25 | Y188: N/A
T189: F194 | U189: K44 | V189: Alphanumeric | W189: AGG. TYPE #4 | X189: 25 | Y189: N/A
T190: F195 | U190: K45 | V190: Alphanumeric | W190: AGG. TYPE #5 | X190: 25 | Y190: N/A
T191: F196 | U191: K46 | V191: Alphanumeric | W191: AGG. TYPE #6 | X191: 25 | Y191: N/A
T192: F197 | U192: M41 | V192: Numeric | W192: Gsb | X192: 1.2 | Y192: N/A
T193: F198 | U193: M42 | V193: Numeric | W193: Gsb #2 | X193: 1.2 | Y193: N/A
T194: F199 | U194: M43 | V194: Numeric | W194: Gsb #3 | X194: 1.2 | Y194: N/A
T195: F200 | U195: M44 | V195: Numeric | W195: Gsb #4 | X195: 1.2 | Y195: N/A
T196: F201 | U196: M45 | V196: Numeric | W196: Gsb #5 | X196: 1.2 | Y196: N/A
T197: F202 | U197: M46 | V197: Numeric | W197: Gsb #6 | X197: 1.2 | Y197: N/A
T198: F203 | U198: N41 | V198: Numeric | W198: % | X198: 3.0 | Y198: %
T199: F204 | U199: N42 | V199: Numeric | W199: % #2 | X199: 3.0 | Y199: %
T200: F205 | U200: N43 | V200: Numeric | W200: % #3 | X200: 3.0 | Y200: %
... 48 more rows

Sheet t_smpl (hidden)
A1: Special Processing | E1: d | G1: c | H1: c | J1: c | K1: d | O1: c | P1: c | R1: c | Y1: c | AA1: c | AB1: c | AC1: c | AD1: c | AE1: c | AF1: c | AH1: c | AI1: c | AJ1: c | AK1: c | AM1: c | AN1: c | AO1: c | AP1: c | AQ1: c | AR1: c | AS1: c | AT1: c | AU1: c | AV1: c | AW1: c | AX1: c | AY1: c | AZ1: c | BA1: c | BB1: c | BC1: c
A2: SM Table | B2: t_smpl | C2: t_smpl | D2: t_smpl | E2: t_smpl | F2: t_smpl | G2: t_smpl | H2: t_smpl | I2: t_smpl | J2: t_smpl | K2: t_smpl | L2: t_smpl | M2: t_smpl | N2: t_smpl | O2: t_smpl | P2: t_smpl | Q2: t_smpl | R2: t_smpl | S2: t_smpl | T2: t_smpl | U2: t_smpl | V2: t_smpl | W2: t_smpl | X2: t_smpl | Y2: t_smpl | Z2: t_smpl | AA2: t_smpl | AB2: t_smpl | AC2: t_smpl | AD2: t_smpl | AE2: t_smpl | AF2: t_smpl | AG2: t_smpl | AH2: t_smpl | AI2: t_smpl | AJ2: t_smpl | AK2: t_smpl | AL2: t_smpl | AM2: t_smpl | AN2: t_smpl | AO2: t_smpl | AP2: t_smpl | AQ2: t_smpl | AR2: t_smpl | AS2: t_smpl | AT2: t_smpl | AU2: t_smpl | AV2: t_smpl | AW2: t_smpl | AX2: t_smpl | AY2: t_smpl | AZ2: t_smpl | BA2: t_smpl | BB2: t_smpl | BC2: t_smpl
A3: SM Column | B3: smpl_id | C3: acpt_meth_t | D3: auth_by_cms_uid | E3: auth_dt | F3: cms_uid | G3: cntrl_nbr | H3: cntrl_t | I3: geog_area_t | J3: intd_use_txt | K3: last_modfd_dt | L3: last_modfd_uid | M3: log_dt | N3: matl_cd | O3: offst | P3: plant_id | Q3: prodr_supp_cd | R3: rel_smpl_id | S3: rmrks_id | T3: smpl_dsn_t | U3: smpl_dt | V3: smpl_mix_id | W3: smpl_t | X3: smpld_by | Y3: sta | Z3: stat_t | AA3: witnes_by_cms_uid | AB3: prod_nm | AC3: plant_t | AD3: revise_smpl_id | AE3: smpl_origin | AF3: smpld_fr_txt | AG3: unt_t | AH3: mnfctr_cd | AI3: twn | AJ3: buy_usa_ind | AK3: buy_usa_rqrdmt_t | AL3: repr_qty | AM3: ref | AN3: seal_nbr | AO3: smpl_sz | AP3: reqst_by_nm | AQ3: std_rmrks_ind | AR3: smpl_lock_ind | AS3: dstnc_fnsh_grd | AT3: dstnc_fnsh_grd_unt | AU3: ref_doc | AV3: sz_unt_t | AW3: lock_type | AX3: locked_by | AY3: lock_dt | AZ3: lev1_office_ind | BA3: lev2_office_nbr | BB3: lev3_office_nbr | BC3: lev4_office_nbr
A4: Logical Validation | B4: No duplicates of key (highlighted in yellow); IF Sample ID "blank", THEN skip to next record | C4: Existing on t_cd_tbl_dtl (cd_id) AND t_cd_tbl_dtl.tbl_id='ACPTMETH' | D4: Existing on t_matl_user AND t_matl_user.smplr_ind='Y" AND active sampler qualification of "Superpave Mix Design Tech." ( I.e., At least one row returned from: SELECT * FROM t_insp_qualfn WHERE smpld_by = smpld_by AND insp_qualfn_t = "ASMD" AND qualfn_lev_t = "SMDT" AND exp_dt >= t_smpl.smpl_dt (same keys as current row) AND effdt <= t_smpl.smpl_dt (same keys as current row) ) | E4: IF new record THEN Set to Current System Date ELSE (using REPLACE feature) Set to auth_dt on exisitng t_smp record in SM DB ENDIF | F4: Existing on t_matl_user AND t_matl_user.sm_user_ind='Y' | I4: Existing on t_cd_tbl_dtl (cd_id) AND t_cd_tbl_dtl.tbl_id='GEOGAREA' | N4: Existing on t_matl AND t.matl_actvty_stat_t = "A" | Q4: Existing on t_prodr_supp AND t_prodr_supp.actvty_stat_t = "A" AND smpl_dt (below) is between t_prodr_supp_matl.effdt & exp_dt (for the matl_cd above) | T4: Existing on t_cd_tbl_dtl (cd_id) AND t_cd_tbl_dtl.tbl_id='SMPLDSN' | W4: Existing on t_cd_tbl_dtl (cd_id) AND t_cd_tbl_dtl.tbl_id='SMPLTYPE' | X4: Existing on t_matl_user AND t_matl_user.smplr_ind='Y" AND active sampler qualification of "Superpave Mix Design Tech." ( I.e., At least one row returned from: SELECT * FROM t_insp_qualfn WHERE smpld_by = smpld_by AND insp_qualfn_t = "ASMD" AND qualfn_lev_t = "SMDT" AND exp_dt >= t_smpl.smpl_dt (same keys as current row) AND effdt <= t_smpl.smpl_dt (same keys as current row) ) | Z4: Existing on t_cd_tbl_dtl (cd_id) AND t_cd_tbl_dtl.tbl_id='SMPLSTAT' | AG4: Existing on t_cd_tbl_dtl (cd_id) AND t_cd_tbl_dtl.tbl_id='UNITS'
A5: Comment | C5: Embed code table in spreadsheet | D5: The Approver must have active "SUPERPAVE MIX DESIGN TECHNOLOGIST" Sampler qualification (and therefore have a SM User ID) for a Material Category of "ASPHALT-MIX DESIGN". | F5: SM User ID from Header | G5: Not Used Initialized to " " (i.e., space) | H5: Not Used Initialized to " " (i.e., space) | I5: Derived from first two characters of Sample ID | J5: Not Used Initialized to " " (i.e., space) | K5: Current system date | M5: The Date Received should be updated each time the spreadsheet received, i.e., including corrections. | O5: Not Used Initialized to " " (i.e., space) | P5: Not Used Initialized to " " (i.e., space) | R5: Not Used Initialized to " " (i.e., space) | S5: Comes from t_rmks_dtl tab (Only QC & QA have active remarks - not active for INFO Samples) | U5: This will be the date when the Contractor submitted the spreadsheet. | X5: The Approver must have active "SUPERPAVE MIX DESIGN TECHNOLOGIST" Sampler qualification (and therefore have a SM User ID) for a Material Category of "ASPHALT-MIX DESIGN". | Y5: Not Used Initialized to " " (i.e., space) | AA5: Not Used Initialized to " " (i.e., space) | AB5: Not Used Initialized to " " (i.e., space) | AC5: Not Used Initialized to " " (i.e., space) | AD5: Not Used Initialized to " " (i.e., space) | AE5: Not Used Initialized to " " (i.e., space) | AF5: Not Used Initialized to " " (i.e., space) | AG5: Always assigned as TONS for this discipline | AH5: Not Used Initialized to " " (i.e., space) | AI5: Not Used Initialized to " " (i.e., space) | AJ5: Not Used Initialized to " " (i.e., space) | AK5: Not Used Initialized to " " (i.e., space) | AM5: Not Used Initialized to " " (i.e., space) | AN5: Not Used Initialized to " " (i.e., space) | AO5: Not Used Initialized to " " (i.e., space) | AP5: Not Used Initialized to " " (i.e., space) | AQ5: Not Used Initialized to " " (i.e., space) | AR5: Not Used Initialized to " " (i.e., space) | AS5: Not Used Initialized to " " (i.e., space) | AT5: Not Used Initialized to " " (i.e., space) | AU5: Not Used Initialized to " " (i.e., space) | AV5: Not Used Initialized to " " (i.e., space) | AW5: Not Used Initialized to " " (i.e., space) | AX5: Not Used Initialized to " " (i.e., space) | AY5: Not Used Initialized to "" (i.e., NULL) | AZ5: Not Used Initialized to " " (i.e., space) | BA5: Not Used Initialized to " " (i.e., space) | BB5: Not Used Initialized to " " (i.e., space) | BC5: Not Used Initialized to " " (i.e., space)
A6: Long Description | B6: SiteManager Sample ID | C6: Acceptance Method | D6: Authorizer SM User ID | E6: Authorization Date | F6: Sample "Creator" SM User ID | G6: Control Number | H6: Control Type | I6: Geographic Area | J6: Intended Use (of material sampled) | K6: Last Modified Date | L6: Last Modified User ID | M6: Sample Logged Date | N6: Material Code | O6: Offset | P6: Plant ID | Q6: Producer / Supplier | R6: Related Sample ID | S6: Remarks ID | T6: Mix Design Type | U6: Sample Date | V6: Mix ID | W6: Sample Type | X6: Sampling Technician (SM User ID) | Y6: Station | Z6: Sample Status | AA6: Sampling KYTC Witness SM User ID | AB6: Product Name | AC6: Plant Type | AD6: Revised Sample ID | AE6: Sample Origin | AF6: Sample From | AG6: Repr Material Quantity Units | AH6: Manufacturer | AI6: Town (where sampled) | AJ6: Buy USA Indicator | AK6: Buy USA Requirement Type | AL6: Represented Material Quantity | AM6: Reference | AN6: Sublot Sample | AO6: Sample Size | AP6: Name of Sample Requester | AQ6: Standard Remarks Included Indicator | AR6: Sample Locked Indicator | AS6: Distance From Finished Grade | AT6: Distance From Finished Grade Unit | AU6: Reference Document | AV6: Sample Size Unit | AW6: Sample Lock Type | AX6: Sample Locked By (SM User ID) | AY6: Sample Lock Date | AZ6: Sample Lock Level 1 Office | BA6: Sample Lock Level 2 Office | BB6: Sample Lock Level 3 Office | BC6: Sample Lock Level 4 Office
A7: User Entry XML Schema Sheet Map Column Name | B7: smpl_id | C7: acpt_meth_t | D7: auth_by_cms_uid | E7: auth_dt | F7: cms_uid | G7: cntrl_nbr | H7: cntrl_t | I7: geog_area_t | J7: intd_use_txt | K7: last_modfd_dt | L7: last_modfd_uid | M7: log_dt | N7: matl_cd | O7: offst | P7: plant_id | Q7: prodr_supp_cd | R7: rel_smpl_id | S7: rmrks_id | T7: smpl_dsn_t | U7: smpl_dt | V7: smpl_mix_id | W7: smpl_t | X7: smpld_by | Y7: sta | Z7: stat_t | AA7: witnes_by_cms_uid | AB7: prod_nm | AC7: plant_t | AD7: revise_smpl_id | AE7: smpl_origin | AF7: smpld_fr_txt | AG7: unt_t | AH7: mnfctr_cd | AI7: twn | AJ7: buy_usa_ind | AK7: buy_usa_rqrdmt_t | AL7: repr_qty | AM7: ref | AN7: seal_nbr | AO7: smpl_sz | AP7: reqst_by_nm | AQ7: std_rmrks_ind | AR7: smpl_lock_ind | AS7: dstnc_fnsh_grd | AT7: dstnc_fnsh_grd_unt | AU7: ref_doc | AV7: sz_unt_t | AW7: lock_type | AX7: locked_by | AY7: lock_dt | AZ7: lev1_office_ind | BA7: lev2_office_nbr | BB7: lev3_office_nbr | BC7: lev4_office_nbr
B8: ='Design Data'!C10 -> 0 | C8: MDA | D8: ='Design Data'!S82 -> 0 | E8: ='Design Data'!H16 -> 00:00:00 | F8: ='Design Data'!S82 -> 0 | I8: =LEFT('Design Data'!C10,2) ->  | L8: ='Design Data'!S82 -> 0 | M8: ='Design Data'!H14 -> 00:00:00 | N8: ='Design Data'!Q16 ->  | Q8: ='Design Data'!Q14 ->  | S8: =t_rmks_dtl!B8 ->  | T8: SUP | U8: ='Design Data'!H16 -> 00:00:00 | V8: ='Design Data'!H10 -> 0 | W8: MDA | X8: ='Design Data'!K16 -> 0 | Z8: COMP | AG8: TON | AL8: ='Design Data'!Q12 -> 0

Sheet t_cont_smpl (hidden)
A1: Special Processing | B1: x | H1: d
A2: SM Table | B2: t_cont_smpl | C2: t_cont_smpl | D2: t_cont_smpl | E2: t_cont_smpl | F2: t_cont_smpl | G2: t_cont_smpl | H2: t_cont_smpl
A3: SM Column | B3: smpl_id | C3: cont_id | D3: prj_nbr | E3: ln_itm_nbr | F3: repr_qty | G3: last_modfd_uid | H3: last_modfd_dt
A4: Logical Validation | B4: No duplicates of key (highlighted in yellow); IF Sample ID "blank", THEN skip to next record | C4: These three keys (and matl_cd from Header tab) must exist on t_cont_streq_matl.
A5: Comment | D5: THESE THREE FIELDS COME FROM THE FIRST THREE COLUMNS ON THE "Project Item" TAB (AND EACH ROW ON THAT TAB REPEATS FOR EVERY ROW ON THIS TAB HAVING A "Sample ID") | H5: Current system date
A6: Long Description | B6: SiteManager Sample ID | C6: Contract ID | D6: Project Number | E6: Line Item Number | F6: Represented Quantity | G6: Last Modified User ID | H6: Last Modified Date
A7: User Entry XML Schema Sheet Map Column Name | B7: smpl_id | C7: cont_id | D7: prj_nbr | E7: ln_itm_nbr | F7: repr_qty | G7: last_modfd_uid | H7: last_modfd_dt
B8: ='Design Data'!C10 -> 0 | C8: ='Design Data'!C8 -> 0 | D8: N/A | E8: N/A | F8: N/A | G8: ='Design Data'!S82 -> 0

Sheet t_rmks_dtl (hidden)
A1: Special Processing | G1: d
A2: SM Table | B2: t_rmrks_dtl | C2: t_rmrks_dtl | D2: t_rmrks_dtl | E2: t_rmrks_dtl | F2: t_rmrks_dtl | G2: t_rmrks_dtl
A3: SM Column | B3: rmrks_id | C3: rmrks_t | D3: rmrks_sn | E3: rmrks_txt_fld | F3: last_modfd_uid | G3: last_modfd_dt
A4: Logical Validation | B4: No duplicates of key (highlighted in yellow); IF Sample ID "blank", THEN skip to next record
A5: Comment | E5: Up to 254 char Sample Remark (NOTE: COULD HAVE REMARK FOR EACH TEST.) | G5: Current system date
A6: Long Description | B6: Remark ID | C6: Remark Type | D6: Remark Sequence Number | E6: Remarks | F6: Last Modified User ID | G6: Last Modified Date
A7: User Entry XML Schema Sheet Map Column Name | B7: rmrks_id | C7: rmrks_t | D7: rmrks_sn | E7: rmrks_txt_fld | F7: last_modfd_uid | G7: last_modfd_dt
B8: =IF(E8=0,"",CONCATENATE('Design Data'!S82,TEXT(NOW(),"yyyymmddhhmmss"),RIGHT('Design Data'!C10,4))) ->  | C8: GEN | D8: 1 | E8: ='Design Data'!A121 -> 0 | F8: ='Design Data'!S82 -> 0

Sheet t_smpl_tst (hidden)
A1: Special Processing | K1: d
A2: SM Table | B2: t_smpl_tst | C2: t_smpl_tst | D2: t_smpl_tst | E2: t_smpl_tst | F2: t_smpl_tst | G2: t_smpl_tst | H2: t_smpl_tst | I2: t_smpl_tst | J2: t_smpl_tst | K2: t_smpl_tst
A3: SM Column | B3: smpl_id | C3: tst_meth | D3: smpl_tst_nbr | E3: lab_id | F3: chrg_amt | G3: strt_dt | H3: est_cmpl_dt | I3: actl_cmpl_dt | J3: last_modfd_uid | K3: last_modfd_dt
A4: Logical Validation | B4: No duplicates of key (highlighted in yellow); IF Sample ID "blank", THEN skip to next record | C4: Existing on t_tst_fee_schd | E4: Existing on t_qualf_lab
A5: Comment | E5: Lab ID | K5: Current system date
A6: Long Description | B6: SiteManager Sample ID | C6: Test Method | D6: Test Number | E6: SM Laboratory ID | F6: Charge Amount | G6: Received Date | H6: Actual Start Date | I6: Actual Completion Date | J6: Last Modified User ID | K6: Last Modified Date
A7: User Entry XML Schema Sheet Map Column Name | B7: smpl_id | C7: tst_meth | D7: smpl_tst_nbr | E7: lab_id | F7: chrg_amt | G7: strt_dt | H7: est_cmpl_dt | I7: actl_cmpl_dt | J7: last_modfd_uid | K7: last_modfd_dt
B8: ='Design Data'!C10 -> 0 | C8: AMMIXPACK | D8: 1 | E8: ='Design Data'!H12 -> 0 | F8: =ROUND('Chart Data'!T15,2) -> 0 | G8: ='Design Data'!H14 -> 00:00:00 | H8: ='Design Data'!H86 -> 00:00:00 | I8: ='Design Data'!H16 -> 00:00:00 | J8: ='Design Data'!S82 -> 0

Sheet t_smpl_tstr (hidden)
A1: Special Processing | G1: d
A2: SM Table | B2: t_smpl_tstr | C2: t_smpl_tstr | D2: t_smpl_tstr | E2: t_smpl_tstr | F2: t_smpl_tstr | G2: t_smpl_tstr
A3: SM Column | B3: smpl_id | C3: tst_meth | D3: smpl_tst_nbr | E3: tst_id | F3: last_modfd_uid | G3: last_modfd_dt
A4: Logical Validation | B4: No duplicates of key (highlighted in yellow); | C4: Existing on t_tst_fee_schd | E4: Existing on t_matl_user AND t_matl_user.tstr_ind='Y" AND active test qualification of "Superpave Mix Design Tech." ( I.e., At least one row returned from: SELECT * FROM t_tst_prsnl_qualfn WHERE tst_id = tst_id AND tst_prsnlqualfn_t = "ASMD" AND qualfn_lev_t = "SMDT" AND exp_dt >= t_smpl_tst.strt_dt (same keys as current row) AND effdt <= t_smpl_tst.strt_dt (same keys as current row) For any row above, return at least one row: SELECT * FROM t_tst_prsnqualftst WHERE tst_id = tst_id AND tst_prsnlqualfn_t = t_tst_prsnl_qualfn.tst_prsnlqualfn_t AND qualfn_lev_t = t_tst_prsnl_qualfn.qualfn_lev_t AND effdt = t_tst_prsnl_qualfn.effdt AND tst_meth = t_smpl_tst.tst_meth )
A5: Comment | B5: IF No Sample ID, Ignore Row. | E5: The Approver must have active "SUPERPAVE MIX DESIGN TECHNOLOGIST" Sampler qualification (and therefore have a SM User ID) for a Material Category of "ASPHALT-MIX DESIGN". | G5: Current system date
A6: Long Description | B6: SiteManager Sample ID | C6: Test Method | D6: Test Number | E6: Tester ID | F6: Last Modified User ID | G6: Last Modified Date
A7: User Entry XML Schema Sheet Map Column Name | B7: smpl_id | C7: tst_meth | D7: smpl_tst_nbr | E7: tst_id | F7: last_modfd_uid | G7: last_modfd_dt
B8: ='Design Data'!C10 -> 0 | C8: AMMIXPACK | D8: 1 | E8: ='Design Data'!K16 -> 0 | F8: ='Design Data'!S82 -> 0

Sheet t_tst_rslt_hdr (hidden)
A1: Special Processing | E1: c | F1: c | G1: d
A2: SM Table | B2: t_tst_rslt_hdr | C2: t_tst_rslt_hdr | D2: t_tst_rslt_hdr | E2: t_tst_rslt_hdr | F2: t_tst_rslt_hdr | G2: t_tst_rslt_hdr | H2: t_tst_rslt_hdr
A3: SM Column | B3: smpl_id | C3: tst_meth | D3: smpl_tst_nbr | E3: rmrks_id | F3: effdt | G3: last_modfd_dt | H3: last_modfd_uid
A4: Logical Validation | B4: No duplicates of key (highlighted in yellow); IF Sample ID "blank", THEN skip to next record
A5: Comment | B5: IF No Sample ID, Ignore Row. | E5: Not Used Initialized to " " (i.e., space) | F5: Test Specification Date (Not used in this discipline) Initialized to 0 | G5: Current system date
A6: Long Description | B6: Sample ID | C6: Test Method | D6: Test Number | E6: Remarks ID | F6: Effective Date | G6: Last Modified Date | H6: Last Modified User ID
A7: User Entry XML Schema Sheet Map Column Name | B7: smpl_id | C7: tst_meth | D7: smpl_tst_nbr | E7: rmrks_id | F7: effdt | G7: last_modfd_dt | H7: last_modfd_uid
B8: ='Design Data'!C10 -> 0 | C8: AMMIXPACK | D8: 1 | F8: 0 | H8: ='Design Data'!S82 -> 0

Sheet t_tst_rslt_dtl (hidden)
A1: Special Processing | I1: d
A2: SM Table | B2: t_tst_rslt_dtl | C2: t_tst_rslt_dtl | D2: t_tst_rslt_dtl | E2: t_tst_rslt_dtl | F2: t_tst_rslt_dtl | G2: t_tst_rslt_dtl | H2: t_tst_rslt_dtl | I2: t_tst_rslt_dtl
A3: SM Column | B3: smpl_id | C3: tst_meth | D3: smpl_tst_nbr | E3: tst_fld_sn | F3: tst_strg_fld_val | G3: tst_numrc_fld_val | H3: last_modfd_uid | I3: last_modfd_dt
A4: Logical Validation | B4: No duplicates of key (highlighted in yellow); IF Sample ID "blank", THEN skip to next record | F4: Type & Size AND CHOOSE CASE tst_fld_sn CASE 2 [Code Table check] Existing on t_cd_tbl_dtl (cd_id) AND t_cd_tbl_dtl.tbl_id='TEMPSTAT' ENDCASE | G4: Type & Size (ALL ...fld_val FIELDS) AND CHOOSE CASE tst_fld_sn [SM "Date" Format] CASE 137 Make sure to format MMDDYYYY ENDCASE
A5: Comment | F5: IF Not Used, Initialize to " " (i.e., space) | G5: IF Not Used Initialize to 0 | I5: Current system date
A6: Long Description | B6: Sample ID | C6: Test Method | D6: Test Number | E6: Test Field Sequence Number | F6: Test Field String Value | G6: Test Field Numeric Value | H6: Last Modified User ID | I6: Last Modified Date
A7: User Entry XML Schema Sheet Map Column Name | B7: smpl_id | C7: tst_meth | D7: smpl_tst_nbr | E7: tst_fld_sn | F7: tst_strg_fld_val | G7: tst_numrc_fld_val | H7: last_modfd_uid | I7: last_modfd_dt
A8: Comment (NOT CURRENTLY USED) | B8: ='Design Data'!C10 -> 0 | C8: AMMIXPACK | D8: 1 | E8: 1 | G8: 0 | H8: ='Design Data'!S82 -> 0
A9: Template Status (TEMPSTAT) | B9: =B8 -> 0 | C9: =C8 -> AMMIXPACK | D9: 1 | E9: 2 | F9: =IF(B9=""," ",IF(t_smpl!Z8="COMP","ISPC","OSPC")) -> ISPC | G9: 0 | H9: =H8 -> 0
A10: GenericString2 (NOT CURRENTLY USED) | B10: 0 | C10: AMMIXPACK | D10: 1 | E10: 3 | G10: 0 | H10: 0
A11: GenericNum1 (NOT CURRENTLY USED) | B11: 0 | C11: AMMIXPACK | D11: 1 | E11: 4 | G11: 0 | H11: 0
A12: GenericNum2 (NOT CURRENTLY USED) | B12: 0 | C12: AMMIXPACK | D12: 1 | E12: 5 | G12: 0 | H12: 0
A13: GenericNum3 (NOT CURRENTLY USED) | B13: 0 | C13: AMMIXPACK | D13: 1 | E13: 6 | G13: 0 | H13: 0
A14: GenericNum4 (NOT CURRENTLY USED) | B14: 0 | C14: AMMIXPACK | D14: =D13 -> 1 | E14: 7 | G14: 0 | H14: 0
A15: LABEL: PROJECT INFORMATION | B15: 0 | C15: AMMIXPACK | D15: 1 | E15: 8 | G15: 0 | H15: 0
A16: RAP Note | B16: 0 | C16: AMMIXPACK | D16: 1 | E16: 9 | F16: ='Design Data'!A19 -> (as specified in Bid Item) | G16: 0 | H16: 0
A17: SUBMITTAL TYPE: | B17: 0 | C17: AMMIXPACK | D17: 1 | E17: 10 | F17: ='Chart Data'!J7 ->  | G17: 0 | H17: 0
A18: COUNTY: | B18: 0 | C18: AMMIXPACK | D18: 1 | E18: 11 | F18: ='Design Data'!K10 -> 0 | G18: 0 | H18: 0
A19: TOTAL TONS: | B19: 0 | C19: AMMIXPACK | D19: 1 | E19: 12 | G19: =IF('Design Data'!Q12="",0,ROUND('Design Data'!Q12,0)) -> 0 | H19: 0
A20: DEPTH (mm): | B20: 0 | C20: AMMIXPACK | D20: 1 | E20: 13 | G20: =IF('Design Data'!K20="","",ROUND('Design Data'!K20,0)) ->  | H20: 0
A21: BINDER GRADE | B21: 0 | C21: AMMIXPACK | D21: 1 | E21: 14 | F21: ='Design Data'!C18 ->  | G21: 0 | H21: 0
A22: LABEL: 4-PT. GYRATORY MIX DESIGN INFORMATION | B22: 0 | C22: AMMIXPACK | D22: 1 | E22: 15 | G22: 0 | H22: 0
A23: AC | B23: 0 | C23: AMMIXPACK | D23: 1 | E23: 16 | G23: =IF('Design Data'!A86="",0,ROUND('Design Data'!A86,1)) -> 0 | H23: 0
A24: Gmmini | B24: 0 | C24: AMMIXPACK | D24: 1 | E24: 17 | G24: =IF('Design Data'!B86="",0,ROUND('Design Data'!B86,1)) -> 0 | H24: 0
A25: AV | B25: =B24 -> 0 | C25: AMMIXPACK | D25: 1 | E25: 18 | G25: =IF('Design Data'!D86="",0,ROUND('Design Data'!D86,1)) -> 0 | H25: 0
A26: VMA | B26: 0 | C26: AMMIXPACK | D26: 1 | E26: 19 | G26: =IF('Design Data'!F86="",0,ROUND('Design Data'!F86,1)) -> 0 | H26: 0
A27: VFA | B27: 0 | C27: AMMIXPACK | D27: 1 | E27: 20 | G27: =IF('Design Data'!B91="",0,ROUND('Design Data'!B91,1)) -> 0 | H27: 0
A28: UW | B28: 0 | C28: AMMIXPACK | D28: 1 | E28: 21 | G28: =IF('Design Data'!D91="",0,ROUND('Design Data'!D91,1)) -> 0 | H28: 0
A29: MSG | B29: 0 | C29: AMMIXPACK | D29: 1 | E29: 22 | G29: =IF('Design Data'!F91="",0,ROUND('Design Data'!F91,3)) -> 0 | H29: 0
A30: Eff. AC | B30: 0 | C30: AMMIXPACK | D30: 1 | E30: 23 | G30: =IF('Design Data'!B96="",0,ROUND('Design Data'!B96,1)) -> 0 | H30: 0
A31: Film Th | B31: 0 | C31: AMMIXPACK | D31: 1 | E31: 24 | G31: =IF('Design Data'!D96="",0,ROUND('Design Data'!D96,1)) -> 0 | H31: 0
A32: D/A | B32: 0 | C32: AMMIXPACK | D32: 1 | E32: 25 | G32: =IF('Design Data'!F96="",0,ROUND('Design Data'!F96,1)) -> 0 | H32: 0
A33: Point 2 - AC | B33: 0 | C33: AMMIXPACK | D33: 1 | E33: 26 | G33: =IF('Design Data'!A87="",0,ROUND('Design Data'!A87,1)) -> 0 | H33: 0
A34: Point 2 - Gmmini | B34: 0 | C34: AMMIXPACK | D34: 1 | E34: 27 | G34: =IF('Design Data'!B87="",0,ROUND('Design Data'!B87,1)) -> 0 | H34: 0
A35: Point 2 - AV | B35: 0 | C35: AMMIXPACK | D35: 1 | E35: 28 | G35: =IF('Design Data'!D87="",0,ROUND('Design Data'!D87,1)) -> 0 | H35: 0
A36: Point 2 - VMA | B36: 0 | C36: AMMIXPACK | D36: 1 | E36: 29 | G36: =IF('Design Data'!F87="",0,ROUND('Design Data'!F87,1)) -> 0 | H36: 0
A37: Point 2 - VFA | B37: 0 | C37: AMMIXPACK | D37: 1 | E37: 30 | G37: =IF('Design Data'!B92="",0,ROUND('Design Data'!B92,1)) -> 0 | H37: 0
A38: Point 2 - UW | B38: 0 | C38: AMMIXPACK | D38: 1 | E38: 31 | G38: =IF('Design Data'!D92="",0,ROUND('Design Data'!D92,1)) -> 0 | H38: 0
A39: Point 2 - MSG | B39: 0 | C39: AMMIXPACK | D39: 1 | E39: 32 | G39: =IF('Design Data'!F92="",0,ROUND('Design Data'!F92,3)) -> 0 | H39: 0
A40: Point 2 - Eff. AC | B40: 0 | C40: AMMIXPACK | D40: 1 | E40: 33 | G40: =IF('Design Data'!B97="",0,ROUND('Design Data'!B97,1)) -> 0 | H40: 0
A41: Point 2 - Film Th | B41: =B40 -> 0 | C41: AMMIXPACK | D41: 1 | E41: 34 | G41: =IF('Design Data'!D97="",0,ROUND('Design Data'!D97,1)) -> 0 | H41: 0
A42: Point 2 - D/A | B42: 0 | C42: AMMIXPACK | D42: 1 | E42: 35 | G42: =IF('Design Data'!F97="",0,ROUND('Design Data'!F97,1)) -> 0 | H42: 0
A43: Point 3 - AC | B43: 0 | C43: AMMIXPACK | D43: 1 | E43: 36 | G43: =IF('Design Data'!A88="",0,ROUND('Design Data'!A88,1)) -> 0 | H43: 0
A44: Point 3 - Gmmini | B44: 0 | C44: AMMIXPACK | D44: 1 | E44: 37 | G44: =IF('Design Data'!B88="",0,ROUND('Design Data'!B88,1)) -> 0 | H44: 0
A45: Point 3 - AV | B45: 0 | C45: AMMIXPACK | D45: 1 | E45: 38 | G45: =IF('Design Data'!D88="",0,ROUND('Design Data'!D88,1)) -> 0 | H45: 0
A46: Point 3 - VMA | B46: 0 | C46: AMMIXPACK | D46: 1 | E46: 39 | G46: =IF('Design Data'!F88="",0,ROUND('Design Data'!F88,1)) -> 0 | H46: 0
A47: Point 3 - VFA | B47: 0 | C47: AMMIXPACK | D47: 1 | E47: 40 | G47: =IF('Design Data'!B93="",0,ROUND('Design Data'!B93,1)) -> 0 | H47: 0
A48: Point 3 - UW | B48: 0 | C48: AMMIXPACK | D48: 1 | E48: 41 | G48: =IF('Design Data'!D93="",0,ROUND('Design Data'!D93,1)) -> 0 | H48: 0
A49: Point 3 - MSG | B49: 0 | C49: AMMIXPACK | D49: 1 | E49: 42 | G49: =IF('Design Data'!F93="",0,ROUND('Design Data'!F93,3)) -> 0 | H49: 0
A50: Point 3 - Eff. AC | B50: 0 | C50: AMMIXPACK | D50: 1 | E50: 43 | G50: =IF('Design Data'!B98="",0,ROUND('Design Data'!B98,1)) -> 0 | H50: 0
A51: Point 3 - Film Th | B51: 0 | C51: AMMIXPACK | D51: 1 | E51: 44 | G51: =IF('Design Data'!D98="",0,ROUND('Design Data'!D98,1)) -> 0 | H51: 0
A52: Point 3 - D/A | B52: 0 | C52: AMMIXPACK | D52: 1 | E52: 45 | G52: =IF('Design Data'!F98="",0,ROUND('Design Data'!F98,1)) -> 0 | H52: 0
A53: Point 4 - AC | B53: 0 | C53: AMMIXPACK | D53: 1 | E53: 46 | G53: =IF('Design Data'!A89="",0,ROUND('Design Data'!A89,1)) -> 0 | H53: 0
A54: Point 4 - Gmmini | B54: 0 | C54: AMMIXPACK | D54: 1 | E54: 47 | G54: =IF('Design Data'!B89="",0,ROUND('Design Data'!B89,1)) -> 0 | H54: 0
A55: Point 4 - AV | B55: 0 | C55: AMMIXPACK | D55: 1 | E55: 48 | G55: =IF('Design Data'!D89="",0,ROUND('Design Data'!D89,1)) -> 0 | H55: 0
A56: Point 4 - VMA | B56: 0 | C56: AMMIXPACK | D56: 1 | E56: 49 | G56: =IF('Design Data'!F89="",0,ROUND('Design Data'!F89,1)) -> 0 | H56: 0
A57: Point 4 - VFA | B57: =B56 -> 0 | C57: AMMIXPACK | D57: 1 | E57: 50 | G57: =IF('Design Data'!B94="",0,ROUND('Design Data'!B94,1)) -> 0 | H57: 0
A58: Point 4 - UW | B58: 0 | C58: AMMIXPACK | D58: 1 | E58: 51 | G58: =IF('Design Data'!D94="",0,ROUND('Design Data'!D94,1)) -> 0 | H58: 0
A59: Point 4 - MSG | B59: 0 | C59: AMMIXPACK | D59: 1 | E59: 52 | G59: =IF('Design Data'!F94="",0,ROUND('Design Data'!F94,3)) -> 0 | H59: 0
A60: Point 4 - Eff. AC | B60: 0 | C60: AMMIXPACK | D60: 1 | E60: 53 | G60: =IF('Design Data'!B99="",0,ROUND('Design Data'!B99,1)) -> 0 | H60: 0
A61: Point 4 - Film Th | B61: 0 | C61: AMMIXPACK | D61: 1 | E61: 54 | G61: =IF('Design Data'!D99="",0,ROUND('Design Data'!D99,1)) -> 0 | H61: 0
A62: Point 4 - D/A | B62: 0 | C62: AMMIXPACK | D62: 1 | E62: 55 | G62: =IF('Design Data'!F99="",0,ROUND('Design Data'!F99,1)) -> 0 | H62: 0
A63: LABEL: Template Name: AMMIXPACK | B63: 0 | C63: AMMIXPACK | D63: 1 | E63: 56 | G63: 0 | H63: 0
A64: LABEL: Descrip.: MIX DESIGN SPREADSHEET | B64: 0 | C64: AMMIXPACK | D64: 1 | E64: 57 | G64: 0 | H64: 0
A65: LABEL: GRADATION INFORMATION | B65: 0 | C65: AMMIXPACK | D65: 1 | E65: 58 | G65: 0 | H65: 0
A66: LABEL: Sieve | B66: 0 | C66: AMMIXPACK | D66: 1 | E66: 59 | G66: 0 | H66: 0
A67: LABEL: JMF | B67: 0 | C67: AMMIXPACK | D67: 1 | E67: 60 | G67: 0 | H67: 0
A68: 2 " | B68: 0 | C68: AMMIXPACK | D68: 1 | E68: 61 | G68: =IF('Design Data'!T61="",0,ROUND('Design Data'!T61,0)) -> 100 | H68: 0
A69: 1 1/2 " | B69: 0 | C69: AMMIXPACK | D69: 1 | E69: 62 | G69: =IF('Design Data'!T62="",0,ROUND('Design Data'!T62,0)) -> 0 | H69: 0
A70: 1 " | B70: 0 | C70: AMMIXPACK | D70: 1 | E70: 63 | G70: =IF('Design Data'!T63="",0,ROUND('Design Data'!T63,0)) -> 0 | H70: 0
A71: 3/4 " | B71: 0 | C71: AMMIXPACK | D71: 1 | E71: 64 | G71: =IF('Design Data'!T64="",0,ROUND('Design Data'!T64,0)) -> 0 | H71: 0
A72: 1/2 " | B72: 0 | C72: AMMIXPACK | D72: 1 | E72: 65 | G72: =IF('Design Data'!T65="",0,ROUND('Design Data'!T65,0)) -> 0 | H72: 0
A73: 3/8 " | B73: =B72 -> 0 | C73: AMMIXPACK | D73: 1 | E73: 66 | G73: =IF('Design Data'!T66="",0,ROUND('Design Data'!T66,0)) -> 0 | H73: =H72 -> 0
A74: 1/4 " | B74: 0 | C74: AMMIXPACK | D74: 1 | E74: 67 | G74: =IF('Design Data'!T67="N / A",0,IF('Design Data'!T67="",0,ROUND('Design Data'!T67,0))) -> 0 | H74: 0
A75: #4 | B75: 0 | C75: AMMIXPACK | D75: 1 | E75: 68 | G75: =IF('Design Data'!T68="",0,ROUND('Design Data'!T68,0)) -> 0 | H75: 0
A76: #8 | B76: 0 | C76: AMMIXPACK | D76: 1 | E76: 69 | G76: =IF('Design Data'!T69="",0,ROUND('Design Data'!T69,0)) -> 0 | H76: 0
A77: #16 | B77: 0 | C77: AMMIXPACK | D77: 1 | E77: 70 | G77: =IF('Design Data'!T70="",0,ROUND('Design Data'!T70,0)) -> 0 | H77: 0
A78: #30 | B78: 0 | C78: AMMIXPACK | D78: 1 | E78: 71 | G78: =IF('Design Data'!T71="",0,ROUND('Design Data'!T71,0)) -> 0 | H78: 0
A79: #50 | B79: 0 | C79: AMMIXPACK | D79: 1 | E79: 72 | G79: =IF('Design Data'!T72="",0,ROUND('Design Data'!T72,0)) -> 0 | H79: 0
A80: #100 | B80: 0 | C80: AMMIXPACK | D80: 1 | E80: 73 | G80: =IF('Design Data'!T73="",0,ROUND('Design Data'!T73,0)) -> 0 | H80: 0
A81: #200 | B81: 0 | C81: AMMIXPACK | D81: 1 | E81: 74 | G81: =IF('Design Data'!T74="",0,ROUND('Design Data'!T74,1)) -> 0 | H81: 0
A82: LABEL: '"WeighUp" | B82: 0 | C82: AMMIXPACK | D82: 1 | E82: 75 | G82: 0 | H82: 0
A83: WeighUp - 2 " | B83: 0 | C83: AMMIXPACK | D83: 1 | E83: 76 | G83: =IF('Design Data'!U15="",0,ROUND('Design Data'!U15,0)) -> 100 | H83: 0
A84: WeighUp - 1 1/2 " | B84: 0 | C84: AMMIXPACK | D84: 1 | E84: 77 | G84: =IF('Design Data'!U16="",0,ROUND('Design Data'!U16,0)) -> 0 | H84: 0
A85: WeighUp - 1 " | B85: 0 | C85: AMMIXPACK | D85: 1 | E85: 78 | G85: =IF('Design Data'!U17="",0,ROUND('Design Data'!U17,0)) -> 0 | H85: 0
A86: WeighUp - 3/4 " | B86: 0 | C86: AMMIXPACK | D86: 1 | E86: 79 | G86: =IF('Design Data'!U18="",0,ROUND('Design Data'!U18,0)) -> 0 | H86: 0
A87: WeighUp - 1/2 " | B87: 0 | C87: AMMIXPACK | D87: 1 | E87: 80 | G87: =IF('Design Data'!U19="",0,ROUND('Design Data'!U19,0)) -> 0 | H87: 0
A88: WeighUp - 3/8 " | B88: 0 | C88: AMMIXPACK | D88: 1 | E88: 81 | G88: =IF('Design Data'!U20="",0,ROUND('Design Data'!U20,0)) -> 0 | H88: 0
A89: WeighUp - 1/4 " | B89: =B88 -> 0 | C89: AMMIXPACK | D89: 1 | E89: 82 | G89: =IF('Design Data'!U21="N /A",0,IF('Design Data'!U21="",0,ROUND('Design Data'!U21,0))) ->  | H89: 0
A90: WeighUp - #4 | B90: 0 | C90: AMMIXPACK | D90: 1 | E90: 83 | G90: =IF('Design Data'!U22="",0,ROUND('Design Data'!U22,0)) -> 0 | H90: 0
A91: WeighUp - #8 | B91: 0 | C91: AMMIXPACK | D91: 1 | E91: 84 | G91: =IF('Design Data'!U23="",0,ROUND('Design Data'!U23,0)) -> 0 | H91: 0
A92: WeighUp - #16 | B92: 0 | C92: AMMIXPACK | D92: 1 | E92: 85 | G92: =IF('Design Data'!U24="",0,ROUND('Design Data'!U24,0)) -> 0 | H92: 0
A93: WeighUp - #30 | B93: 0 | C93: AMMIXPACK | D93: 1 | E93: 86 | G93: =IF('Design Data'!U25="",0,ROUND('Design Data'!U25,0)) -> 0 | H93: 0
A94: WeighUp - #50 | B94: 0 | C94: AMMIXPACK | D94: 1 | E94: 87 | G94: =IF('Design Data'!U26="",0,ROUND('Design Data'!U26,0)) -> 0 | H94: 0
A95: WeighUp - #100 | B95: 0 | C95: AMMIXPACK | D95: 1 | E95: 88 | G95: =IF('Design Data'!U27="",0,ROUND('Design Data'!U27,0)) -> 0 | H95: 0
A96: WeighUp - #200 | B96: 0 | C96: AMMIXPACK | D96: 1 | E96: 89 | G96: =IF('Design Data'!U28="",0,ROUND('Design Data'!U28,1)) -> 0 | H96: 0
A97: LABEL: MIXTURE DESIGN APPROVAL INFORMATION | B97: 0 | C97: AMMIXPACK | D97: 1 | E97: 90 | G97: 0 | H97: 0
A98: LABEL: Design Property | B98: 0 | C98: AMMIXPACK | D98: 1 | E98: 91 | G98: 0 | H98: 0
A99: Notes | B99: 0 | C99: AMMIXPACK | D99: 1 | E99: 92 | F99: =IF('Design Data'!M76="","",'Design Data'!M76) ->  | G99: 0 | H99: 0
A100: LABEL: Design Value | B100: 0 | C100: AMMIXPACK | D100: 1 | E100: 93 | G100: 0 | H100: 0
A101: Coarse Aggregate Angularity (%) | B101: 0 | C101: AMMIXPACK | D101: 1 | E101: 94 | F101: ='Design Data'!O52 -> 0 | G101: 0 | H101: 0
A102: Fine Aggregate Angularity (%) | B102: 0 | C102: AMMIXPACK | D102: 1 | E102: 95 | G102: =IF('Design Data'!O53="",0,ROUND('Design Data'!O53,0)) -> 0 | H102: 0
A103: Flat & Elongated Particles (%) | B103: 0 | C103: AMMIXPACK | D103: 1 | E103: 96 | G103: =IF('Design Data'!O54="",0,ROUND('Design Data'!O54,0)) -> 0 | H103: 0
A104: Clay Content (SE) (%) | B104: 0 | C104: AMMIXPACK | D104: 1 | E104: 97 | G104: =IF('Design Data'!O55="",0,ROUND('Design Data'!O55,0)) -> 0 | H104: 0
A105: % VFA | B105: =B104 -> 0 | C105: AMMIXPACK | D105: 1 | E105: 98 | G105: =IF('Design Data'!O56="",0,ROUND('Design Data'!O56,1)) -> 0 | H105: 0
A106: % VMA | B106: 0 | C106: AMMIXPACK | D106: 1 | E106: 99 | G106: =IF('Design Data'!O57="",0,ROUND('Design Data'!O57,1)) -> 0 | H106: 0
A107: D/A Ratio | B107: 0 | C107: AMMIXPACK | D107: 1 | E107: 100 | G107: =IF('Design Data'!O58="",0,ROUND('Design Data'!O58,1)) -> 0 | H107: 0
A108: % Gmm @ Ninitial | B108: 0 | C108: AMMIXPACK | D108: 1 | E108: 101 | G108: =IF('Design Data'!O59="",0,ROUND('Design Data'!O59,1)) -> 0 | H108: 0
A109: % Gmm @ Nmax | B109: 0 | C109: AMMIXPACK | D109: 1 | E109: 102 | G109: =IF('Design Data'!O60="",0,ROUND('Design Data'!O60,1)) -> 0 | H109: 0
A110: % Air Voids | B110: 0 | C110: AMMIXPACK | D110: 1 | E110: 103 | G110: =IF('Design Data'!O61="",0,ROUND('Design Data'!O61,1)) -> 0 | H110: 0
A111: Unit Weight (lb/ft3) | B111: 0 | C111: AMMIXPACK | D111: 1 | E111: 104 | G111: =IF('Design Data'!O62="",0,ROUND('Design Data'!O62,1)) -> 0 | H111: 0
A112: % AC | B112: 0 | C112: AMMIXPACK | D112: 1 | E112: 105 | G112: =IF('Design Data'!O63="",0,ROUND('Design Data'!O63,1)) -> 0 | H112: 0
A113: % Effective AC | B113: 0 | C113: AMMIXPACK | D113: 1 | E113: 106 | G113: =IF('Design Data'!O64="",0,ROUND('Design Data'!O64,1)) -> 0 | H113: 0
A114: Maximum Specific Gravity | B114: 0 | C114: AMMIXPACK | D114: 1 | E114: 107 | G114: =IF('Design Data'!O65="",0,ROUND('Design Data'!O65,3)) -> 0 | H114: 0
A115: % Absorbed AC (Mix) | B115: 0 | C115: AMMIXPACK | D115: 1 | E115: 108 | G115: =IF('Design Data'!O66="",0,ROUND('Design Data'!O66,2)) -> 0 | H115: 0
A116: Gsb | B116: 0 | C116: AMMIXPACK | D116: 1 | E116: 109 | G116: =IF('Design Data'!O67="",0,ROUND('Design Data'!O67,2)) -> 0 | H116: 0
A117: Gse | B117: 0 | C117: AMMIXPACK | D117: 1 | E117: 110 | G117: =IF('Design Data'!O68="",0,ROUND('Design Data'!O68,3)) -> 0 | H117: 0
A118: Film Thickness (µm) | B118: 0 | C118: AMMIXPACK | D118: 1 | E118: 111 | G118: =IF('Design Data'!O69="",0,ROUND('Design Data'!O69,1)) -> 0 | H118: 0
A119: Specimen Weight (g) | B119: 0 | C119: AMMIXPACK | D119: 1 | E119: 112 | G119: =IF('Design Data'!O70="",0,ROUND('Design Data'!O70,0)) -> 0 | H119: 0
A120: TSR Weight (g) | B120: 0 | C120: AMMIXPACK | D120: 1 | E120: 113 | G120: =IF('Design Data'!O71="",0,ROUND('Design Data'!O71,0)) -> 0 | H120: 0
A121: % TSR without additive | B121: =B120 -> 0 | C121: AMMIXPACK | D121: 1 | E121: 114 | G121: =IF('Design Data'!O72="",0,ROUND('Design Data'!O72,0)) -> 0 | H121: 0
A122: % TSR with additive | B122: 0 | C122: AMMIXPACK | D122: 1 | E122: 115 | G122: =IF('Design Data'!O73="",0,ROUND('Design Data'!O73,0)) -> 0 | H122: 0
A123: % Additive | B123: 0 | C123: AMMIXPACK | D123: 1 | E123: 116 | G123: =IF('Design Data'!O74="",0,ROUND('Design Data'!O74,2)) -> 0 | H123: 0
A124: Type of Additive | B124: 0 | C124: AMMIXPACK | D124: 1 | E124: 117 | F124: ='Design Data'!O75 ->  | G124: 0 | H124: 0
A125: LABEL: Criteria | B125: 0 | C125: AMMIXPACK | D125: 1 | E125: 118 | G125: 0 | H125: 0
A126: Criteria - Coarse Aggregate Angularity (%) | B126: 0 | C126: AMMIXPACK | D126: 1 | E126: 119 | F126: ='Design Data'!P52 ->  | G126: 0 | H126: 0
A127: Criteria - Fine Aggregate Angularity (%) | B127: 0 | C127: AMMIXPACK | D127: 1 | E127: 120 | F127: ='Design Data'!P53 ->  | G127: 0 | H127: 0
A128: Criteria - Flat & Elongated Particles (%) | B128: 0 | C128: AMMIXPACK | D128: 1 | E128: 121 | F128: ='Design Data'!P54 ->  | G128: 0 | H128: 0
A129: Criteria - Clay Content (SE) (%) | B129: 0 | C129: AMMIXPACK | D129: 1 | E129: 122 | F129: ='Design Data'!P55 ->  | G129: 0 | H129: 0
A130: Criteria - % VFA | B130: 0 | C130: AMMIXPACK | D130: 1 | E130: 123 | F130: ='Design Data'!P56 ->  | G130: 0 | H130: 0
A131: Criteria - % VMA | B131: 0 | C131: AMMIXPACK | D131: 1 | E131: 124 | F131: ='Design Data'!P57 ->  | G131: 0 | H131: 0
A132: Criteria - D/A Ratio | B132: 0 | C132: AMMIXPACK | D132: 1 | E132: 125 | F132: ='Design Data'!P58 ->  | G132: 0 | H132: 0
A133: Criteria - % Gmm @ Ninitial | B133: 0 | C133: AMMIXPACK | D133: 1 | E133: 126 | F133: ='Design Data'!P59 ->  | G133: 0 | H133: 0
A134: Criteria - % Gmm @ Nmax | B134: 0 | C134: AMMIXPACK | D134: 1 | E134: 127 | F134: ='Design Data'!P60 ->  | G134: 0 | H134: 0
A135: Criteria - % Air Voids | B135: 0 | C135: AMMIXPACK | D135: 1 | E135: 128 | F135: ='Design Data'!P61 ->  | G135: 0 | H135: 0
A136: Criteria - % AC | B136: 0 | C136: AMMIXPACK | D136: 1 | E136: 129 | F136: ='Design Data'!P63 ->  | G136: 0 | H136: 0
A137: Criteria - % TSR without additive | B137: =B136 -> 0 | C137: AMMIXPACK | D137: 1 | E137: 130 | F137: ='Design Data'!P72 ->  | G137: 0 | H137: =H136 -> 0
A138: Criteria - % TSR with additive | B138: 0 | C138: AMMIXPACK | D138: 1 | E138: 131 | F138: ='Design Data'!P73 ->  | G138: 0 | H138: 0
A139: LABEL: Reference Information | B139: 0 | C139: AMMIXPACK | D139: 1 | E139: 132 | G139: 0 | H139: 0
A140: Additional Reference Information | B140: 0 | C140: AMMIXPACK | D140: 1 | E140: 133 | F140: ='Design Data'!S58 ->  | G140: 0 | H140: 0
A141: COUNTY: | B141: 0 | C141: AMMIXPACK | D141: 1 | E141: 134 | F141: ='Design Data'!T52 ->  | G141: 0 | H141: 0
A142: ID#: | B142: 0 | C142: AMMIXPACK | D142: 1 | E142: 135 | F142: ='Design Data'!T53 ->  | G142: 0 | H142: 0
A143: Binder: | B143: 0 | C143: AMMIXPACK | D143: 1 | E143: 136 | F143: ='Design Data'!T54 ->  | G143: 0 | H143: 0
A144: Date Released: | B144: 0 | C144: AMMIXPACK | D144: 1 | E144: 137 | G144: =IF('Design Data'!U55="",0,IF('Design Data'!U55="N/A",0,'Design Data'!U55)) -> 00:00:00 | H144: 0
A145: Design AC%: | B145: 0 | C145: AMMIXPACK | D145: 1 | E145: 138 | F145: ='Design Data'!U56 ->  | G145: 0 | H145: 0
A146: Job Complete? | B146: 0 | C146: AMMIXPACK | D146: 1 | E146: 139 | F146: ='Design Data'!U57 ->  | G146: 0 | H146: 0
A147: LABEL: RAP Information | B147: 0 | C147: AMMIXPACK | D147: 1 | E147: 140 | G147: 0 | H147: 0
A148: % AC in RAP: | B148: 0 | C148: AMMIXPACK | D148: 1 | E148: 141 | G148: =IF('Design Data'!U77="",0,ROUND('Design Data'!U77,1)) -> 0 | H148: 0
A149: % Virgin AC in mix: | B149: 0 | C149: AMMIXPACK | D149: 1 | E149: 142 | G149: =IF('Design Data'!U78="",0,ROUND('Design Data'!U78,1)) -> 0 | H149: 0
A150: % RAP AC in mix: | B150: 0 | C150: AMMIXPACK | D150: 1 | E150: 143 | G150: =IF('Design Data'!U79="",0,ROUND('Design Data'!U79,1)) -> 0 | H150: 0
A151: Total % AC in mix: | B151: 0 | C151: AMMIXPACK | D151: 1 | E151: 144 | G151: =IF('Design Data'!U80="",0,ROUND('Design Data'!U80,1)) -> 0 | H151: 0
A152: RAP MSG's | B152: 0 | C152: AMMIXPACK | D152: 1 | E152: 145 | F152: =IF('Design Data'!N27="","",'Design Data'!N27) ->  | G152: 0 | H152: 0
A153: RAP MSG: "label" assignment | B153: =B151 -> 0 | C153: AMMIXPACK | D153: 1 | E153: 254 | F153: =IF('Design Data'!N28="","",'Design Data'!N28) ->  | G153: 0 | H153: =H151 -> 0
A154: RAP MSG's (2) | B154: 0 | C154: AMMIXPACK | D154: 1 | E154: 146 | F154: =IF('Design Data'!O27="","",'Design Data'!O27) ->  | G154: 0 | H154: =H152 -> 0
A155: 'RAP Gsb = | B155: =B154 -> 0 | C155: AMMIXPACK | D155: 1 | E155: 147 | G155: =IF('Design Data'!O28="",0,ROUND('Design Data'!O28,2)) -> 0 | H155: 0
A156: LABEL: APPROVAL INFORMATION | B156: 0 | C156: AMMIXPACK | D156: 1 | E156: 148 | G156: 0 | H156: 0
A157: Complete SGC Des. | B157: 0 | C157: AMMIXPACK | D157: 1 | E157: 149 | F157: =IF('Design Data'!N79="","",'Design Data'!N79) ->  | G157: 0 | H157: 0
A158: App.-New Design | B158: 0 | C158: AMMIXPACK | D158: 1 | E158: 150 | F158: =IF('Design Data'!N80="","",'Design Data'!N80) ->  | G158: 0 | H158: 0
A159: MCL Design | B159: 0 | C159: AMMIXPACK | D159: 1 | E159: 151 | F159: =IF('Design Data'!N81="","",'Design Data'!N81) ->  | G159: 0 | H159: 0
A160: 1-Pt. SGC Des. | B160: 0 | C160: AMMIXPACK | D160: 1 | E160: 152 | F160: =IF('Design Data'!Q79="","",'Design Data'!Q79) ->  | G160: 0 | H160: 0
A161: App.-Ref. Mix | B161: 0 | C161: AMMIXPACK | D161: 1 | E161: 153 | F161: =IF('Design Data'!Q80="","",'Design Data'!Q80) ->  | G161: 0 | H161: 0
A162: Contr. Design | B162: 0 | C162: AMMIXPACK | D162: 1 | E162: 154 | F162: =IF('Design Data'!Q81="","",'Design Data'!Q81) ->  | G162: 0 | H162: 0
A163: Revised Asphalt Content (+ or - 0.3%): | B163: 0 | C163: AMMIXPACK | D163: 1 | E163: 155 | F163: =IF('Design Data'!Q82="","",'Design Data'!Q82) ->  | G163: 0 | H163: 0
A164: LABEL: TSR INFORMATION | B164: 0 | C164: AMMIXPACK | D164: 1 | E164: 156 | G164: 0 | H164: 0
A165: %AC: | B165: 0 | C165: AMMIXPACK | D165: 1 | E165: 157 | G165: =IF(TSR!G18="",0,ROUND(TSR!G18,1)) -> 0 | H165: 0
A166: % ADDITIVE: | B166: 0 | C166: AMMIXPACK | D166: 1 | E166: 158 | F166: =IF(TSR!H18="","",TSR!H18) ->  | G166: 0 | H166: 0
A167: TYPE OF ADDITIVE: | B167: 0 | C167: AMMIXPACK | D167: 1 | E167: 159 | F167: =IF(TSR!G20="","",TSR!G20) ->  | G167: 0 | H167: 0
A168: % Air Voids w/o add. | B168: 0 | C168: AMMIXPACK | D168: 1 | E168: 160 | G168: =IF(TSR!H39="",0,ROUND(TSR!H39,1)) -> 0 | H168: 0
A169: % Initial Saturation w/o Add. | B169: 0 | C169: AMMIXPACK | D169: 1 | E169: 161 | G169: =IF(TSR!H46="",0,ROUND(TSR!H46,1)) -> 0 | H169: 0
A170: % Final Saturation w/o Add. | B170: 0 | C170: AMMIXPACK | D170: 1 | E170: 162 | G170: =IF(TSR!H52="",0,ROUND(TSR!H52,1)) -> 0 | H170: 0
A171: Wet Strength w/o add. (psi) | B171: =B170 -> 0 | C171: AMMIXPACK | D171: 1 | E171: 163 | G171: =IF(TSR!H54="",0,ROUND(TSR!H54,1)) -> 0 | H171: 0
A172: Dry Strength w/o add. (psi) | B172: 0 | C172: AMMIXPACK | D172: 1 | E172: 164 | G172: =IF(TSR!H55="",0,ROUND(TSR!H55,1)) -> 0 | H172: 0
A173: % TSR w/o Add. = | B173: 0 | C173: AMMIXPACK | D173: 1 | E173: 165 | G173: =IF(TSR!G57="",0,ROUND(TSR!G57,0)) -> 0 | H173: 0
A174: % Air Voids with add. | B174: 0 | C174: AMMIXPACK | D174: 1 | E174: 166 | G174: =IF(TSR!O39="",0,ROUND(TSR!O39,1)) -> 0 | H174: 0
A175: % Initial Saturation with Add. | B175: 0 | C175: AMMIXPACK | D175: 1 | E175: 167 | G175: =IF(TSR!O46="",0,ROUND(TSR!O46,1)) -> 0 | H175: 0
A176: % Final Saturation with Add. | B176: 0 | C176: AMMIXPACK | D176: 1 | E176: 168 | G176: =IF(TSR!O52="",0,ROUND(TSR!O52,1)) -> 0 | H176: 0
A177: Wet Strength with add. (psi) | B177: 0 | C177: AMMIXPACK | D177: 1 | E177: 169 | G177: =IF(TSR!O54="",0,ROUND(TSR!O54,1)) -> 0 | H177: 0
A178: Dry Strength with add. (psi) | B178: 0 | C178: AMMIXPACK | D178: 1 | E178: 170 | G178: =IF(TSR!O55="",0,ROUND(TSR!O55,1)) -> 0 | H178: 0
A179: % TSR with Add. = | B179: 0 | C179: AMMIXPACK | D179: 1 | E179: 171 | G179: =IF(TSR!N57="",0,ROUND(TSR!N57,0)) -> 0 | H179: 0
A180: LABEL: MIX DESIGN AGGREGATE INFORMATION | B180: 0 | C180: AMMIXPACK | D180: 1 | E180: 172 | G180: 0 | H180: 0
A181: AGG. PROD. NO. | B181: 0 | C181: AMMIXPACK | D181: 1 | E181: 173 | F181: =IF('Design Data'!A23="","",'Design Data'!A23) ->  | G181: 0 | H181: 0
A182: AGG. PROD. NO. #2 | B182: 0 | C182: AMMIXPACK | D182: 1 | E182: 174 | F182: =IF('Design Data'!A24="","",'Design Data'!A24) ->  | G182: 0 | H182: 0
A183: AGG. PROD. NO. #3 | B183: 0 | C183: AMMIXPACK | D183: 1 | E183: 175 | F183: =IF('Design Data'!A25="","",'Design Data'!A25) ->  | G183: 0 | H183: 0
A184: AGG. PROD. NO. #4 | B184: 0 | C184: AMMIXPACK | D184: 1 | E184: 176 | F184: =IF('Design Data'!A26="","",'Design Data'!A26) ->  | G184: 0 | H184: 0
A185: AGG. PROD. NO. #5 | B185: 0 | C185: AMMIXPACK | D185: 1 | E185: 177 | F185: =IF('Design Data'!A27="","",'Design Data'!A27) ->  | G185: 0 | H185: 0
A186: AGG. PROD. NO. #6 | B186: 0 | C186: AMMIXPACK | D186: 1 | E186: 178 | F186: =IF('Design Data'!A28="","",'Design Data'!A28) ->  | G186: 0 | H186: 0
A187: PRODUCER NAME | B187: =B186 -> 0 | C187: AMMIXPACK | D187: 1 | E187: 179 | F187: =IF('Design Data'!C23="","",'Design Data'!C23) ->  | G187: 0 | H187: 0
A188: PRODUCER NAME #2 | B188: 0 | C188: AMMIXPACK | D188: 1 | E188: 180 | F188: =IF('Design Data'!C24="","",'Design Data'!C24) ->  | G188: 0 | H188: 0
A189: PRODUCER NAME #3 | B189: 0 | C189: AMMIXPACK | D189: 1 | E189: 181 | F189: =IF('Design Data'!C25="","",'Design Data'!C25) ->  | G189: 0 | H189: 0
A190: PRODUCER NAME #4 | B190: 0 | C190: AMMIXPACK | D190: 1 | E190: 182 | F190: =IF('Design Data'!C26="","",'Design Data'!C26) ->  | G190: 0 | H190: 0
A191: PRODUCER NAME #5 | B191: 0 | C191: AMMIXPACK | D191: 1 | E191: 183 | F191: =IF('Design Data'!C27="","",'Design Data'!C27) ->  | G191: 0 | H191: 0
A192: PRODUCER NAME #6 | B192: 0 | C192: AMMIXPACK | D192: 1 | E192: 184 | F192: =IF('Design Data'!C28="","",'Design Data'!C28) ->  | G192: 0 | H192: 0
A193: MAT.CODE | B193: 0 | C193: AMMIXPACK | D193: 1 | E193: 185 | F193: =IF('Design Data'!H23="","",'Design Data'!H23) ->  | G193: 0 | H193: 0
A194: MAT.CODE #2 | B194: 0 | C194: AMMIXPACK | D194: 1 | E194: 186 | F194: =IF('Design Data'!H24="","",'Design Data'!H24) ->  | G194: 0 | H194: 0
A195: MAT.CODE #3 | B195: 0 | C195: AMMIXPACK | D195: 1 | E195: 187 | F195: =IF('Design Data'!H25="","",'Design Data'!H25) ->  | G195: 0 | H195: 0
A196: MAT.CODE #4 | B196: 0 | C196: AMMIXPACK | D196: 1 | E196: 188 | F196: =IF('Design Data'!H26="","",'Design Data'!H26) ->  | G196: 0 | H196: 0
A197: MAT.CODE #5 | B197: 0 | C197: AMMIXPACK | D197: 1 | E197: 189 | F197: =IF('Design Data'!H27="","",'Design Data'!H27) ->  | G197: 0 | H197: 0
A198: MAT.CODE #6 | B198: 0 | C198: AMMIXPACK | D198: 1 | E198: 190 | F198: =IF('Design Data'!H28="","",'Design Data'!H28) ->  | G198: 0 | H198: 0
A199: AGG. TYPE | B199: 0 | C199: AMMIXPACK | D199: 1 | E199: 191 | F199: =IF('Design Data'!J23="","",'Design Data'!J23) ->  | G199: 0 | H199: 0
A200: AGG. TYPE #2 | B200: 0 | C200: AMMIXPACK | D200: 1 | E200: 192 | F200: =IF('Design Data'!J24="","",'Design Data'!J24) ->  | G200: 0 | H200: 0
... 142 more rows

Sheet t_superpave (hidden)
A1: Special Processing | J1: c | AE1: c | AF1: c | AG1: c | AI1: d | AJ1: c
A2: SM Table | B2: t_superpave | C2: t_superpave | D2: t_superpave | E2: t_superpave | F2: t_superpave | G2: t_superpave | H2: t_superpave | I2: t_superpave | J2: t_superpave | K2: t_superpave | L2: t_superpave | M2: t_superpave | N2: t_superpave | O2: t_superpave | P2: t_superpave | Q2: t_superpave | R2: t_superpave | S2: t_superpave | T2: t_superpave | U2: t_superpave | V2: t_superpave | W2: t_superpave | X2: t_superpave | AH2: t_superpave | AI2: t_superpave
A3: SM Column | B3: mix_id | C3: dsn_t | D3: matl_cd | E3: prodr_supp_cd | F3: dsnr_nm | G3: asph_cem_t | H3: mix_dsn_txt_t | I3: effdt | J3: term_dt | K3: apprd_dt | L3: apprd_by_uid | M3: init_n_dnsty_m | N3: max_n_dnsty_m | O3: dsn_n_dnsty_m | P3: init_n_gmm_p | Q3: max_n_gmm_p | R3: esals_nbr | S3: opt_ac_pct_tot_wt | T3: dust_proprtn_p | U3: vma_p | V3: vfa_p | W3: lotmn_tsr_m | X3: sand_equiv_tst | Y3: max_spc_gr | Z3: bulk_spc_gr_m | AA3: mix_temp | AB3: mix_temp_unt | AC3: cmpct_temp | AD3: cmpct_temp_unt | AE3: high_air_temp | AF3: high_air_temp_unt | AG3: rmrks_id | AH3: last_modfd_uid | AI3: last_modfd_dt | AJ3: air_voids_p
A4: Logical Validation | B4: No duplicates of key (highlighted in yellow); | C4: Existing on t_cd_tbl_dtl (cd_id) AND t_cd_tbl_dtl.tbl_id='DSNTYPE' | D4: Existing on t_matl AND t.matl_actvty_stat_t = "A" | E4: Existing on t_prodr_supp AND t_prodr_supp.actvty_stat_t = "A" AND smpl_dt (since only 1 sample) is between t_prodr_supp_matl.effdt & exp_dt (for the matl_cd above) | F4: Existing on t_matl_user AND t_matl_user.smplr_ind='Y" AND active sampler qualification of "Superpave Mix Design Tech." ( I.e., At least one row returned from: SELECT * FROM t_insp_qualfn WHERE smpld_by = smpld_by AND insp_qualfn_t = "ASMD" AND qualfn_lev_t = "SMDT" AND exp_dt >= t_smpl.smpl_dt (since only 1 sample) AND effdt <= t_smpl.smpl_dt (since only 1 sample) ) | G4: Existing on t_cd_tbl_dtl (cd_id) AND t_cd_tbl_dtl.tbl_id='ASPHCEM' | H4: Existing on t_cd_tbl_dtl (cd_id) AND t_cd_tbl_dtl.tbl_id='MIXDSN' | L4: Existing on t_matl_user AND t_matl_user.smplr_ind='Y" AND active sampler qualification of "Superpave Mix Design Tech." ( I.e., At least one row returned from: SELECT * FROM t_insp_qualfn WHERE smpld_by = smpld_by AND insp_qualfn_t = "ASMD" AND qualfn_lev_t = "SMDT" AND exp_dt >= t_smpl.smpl_dt (same keys as current row) AND effdt <= t_smpl.smpl_dt (same keys as current row) ) | AB4: Existing on t_cd_tbl_dtl (cd_id) AND t_cd_tbl_dtl.tbl_id='TEMP' | AD4: Existing on t_cd_tbl_dtl (cd_id) AND t_cd_tbl_dtl.tbl_id='TEMP'
A5: Comment | F5: The Approver must have active "SUPERPAVE MIX DESIGN TECHNOLOGIST" Sampler qualification (and therefore have a SM User ID) for a Material Category of "ASPHALT-MIX DESIGN". | J5: Not Used Initialized to 0 | L5: The Approver must have active "SUPERPAVE MIX DESIGN TECHNOLOGIST" Sampler qualification (and therefore have a SM User ID) for a Material Category of "ASPHALT-MIX DESIGN". | M5: numeric(3.0) | N5: numeric(3.0) | O5: numeric(3.0) Values can only be 50, 75, 100, 125, (or blank - i.e., since numeric field, blank will be stored as a 0). | P5: varchar(18) | Q5: varchar(18) | R5: numeric(12.0) "N/A" or blanks have been translated to zero (0) below. | T5: varchar(18) | U5: varchar(18) | V5: varchar(18) | W5: varchar(18) | X5: numeric(3.0) Rounded to nearest whole number below. | Y5: varchar(18) | Z5: varchar(18) | AE5: Not Used Initialized to 0 | AF5: Not Used Initialized to " " (i.e., space) | AG5: Not Used Initialized to " " (i.e., space) | AI5: Current system date | AJ5: Not Used Initialized to " " (i.e., space)
A6: Long Description | B6: Mix ID | C6: Design Type | D6: Material Code | E6: Producer Supplier Code | F6: Designer Name | G6: AC Type | H6: Mix Type | I6: Effective Date | J6: Termination Date | K6: Approved Date | L6: Approved By User ID | M6: N (Initial) | N6: N (Max) | O6: N (Design) | P6: % Gmm @ N (Init) | Q6: % Gmm @ N (Max) | R6: Equiv Single Axle Loads | S6: Optimum AC % by Tot Weight | T6: Dust Proportion | U6: VMA % | V6: VFA % | W6: Lottman TSR | X6: Sand Equivalent | Y6: Maximum Specific Gravity | Z6: Bulk Specific Gravity | AA6: Mixing Temperature | AB6: Mixing Temperature Units Type | AC6: Compaction Temp | AD6: Compaction Temperature Units Type | AE6: High Air Temperature | AF6: High Air Temperature Units Type | AG6: Remarks | AH6: Last Modified User ID | AI6: Last Modified Date | AJ6: Air Voids Percentage
A7: User Entry XML Schema Sheet Map Column Name | B7: mix_id | C7: dsn_t | D7: matl_cd | E7: prodr_supp_cd | F7: dsnr_nm | G7: asph_cem_t | H7: mix_dsn_txt_t | I7: effdt | J7: term_dt | K7: apprd_dt | L7: apprd_by_uid | M7: init_n_dnsty_m | N7: max_n_dnsty_m | O7: dsn_n_dnsty_m | P7: init_n_gmm_p | Q7: max_n_gmm_p | R7: esals_nbr | S7: opt_ac_pct_tot_wt | T7: dust_proprtn_p | U7: vma_p | V7: vfa_p | W7: lotmn_tsr_m | X7: sand_equiv_tst | Y7: max_spc_gr | Z7: bulk_spc_gr_m | AA7: mix_temp | AB7: mix_temp_unt | AC7: cmpct_temp | AD7: cmpct_temp_unt | AE7: high_air_temp | AF7: high_air_temp_unt | AG7: rmrks_id | AH7: last_modfd_uid | AI7: last_modfd_dt | AJ7: air_voids_p
B8: ='Design Data'!H10 -> 0 | C8: SUP | D8: ='Design Data'!Q16 ->  | E8: ='Design Data'!Q14 ->  | F8: ='Design Data'!K16 -> 0 | G8: ='Chart Data'!E48 ->  | H8: ='Chart Data'!M48 ->  | I8: ='Design Data'!H16 -> 00:00:00 | J8: 0 | K8: ='Design Data'!H16 -> 00:00:00 | L8: =IF('Design Data'!S82="","",'Design Data'!S82) ->  | M8: ='Design Data'!Q87 ->  | N8: ='Design Data'!Q89 ->  | O8: ='Design Data'!Q88 ->  | P8: =IF('Design Data'!O59="","",ROUND('Design Data'!O59,1)) ->  | Q8: =IF('Design Data'!O60="","",ROUND('Design Data'!O60,1)) ->  | R8: =IF('Design Data'!H20="N/A",0,IF('Design Data'!H20=" ",0,'Design Data'!H20)) ->  | S8: =IF('Design Data'!O63="",0,ROUND('Design Data'!O63,1)) -> 0 | T8: =IF('Design Data'!O58="","",ROUND('Design Data'!O58,1)) ->  | U8: =IF('Design Data'!O57="","",ROUND('Design Data'!O57,1)) ->  | V8: =IF('Design Data'!O56="","",ROUND('Design Data'!O56,1)) ->  | W8: =IF('Design Data'!O72="","",ROUND('Design Data'!O72,0)) ->  | X8: =ROUND('Design Data'!O55,0) -> 0 | Y8: =IF('Design Data'!O65="",0,ROUND('Design Data'!O65,3)) -> 0 | Z8: =IF('Design Data'!O62="",0,ROUND('Design Data'!O62,1)) -> 0 | AA8: ='Design Data'!K18 ->  | AB8: DEGF | AC8: ='Design Data'!K18 ->  | AD8: DEGF | AH8: ='Design Data'!S82 -> 0

Sheet t_bit_conc_mixblnd (hidden)
A1: Special Processing | F1: c | L1: d
A2: SM Table | B2: t_bit_conc_mixblnd | C2: t_bit_conc_mixblnd | D2: t_bit_conc_mixblnd | E2: t_bit_conc_mixblnd | F2: t_bit_conc_mixblnd | G2: t_bit_conc_mixblnd | H2: t_bit_conc_mixblnd | I2: t_bit_conc_mixblnd | J2: t_bit_conc_mixblnd | K2: t_bit_conc_mixblnd | L2: t_bit_conc_mixblnd
A3: SM Column | B3: mix_id | C3: dsn_t | D3: matl_cd | E3: prodr_supp_cd | F3: brnd_nm | G3: blnd_p | H3: bulk_spc_gr_m | I3: aprnt_spc_gr_m | J3: smpl_id | K3: last_modfd_uid | L3: last_modfd_dt
A4: Logical Validation | B4: No duplicates of key (highlighted in yellow); | C4: Existing on t_cd_tbl_dtl (cd_id) AND t_cd_tbl_dtl.tbl_id='DSNTYPE' | D4: Existing on t_matl AND t.matl_actvty_stat_t = "A" | E4: Existing on t_prodr_supp AND t_prodr_supp.actvty_stat_t = "A" AND smpl_dt (since only 1 sample) is between t_prodr_supp_matl.effdt & exp_dt (for the matl_cd left one column) | J4: Existing on t_smpl
A5: Comment | B5: If all four key fields are not present, DO NOT write a record to Sitemanager. | C5: If all four key fields are not present, DO NOT write a record to Sitemanager. | D5: If all four key fields are not present, DO NOT write a record to Sitemanager. | E5: If all four key fields are not present, DO NOT write a record to Sitemanager. | F5: Not Used Initialized to " " (i.e., space) | G5: varchar(18) | H5: varchar(18) | I5: varchar(18) Binder: N/A | L5: Current system date
A6: Long Description | B6: Mix ID | C6: Design Type | D6: Material Code | E6: Producer Supplier Code | F6: Brand Name | G6: Blend Percent | H6: Specific Gravity (Bulk) | I6: Specific Gravity (Apparent) | J6: Sample ID | K6: Last Modified User ID | L6: Last Modified Date
A7: User Entry XML Schema Sheet Map Column Name | B7: mix_id | C7: dsn_t | D7: matl_cd | E7: prodr_supp_cd | F7: brnd_nm | G7: blnd_p | H7: bulk_spc_gr_m | I7: aprnt_spc_gr_m | J7: smpl_id | K7: last_modfd_uid | L7: last_modfd_dt | M7: ns1:init_n_dnsty_m | N7: ns1:max_n_dnsty_m | O7: ns1:dsn_n_dnsty_m | P7: ns1:init_n_gmm_p | Q7: ns1:max_n_gmm_p | R7: ns1:esals_nbr | S7: ns1:opt_ac_pct_tot_wt | T7: ns1:dust_proprtn_p | U7: ns1:vma_p | V7: ns1:vfa_p | W7: ns1:lotmn_tsr_m | X7: ns1:sand_equiv_tst | Y7: ns1:max_spc_gr | Z7: ns1:bulk_spc_gr_m | AA7: ns1:mix_temp | AB7: ns1:mix_temp_unt | AC7: ns1:cmpct_temp | AD7: ns1:cmpct_temp_unt | AE7: ns1:high_air_temp | AF7: ns1:high_air_temp_unt | AG7: ns1:rmrks_id | AH7: ns1:last_modfd_uid | AI7: ns1:last_modfd_dt | AJ7: ns1:air_voids_p
A8: Binder Material | B8: =IF(D8="","",IF(E8="","",'Design Data'!H10)) ->  | C8: =IF(B8="","","SUP") ->  | D8: =IF('Design Data'!C20="","",'Design Data'!C20) ->  | E8: =IF('Design Data'!H18="","",'Design Data'!H18) ->  | G8: =IF('Design Data'!O63="",0,ROUND('Design Data'!O63,1)) -> 0 | H8: =ROUND('Design Data'!O25,3) -> 1.03 | I8: N/A | J8: =IF('Design Data'!N127="","",IF('Design Data'!N127="N/A","",'Design Data'!N127)) ->  | K8: ='Design Data'!S82 -> 0
A9: Aggregate Material 1 | B9: =IF(D9="","",IF(E9="","",'Design Data'!H10)) ->  | C9: =IF(B9="","","SUP") ->  | D9: =IF('Design Data'!H23="","",'Design Data'!H23) ->  | E9: =IF('Design Data'!A23="","",'Design Data'!A23) ->  | G9: =IF('Design Data'!M23="",0,ROUND('Design Data'!M23,0)) -> 0 | H9: =IF('Design Data'!L23="",0,ROUND('Design Data'!L23,2)) -> 0 | I9: =IF('Design Data'!M113="","",'Design Data'!M113) ->  | J9: =IF('Design Data'!N113="","",IF('Design Data'!N113="N/A","",'Design Data'!N113)) ->  | K9: =K8 -> 0
A10: Aggregate Material 2 | B10: =IF(D10="","",IF(E10="","",'Design Data'!H10)) ->  | D10: =IF('Design Data'!H24="","",'Design Data'!H24) ->  | E10: =IF('Design Data'!A24="","",'Design Data'!A24) ->  | G10: =IF('Design Data'!M24="",0,ROUND('Design Data'!M24,0)) -> 0 | H10: =IF('Design Data'!L24="",0,ROUND('Design Data'!L24,2)) -> 0 | I10: =IF('Design Data'!M114="","",'Design Data'!M114) ->  | J10: =IF('Design Data'!N114="","",IF('Design Data'!N114="N/A","",'Design Data'!N114)) ->  | K10: 0
A11: Aggregate Material 3 | B11: =IF(D11="","",IF(E11="","",'Design Data'!H10)) ->  | D11: =IF('Design Data'!H25="","",'Design Data'!H25) ->  | E11: =IF('Design Data'!A25="","",'Design Data'!A25) ->  | G11: =IF('Design Data'!M25="",0,ROUND('Design Data'!M25,0)) -> 0 | H11: =IF('Design Data'!L25="",0,ROUND('Design Data'!L25,2)) -> 0 | I11: =IF('Design Data'!M115="","",'Design Data'!M115) ->  | J11: =IF('Design Data'!N115="","",IF('Design Data'!N115="N/A","",'Design Data'!N115)) ->  | K11: 0
A12: Aggregate Material 4 | B12: =IF(D12="","",IF(E12="","",'Design Data'!H10)) ->  | D12: =IF('Design Data'!H26="","",'Design Data'!H26) ->  | E12: =IF('Design Data'!A26="","",'Design Data'!A26) ->  | G12: =IF('Design Data'!M26="",0,ROUND('Design Data'!M26,0)) -> 0 | H12: =IF('Design Data'!L26="",0,ROUND('Design Data'!L26,2)) -> 0 | I12: =IF('Design Data'!M116="","",'Design Data'!M116) ->  | J12: =IF('Design Data'!N116="","",IF('Design Data'!N116="N/A","",'Design Data'!N116)) ->  | K12: 0
A13: Aggregate Material 5 | B13: =IF(D13="","",IF(E13="","",'Design Data'!H10)) ->  | D13: =IF('Design Data'!H27="","",'Design Data'!H27) ->  | E13: =IF('Design Data'!A27="","",'Design Data'!A27) ->  | G13: =IF('Design Data'!M27="",0,ROUND('Design Data'!M27,0)) -> 0 | H13: =IF('Design Data'!L27="",0,ROUND('Design Data'!L27,2)) -> 0 | I13: =IF('Design Data'!M117="","",'Design Data'!M117) ->  | J13: =IF('Design Data'!N117="","",IF('Design Data'!N117="N/A","",'Design Data'!N117)) ->  | K13: 0
A14: Aggregate Material 6 | B14: =IF(D14="","",IF(E14="","",'Design Data'!H10)) ->  | D14: =IF('Design Data'!H28="","",'Design Data'!H28) ->  | E14: =IF('Design Data'!A28="","",'Design Data'!A28) ->  | G14: =IF('Design Data'!M28="",0,ROUND('Design Data'!M28,0)) -> 0 | H14: =IF('Design Data'!L28="",0,ROUND('Design Data'!L28,2)) -> 0 | I14: =IF('Design Data'!M118="","",'Design Data'!M118) ->  | J14: =IF('Design Data'!N118="","",IF('Design Data'!N118="N/A","",'Design Data'!N118)) ->  | K14: 0
